NUMERO_MANDATO;RIGA_MANDATO;QUIET;IMPORTO_RIGA;IMPORTO_MANDATO;BENEFICIARIO;CIG;TITOLO_PAGAMENTO;DATA_MANDATO;CAPITOLO;ARTICOLO;NUMERO_IMPEGNO;TITOLO;DESCR_TITOLO;LIVELLO_II;DESCR_LIVELLO_II;LIVELLO_III;DESCR_LIVELLO_III;LIVELLO_IV;DESCR_LIVELLO_IV;LIVELLO_V;DESCR_LIVELLO_V;DATA_PAG_EFF
1246;1;0;200;200;NOMINATIVO OMESSO PER PRIVACY; ;L.R. n. 23/2005-  Interventi di sostegno alla persona-Concessione contributi  straordinari  in favore di nuclei familiari in stato di disagio sociale ed economico. Impegno di spesa e liquidazione.;01/07/2019;6666;0;209;1;Spese correnti;4;Trasferimenti correnti;2;Trasferimenti correnti a Famiglie;2;Interventi assistenziali;999;Altri assegni e sussidi assistenziali;01/07/2019
1247;1;0;300;300;NOMINATIVO OMESSO PER PRIVACY; ;L.R. n. 23/2005-  Interventi di sostegno alla persona-Concessione contributi  straordinari  in favore di nuclei familiari in stato di disagio sociale ed economico. Impegno di spesa e liquidazione.;01/07/2019;6666;0;209;1;Spese correnti;4;Trasferimenti correnti;2;Trasferimenti correnti a Famiglie;2;Interventi assistenziali;999;Altri assegni e sussidi assistenziali;01/07/2019
1248;1;0;300;300;NOMINATIVO OMESSO PER PRIVACY; ;L.R. n. 23/2005-  Interventi di sostegno alla persona-Concessione contributi  straordinari  in favore di nuclei familiari in stato di disagio sociale ed economico. Impegno di spesa e liquidazione.;01/07/2019;6666;0;209;1;Spese correnti;4;Trasferimenti correnti;2;Trasferimenti correnti a Famiglie;2;Interventi assistenziali;999;Altri assegni e sussidi assistenziali;01/07/2019
1249;1;0;300;300;NOMINATIVO OMESSO PER PRIVACY; ;L.R. n. 23/2005-  Interventi di sostegno alla persona-Concessione contributi  straordinari  in favore di nuclei familiari in stato di disagio sociale ed economico. Impegno di spesa e liquidazione.;01/07/2019;6666;0;209;1;Spese correnti;4;Trasferimenti correnti;2;Trasferimenti correnti a Famiglie;2;Interventi assistenziali;999;Altri assegni e sussidi assistenziali;01/07/2019
1250;1;0;70;70;NOMINATIVO OMESSO PER PRIVACY; ;L.R. n. 23/2005-  Interventi di sostegno alla persona-Concessione contributi  straordinari  in favore di nuclei familiari in stato di disagio sociale ed economico. Impegno di spesa e liquidazione.;01/07/2019;6666;0;209;1;Spese correnti;4;Trasferimenti correnti;2;Trasferimenti correnti a Famiglie;2;Interventi assistenziali;999;Altri assegni e sussidi assistenziali;01/07/2019
1251;1;0;500;500;NOMINATIVO OMESSO PER PRIVACY; ;"Liquidazione di spesa preventivamente impegnata per L.R. n. 18/2016. REIS - Reddito Inclusione Sociale ""Agiudu torrau"" annualita 2018 - PRIORITA' 3 - mensilita Giugno 2019";01/07/2019;6693;0;289;1;Spese correnti;4;Trasferimenti correnti;2;Trasferimenti correnti a Famiglie;2;Interventi assistenziali;999;Altri assegni e sussidi assistenziali;01/07/2019
1252;1;0;300;300;NOMINATIVO OMESSO PER PRIVACY; ;"Liquidazione di spesa preventivamente impegnata per L.R. n. 18/2016. REIS - Reddito Inclusione Sociale ""Agiudu torrau"" annualita 2018 - PRIORITA' 3 - mensilita Giugno 2019";01/07/2019;6693;0;289;1;Spese correnti;4;Trasferimenti correnti;2;Trasferimenti correnti a Famiglie;2;Interventi assistenziali;999;Altri assegni e sussidi assistenziali;01/07/2019
1253;1;0;400;400;NOMINATIVO OMESSO PER PRIVACY; ;"Liquidazione di spesa preventivamente impegnata per L.R. n. 18/2016. REIS - Reddito Inclusione Sociale ""Agiudu torrau"" annualita 2018 - PRIORITA' 3 - mensilita Giugno 2019";01/07/2019;6693;0;289;1;Spese correnti;4;Trasferimenti correnti;2;Trasferimenti correnti a Famiglie;2;Interventi assistenziali;999;Altri assegni e sussidi assistenziali;01/07/2019
1254;1;0;300;300;NOMINATIVO OMESSO PER PRIVACY; ;"Liquidazione di spesa preventivamente impegnata per L.R. n. 18/2016. REIS - Reddito Inclusione Sociale ""Agiudu torrau"" annualita 2018 - PRIORITA' 3 - mensilita Giugno 2019";01/07/2019;6693;0;152;1;Spese correnti;4;Trasferimenti correnti;2;Trasferimenti correnti a Famiglie;2;Interventi assistenziali;999;Altri assegni e sussidi assistenziali;01/07/2019
1255;1;0;300;300;NOMINATIVO OMESSO PER PRIVACY; ;"Liquidazione di spesa preventivamente impegnata per L.R. n. 18/2016. REIS - Reddito Inclusione Sociale ""Agiudu torrau"" annualita 2018 - PRIORITA' 3 - mensilita Giugno 2019";01/07/2019;6693;0;152;1;Spese correnti;4;Trasferimenti correnti;2;Trasferimenti correnti a Famiglie;2;Interventi assistenziali;999;Altri assegni e sussidi assistenziali;01/07/2019
1257;1;0;500;500;NOMINATIVO OMESSO PER PRIVACY; ;"Liquidazione di spesa preventivamente impegnata per L.R. n. 18/2016. REIS - Reddito Inclusione Sociale ""Agiudu torrau"" annualita 2018 - PRIORITA' 3 - mensilita Giugno 2019";02/07/2019;6693;0;152;1;Spese correnti;4;Trasferimenti correnti;2;Trasferimenti correnti a Famiglie;2;Interventi assistenziali;999;Altri assegni e sussidi assistenziali;02/07/2019
1258;1;0;500;500;NOMINATIVO OMESSO PER PRIVACY; ;"Liquidazione di spesa preventivamente impegnata per L.R. n. 18/2016. REIS - Reddito Inclusione Sociale ""Agiudu torrau"" annualita 2018 - PRIORITA' 3 - mensilita Giugno 2019";02/07/2019;6693;0;152;1;Spese correnti;4;Trasferimenti correnti;2;Trasferimenti correnti a Famiglie;2;Interventi assistenziali;999;Altri assegni e sussidi assistenziali;02/07/2019
1259;1;0;400;400;NOMINATIVO OMESSO PER PRIVACY; ;"Liquidazione di spesa preventivamente impegnata per L.R. n. 18/2016. REIS - Reddito Inclusione Sociale ""Agiudu torrau"" annualita 2018 - PRIORITA' 3 - mensilita Giugno 2019";02/07/2019;6693;0;152;1;Spese correnti;4;Trasferimenti correnti;2;Trasferimenti correnti a Famiglie;2;Interventi assistenziali;999;Altri assegni e sussidi assistenziali;02/07/2019
1260;1;0;840;840;NOMINATIVO OMESSO PER PRIVACY; ;"Liquidazione di spesa preventivamente impegnata per L.R. n. 18/2016. REIS - Reddito Inclusione Sociale ""Agiudu torrau"" annualita 2018 - PRIORITA' 3 - mensilita Giugno 2019";02/07/2019;6693;0;152;1;Spese correnti;4;Trasferimenti correnti;2;Trasferimenti correnti a Famiglie;2;Interventi assistenziali;999;Altri assegni e sussidi assistenziali;02/07/2019
1261;1;0;300;300;NOMINATIVO OMESSO PER PRIVACY; ;"Liquidazione di spesa preventivamente impegnata per L.R. n. 18/2016. REIS - Reddito Inclusione Sociale ""Agiudu torrau"" annualita 2018 - PRIORITA' 3 - mensilita Giugno 2019";02/07/2019;6693;0;152;1;Spese correnti;4;Trasferimenti correnti;2;Trasferimenti correnti a Famiglie;2;Interventi assistenziali;999;Altri assegni e sussidi assistenziali;02/07/2019
1262;1;0;300;300;NOMINATIVO OMESSO PER PRIVACY; ;"Liquidazione di spesa preventivamente impegnata per L.R. n. 18/2016. REIS - Reddito Inclusione Sociale ""Agiudu torrau"" annualita 2018 - PRIORITA' 3 - mensilita Giugno 2019";02/07/2019;6693;0;152;1;Spese correnti;4;Trasferimenti correnti;2;Trasferimenti correnti a Famiglie;2;Interventi assistenziali;999;Altri assegni e sussidi assistenziali;02/07/2019
1263;1;0;300;300;NOMINATIVO OMESSO PER PRIVACY; ;"Liquidazione di spesa preventivamente impegnata per L.R. n. 18/2016. REIS - Reddito Inclusione Sociale ""Agiudu torrau"" annualita 2018 - PRIORITA' 3 - mensilita Giugno 2019";02/07/2019;6693;0;152;1;Spese correnti;4;Trasferimenti correnti;2;Trasferimenti correnti a Famiglie;2;Interventi assistenziali;999;Altri assegni e sussidi assistenziali;02/07/2019
1264;1;0;200;200;NOMINATIVO OMESSO PER PRIVACY; ;"Liquidazione di spesa preventivamente impegnata per L.R. n. 18/2016. REIS - Reddito Inclusione Sociale ""Agiudu torrau"" annualita 2018 - PRIORITA' 3 - mensilita Giugno 2019";02/07/2019;6693;0;152;1;Spese correnti;4;Trasferimenti correnti;2;Trasferimenti correnti a Famiglie;2;Interventi assistenziali;999;Altri assegni e sussidi assistenziali;02/07/2019
1265;1;0;90;90;NOMINATIVO OMESSO PER PRIVACY; ;"Liquidazione di spesa preventivamente impegnata per L.R. n. 18/2016. REIS - Reddito Inclusione Sociale ""Agiudu torrau"" annualita 2018 - PRIORITA' 3 - mensilita Giugno 2019";02/07/2019;6693;0;289;1;Spese correnti;4;Trasferimenti correnti;2;Trasferimenti correnti a Famiglie;2;Interventi assistenziali;999;Altri assegni e sussidi assistenziali;02/07/2019
1266;1;0;60;60;NOMINATIVO OMESSO PER PRIVACY; ;"Liquidazione di spesa preventivamente impegnata per L.R. n. 18/2016. REIS - Reddito Inclusione Sociale ""Agiudu torrau"" annualita 2018 - PRIORITA' 3 - mensilita Giugno 2019";02/07/2019;6693;0;289;1;Spese correnti;4;Trasferimenti correnti;2;Trasferimenti correnti a Famiglie;2;Interventi assistenziali;999;Altri assegni e sussidi assistenziali;02/07/2019
1267;1;0;120;120;NOMINATIVO OMESSO PER PRIVACY; ;"Liquidazione di spesa preventivamente impegnata per L.R. n. 18/2016. REIS - Reddito Inclusione Sociale ""Agiudu torrau"" annualita 2018 - PRIORITA' 3 - mensilita Giugno 2019";02/07/2019;6693;0;289;1;Spese correnti;4;Trasferimenti correnti;2;Trasferimenti correnti a Famiglie;2;Interventi assistenziali;999;Altri assegni e sussidi assistenziali;02/07/2019
1268;1;0;150;150;NOMINATIVO OMESSO PER PRIVACY; ;"Liquidazione di spesa preventivamente impegnata per L.R. n. 18/2016. REIS - Reddito Inclusione Sociale ""Agiudu torrau"" annualita 2018 - PRIORITA' 3 - mensilita Giugno 2019";02/07/2019;6693;0;289;1;Spese correnti;4;Trasferimenti correnti;2;Trasferimenti correnti a Famiglie;2;Interventi assistenziali;999;Altri assegni e sussidi assistenziali;02/07/2019
1269;1;0;120;120;NOMINATIVO OMESSO PER PRIVACY; ;"Liquidazione di spesa preventivamente impegnata per L.R. n. 18/2016. REIS - Reddito Inclusione Sociale ""Agiudu torrau"" annualita 2018 - PRIORITA' 3 - mensilita Giugno 2019";02/07/2019;6693;0;289;1;Spese correnti;4;Trasferimenti correnti;2;Trasferimenti correnti a Famiglie;2;Interventi assistenziali;999;Altri assegni e sussidi assistenziali;02/07/2019
1270;1;0;150;150;NOMINATIVO OMESSO PER PRIVACY; ;"Liquidazione di spesa preventivamente impegnata per L.R. n. 18/2016. REIS - Reddito Inclusione Sociale ""Agiudu torrau"" annualita 2018 - PRIORITA' 3 - mensilita Giugno 2019";02/07/2019;6693;0;289;1;Spese correnti;4;Trasferimenti correnti;2;Trasferimenti correnti a Famiglie;2;Interventi assistenziali;999;Altri assegni e sussidi assistenziali;02/07/2019
1271;1;0;120;120;NOMINATIVO OMESSO PER PRIVACY; ;"Liquidazione di spesa preventivamente impegnata per L.R. n. 18/2016. REIS - Reddito Inclusione Sociale ""Agiudu torrau"" annualita 2018 - PRIORITA' 3 - mensilita Giugno 2019";02/07/2019;6693;0;289;1;Spese correnti;4;Trasferimenti correnti;2;Trasferimenti correnti a Famiglie;2;Interventi assistenziali;999;Altri assegni e sussidi assistenziali;02/07/2019
1272;1;0;90;90;NOMINATIVO OMESSO PER PRIVACY; ;"Liquidazione di spesa preventivamente impegnata per L.R. n. 18/2016. REIS - Reddito Inclusione Sociale ""Agiudu torrau"" annualita 2018 - PRIORITA' 3 - mensilita Giugno 2019";02/07/2019;6693;0;289;1;Spese correnti;4;Trasferimenti correnti;2;Trasferimenti correnti a Famiglie;2;Interventi assistenziali;999;Altri assegni e sussidi assistenziali;02/07/2019
1273;1;0;90;90;NOMINATIVO OMESSO PER PRIVACY; ;"Liquidazione di spesa preventivamente impegnata per L.R. n. 18/2016. REIS - Reddito Inclusione Sociale ""Agiudu torrau"" annualita 2018 - PRIORITA' 3 - mensilita Giugno 2019";02/07/2019;6693;0;289;1;Spese correnti;4;Trasferimenti correnti;2;Trasferimenti correnti a Famiglie;2;Interventi assistenziali;999;Altri assegni e sussidi assistenziali;02/07/2019
1274;1;0;150;150;NOMINATIVO OMESSO PER PRIVACY; ;"Liquidazione di spesa preventivamente impegnata per L.R. n. 18/2016. REIS - Reddito Inclusione Sociale ""Agiudu torrau"" annualita 2018 - PRIORITA' 3 - mensilita Giugno 2019";02/07/2019;6693;0;289;1;Spese correnti;4;Trasferimenti correnti;2;Trasferimenti correnti a Famiglie;2;Interventi assistenziali;999;Altri assegni e sussidi assistenziali;02/07/2019
1275;1;0;60;60;NOMINATIVO OMESSO PER PRIVACY; ;"Liquidazione di spesa preventivamente impegnata per L.R. n. 18/2016. REIS - Reddito Inclusione Sociale ""Agiudu torrau"" annualita 2018 - PRIORITA' 3 - mensilita Giugno 2019";02/07/2019;6693;0;289;1;Spese correnti;4;Trasferimenti correnti;2;Trasferimenti correnti a Famiglie;2;Interventi assistenziali;999;Altri assegni e sussidi assistenziali;02/07/2019
1276;1;0;90;90;NOMINATIVO OMESSO PER PRIVACY; ;"Liquidazione di spesa preventivamente impegnata per L.R. n. 18/2016. REIS - Reddito Inclusione Sociale ""Agiudu torrau"" annualita 2018 - PRIORITA' 3 - mensilita Giugno 2019";02/07/2019;6693;0;289;1;Spese correnti;4;Trasferimenti correnti;2;Trasferimenti correnti a Famiglie;2;Interventi assistenziali;999;Altri assegni e sussidi assistenziali;02/07/2019
1277;1;0;2.977,56;2.977,56;BFREE COOP. DI SOLIDARIETA SOCIALE ARL;72001908BF;SALDO Fatt.n. 2/48  del 03/06/2019  PASTI ALUNNI SCUOLA DELL'INFANZIA;02/07/2019;2810;0;300;1;Spese correnti;3;Acquisto di beni e servizi;2;Acquisto di servizi;14;Servizi di ristorazione;999;Altri servizi di ristorazione;02/07/2019
1278;1;0;107,59;107,59;BFREE COOP. DI SOLIDARIETA SOCIALE ARL;72001908BF;ACCONTO Fatt.n. 2/55  del 24/06/2019 PASTI ALUNNI SCUOLA DELL'INFANZIA;02/07/2019;2810;0;300;1;Spese correnti;3;Acquisto di beni e servizi;2;Acquisto di servizi;14;Servizi di ristorazione;999;Altri servizi di ristorazione;02/07/2019
1279;1;0;1.187,00;1.187,00;BFREE COOP. DI SOLIDARIETA SOCIALE ARL;72001908BF;SALDO Fatt.n. 2/55  del 24/06/2019 PASTI ALUNNI SCUOLA DELL'INFANZIA;02/07/2019;6666;0;64;1;Spese correnti;4;Trasferimenti correnti;2;Trasferimenti correnti a Famiglie;2;Interventi assistenziali;999;Altri assegni e sussidi assistenziali;02/07/2019
1280;1;0;22.688,10;22.688,10;CO.ME.S. Cooperativa Mediateche Sarde a r.l.;7671745C3D;SALDO Fatt.n. 58  del 12/06/2019 Servizio Gestione del Sistema Bibliotecario del Coros Figulinas periodo maggio 2019;02/07/2019;3782;0;391;1;Spese correnti;3;Acquisto di beni e servizi;2;Acquisto di servizi;99;Altri servizi;999;Altri servizi diversi n.a.c.;02/07/2019
1281;1;0;578,3;578,3;CONSORZIO LA SORGENTE;Z8725DCDC1;SALDO Fatt.n. 3/167  del 24/06/2019 GRUPPO SOSTEGNO ALLO STUDIO;02/07/2019;6666;24;341;1;Spese correnti;3;Acquisto di beni e servizi;2;Acquisto di servizi;99;Altri servizi;999;Altri servizi diversi n.a.c.;02/07/2019
1282;1;0;4.959,73;4.959,73;CONSORZIO LA SORGENTE;7312004894;SALDO Fatt.n. 3/165  del 24/06/2019 SEGRETARIATO SOCIALE;02/07/2019;6666;24;378;1;Spese correnti;3;Acquisto di beni e servizi;2;Acquisto di servizi;99;Altri servizi;999;Altri servizi diversi n.a.c.;02/07/2019
1283;1;0;1.081,52;1.081,52;CONSORZIO LA SORGENTE;7312004894;ACCONTO Fatt.n. 3/166  del 24/06/2019 ASS.ZA SCOLAST.05/19;02/07/2019;3569;0;379;1;Spese correnti;4;Trasferimenti correnti;2;Trasferimenti correnti a Famiglie;5;Altri trasferimenti a famiglie;999;Altri trasferimenti a famiglie n.a.c.;02/07/2019
1284;1;0;1.650,02;1.650,02;CONSORZIO LA SORGENTE;7312004894;SALDO Fatt.n. 3/166  del 24/06/2019 ASS.ZA SCOLAST.05/19;02/07/2019;6666;24;378;1;Spese correnti;3;Acquisto di beni e servizi;2;Acquisto di servizi;99;Altri servizi;999;Altri servizi diversi n.a.c.;02/07/2019
1285;1;0;392,08;392,08;G.P. GLOBAL POWER;622385037F;ACCONTO Fatt.n. V0/79703  del 04/06/2019 Fattura Energia Elettrica;02/07/2019;3788;0;65;1;Spese correnti;3;Acquisto di beni e servizi;2;Acquisto di servizi;5;Utenze e canoni;4;Energia elettrica;02/07/2019
1286;1;0;672,39;672,39;G.P. GLOBAL POWER;622385037F;ACCONTO Fatt.n. V0/79703  del 04/06/2019 Fattura Energia Elettrica;02/07/2019;3996;0;66;1;Spese correnti;3;Acquisto di beni e servizi;2;Acquisto di servizi;5;Utenze e canoni;4;Energia elettrica;02/07/2019
1287;1;0;47,04;47,04;G.P. GLOBAL POWER;622385037F;ACCONTO Fatt.n. V0/79703  del 04/06/2019 Fattura Energia Elettrica;02/07/2019;5452;0;67;1;Spese correnti;3;Acquisto di beni e servizi;2;Acquisto di servizi;5;Utenze e canoni;4;Energia elettrica;02/07/2019
1288;1;0;67,06;67,06;G.P. GLOBAL POWER;622385037F;ACCONTO Fatt.n. V0/79703  del 04/06/2019 Fattura Energia Elettrica;02/07/2019;5837;0;72;1;Spese correnti;3;Acquisto di beni e servizi;2;Acquisto di servizi;5;Utenze e canoni;4;Energia elettrica;02/07/2019
1289;1;0;110,95;110,95;G.P. GLOBAL POWER;622385037F;ACCONTO Fatt.n. V0/79703  del 04/06/2019 Fattura Energia Elettrica;02/07/2019;6666;8;73;1;Spese correnti;3;Acquisto di beni e servizi;2;Acquisto di servizi;99;Altri servizi;999;Altri servizi diversi n.a.c.;02/07/2019
1290;1;0;646,81;646,81;G.P. GLOBAL POWER;622385037F;ACCONTO Fatt.n. V0/79703  del 04/06/2019 Fattura Energia Elettrica;02/07/2019;460;0;71;1;Spese correnti;3;Acquisto di beni e servizi;2;Acquisto di servizi;5;Utenze e canoni;4;Energia elettrica;02/07/2019
1291;1;0;2.972,90;2.972,90;G.P. GLOBAL POWER;622385037F;SALDO Fatt.n. V0/79702  del 04/06/2019 Fattura Energia Elettrica;02/07/2019;4146;0;68;1;Spese correnti;3;Acquisto di beni e servizi;2;Acquisto di servizi;5;Utenze e canoni;4;Energia elettrica;02/07/2019
1292;1;0;51,81;51,81;G.P. GLOBAL POWER;622385037F;ACCONTO Fatt.n. V0/79701  del 04/06/2019 Fattura Energia Elettrica;02/07/2019;460;0;71;1;Spese correnti;3;Acquisto di beni e servizi;2;Acquisto di servizi;5;Utenze e canoni;4;Energia elettrica;02/07/2019
1293;1;0;295,72;295,72;G.P. GLOBAL POWER;622385037F;ACCONTO Fatt.n. V0/79704  del 04/06/2019 Fattura Energia Elettrica;02/07/2019;2815;0;69;1;Spese correnti;3;Acquisto di beni e servizi;2;Acquisto di servizi;5;Utenze e canoni;4;Energia elettrica;02/07/2019
1294;1;0;85,44;85,44;G.P. GLOBAL POWER;622385037F;ACCONTO Fatt.n. V0/79704  del 04/06/2019 Fattura Energia Elettrica;02/07/2019;3040;0;70;1;Spese correnti;3;Acquisto di beni e servizi;2;Acquisto di servizi;5;Utenze e canoni;4;Energia elettrica;02/07/2019
1295;1;0;147,74;147,74;G.P. GLOBAL POWER;622385037F;ACCONTO Fatt.n. V0/79704  del 04/06/2019 Fattura Energia Elettrica;02/07/2019;3300;0;80;1;Spese correnti;3;Acquisto di beni e servizi;2;Acquisto di servizi;5;Utenze e canoni;4;Energia elettrica;02/07/2019
1296;1;0;654,04;654,04;G.P. GLOBAL POWER;622385037F;SALDO Fatt.n. V0/79702  del 04/06/2019 Fattura Energia Elettrica;02/07/2019;4146;0;68;1;Spese correnti;3;Acquisto di beni e servizi;2;Acquisto di servizi;5;Utenze e canoni;4;Energia elettrica;02/07/2019
1297;1;0;425,99;425,99;G.P. GLOBAL POWER;622385037F;SALDO Fatt.n. V0/79703  del 04/06/2019 Fattura Energia Elettrica;02/07/2019;460;0;71;1;Spese correnti;3;Acquisto di beni e servizi;2;Acquisto di servizi;5;Utenze e canoni;4;Energia elettrica;02/07/2019
1298;1;0;11,4;11,4;G.P. GLOBAL POWER;622385037F;SALDO Fatt.n. V0/79701  del 04/06/2019 Fattura Energia Elettrica;02/07/2019;460;0;71;1;Spese correnti;3;Acquisto di beni e servizi;2;Acquisto di servizi;5;Utenze e canoni;4;Energia elettrica;02/07/2019
1299;1;0;52,89;52,89;G.P. GLOBAL POWER;622385037F;SALDO Fatt.n. V0/79704  del 04/06/2019 Fattura Energia Elettrica;02/07/2019;2815;0;69;1;Spese correnti;3;Acquisto di beni e servizi;2;Acquisto di servizi;5;Utenze e canoni;4;Energia elettrica;02/07/2019
1300;1;0;49,19;49,19;POSTE ITALIANE S.P.A.; ;SPESE BANCO POSTA CC N. 12329074 MESE DI MARZO;02/07/2019;540;0;0;1;Spese correnti;3;Acquisto di beni e servizi;2;Acquisto di servizi;17;Servizi finanziari;1;Commissioni per servizi finanziari;02/07/2019
1301;1;0;201,41;201,41;MINISTERO DELL'INTERNO; ;Versamento al Ministero dell' Interno dei diritti relativi alle carte d' identita elettroniche emesse - 2 versamento Mese di Giugno 2019;03/07/2019;939;0;211;1;Spese correnti;4;Trasferimenti correnti;1;Trasferimenti correnti a Amministrazioni Pubbliche;1;Trasferimenti correnti a Amministrazioni Centrali;1;Trasferimenti correnti a Ministeri;03/07/2019
1302;1;0;1.860,50;1.860,50;HALLEY SARDEGNA S.R.L.;ZFE26F3921;SALDO Fatt.n. 0000830  del 28/06/2019 CANONE ASSISTENZA TECNICO SISTEMISTICA-amministratore di sistema;03/07/2019;460;1;50;1;Spese correnti;3;Acquisto di beni e servizi;2;Acquisto di servizi;19;Servizi informatici e di telecomunicazioni;999;Altri servizi informatici e di telecomunicazioni n.a.c.;03/07/2019
1303;1;0;1.406,00;1.406,00;L.I.D.A. o.n.l.u.s. Sezione Regionale di Sassari; ;il rimborso alla L.I.D.A. ONLUS di Sassari delle spese  sostenute per il mantenimento, ricovero e cura dei cani randagi.3 ^ bimestre 2019.;03/07/2019;4520;0;406;1;Spese correnti;4;Trasferimenti correnti;4;Trasferimenti correnti a Istituzioni Sociali Private;1;Trasferimenti correnti a Istituzioni Sociali Private;1;Trasferimenti correnti a Istituzioni Sociali Private;03/07/2019
1304;1;0;1.598,34;1.598,34;CASSA DEPOSITI E PRESTITI; ;Interessi passivi su mutui;04/07/2019;3350;0;213;1;Spese correnti;7;Interessi passivi;5;Interessi su Mutui e altri finanziamenti a medio lungo termine;5;Interessi passivi su mutui e altri finanziamenti a medio lungo termine ad altri soggetti;999;Interessi passivi su mutui e altri finanziamenti a medio lungo termine ad altri soggetti;04/07/2019
1305;1;0;1.411,34;1.411,34;CASSA DEPOSITI E PRESTITI; ;interessi passivi su mutui;04/07/2019;4010;0;216;1;Spese correnti;7;Interessi passivi;5;Interessi su Mutui e altri finanziamenti a medio lungo termine;5;Interessi passivi su mutui e altri finanziamenti a medio lungo termine ad altri soggetti;999;Interessi passivi su mutui e altri finanziamenti a medio lungo termine ad altri soggetti;04/07/2019
1306;1;0;77,36;77,36;CASSA DEPOSITI E PRESTITI; ;interessi passivi su mutui;04/07/2019;7096;0;218;1;Spese correnti;7;Interessi passivi;5;Interessi su Mutui e altri finanziamenti a medio lungo termine;5;Interessi passivi su mutui e altri finanziamenti a medio lungo termine ad altri soggetti;999;Interessi passivi su mutui e altri finanziamenti a medio lungo termine ad altri soggetti;04/07/2019
1307;1;0;503,78;503,78;CASSA DEPOSITI E PRESTITI; ;interessi passivi su mutui;04/07/2019;4150;0;214;1;Spese correnti;7;Interessi passivi;5;Interessi su Mutui e altri finanziamenti a medio lungo termine;5;Interessi passivi su mutui e altri finanziamenti a medio lungo termine ad altri soggetti;999;Interessi passivi su mutui e altri finanziamenti a medio lungo termine ad altri soggetti;04/07/2019
1308;1;0;84,4;84,4;CASSA DEPOSITI E PRESTITI; ;interessi passivi su mutui;04/07/2019;3798;0;215;1;Spese correnti;7;Interessi passivi;5;Interessi su Mutui e altri finanziamenti a medio lungo termine;5;Interessi passivi su mutui e altri finanziamenti a medio lungo termine ad altri soggetti;999;Interessi passivi su mutui e altri finanziamenti a medio lungo termine ad altri soggetti;04/07/2019
1309;1;0;868,54;868,54;CASSA DEPOSITI E PRESTITI; ;interessi passivi su mutui;04/07/2019;4420;0;217;1;Spese correnti;7;Interessi passivi;5;Interessi su Mutui e altri finanziamenti a medio lungo termine;5;Interessi passivi su mutui e altri finanziamenti a medio lungo termine ad altri soggetti;999;Interessi passivi su mutui e altri finanziamenti a medio lungo termine ad altri soggetti;04/07/2019
1312;1;0;1;1;BANCO DI SARDEGNA S.P.A.; ;spese per addebito rid;05/07/2019;540;0;194;1;Spese correnti;3;Acquisto di beni e servizi;2;Acquisto di servizi;17;Servizi finanziari;1;Commissioni per servizi finanziari;05/07/2019
1313;1;0;1;1;BANCO DI SARDEGNA S.P.A.; ;spese per addebito rid;05/07/2019;540;0;194;1;Spese correnti;3;Acquisto di beni e servizi;2;Acquisto di servizi;17;Servizi finanziari;1;Commissioni per servizi finanziari;05/07/2019
1314;1;0;1;1;BANCO DI SARDEGNA S.P.A.; ;spese per addebito rid;05/07/2019;540;0;194;1;Spese correnti;3;Acquisto di beni e servizi;2;Acquisto di servizi;17;Servizi finanziari;1;Commissioni per servizi finanziari;05/07/2019
1315;1;0;1;1;BANCO DI SARDEGNA S.P.A.; ;spese per addebito rid;05/07/2019;540;0;194;1;Spese correnti;3;Acquisto di beni e servizi;2;Acquisto di servizi;17;Servizi finanziari;1;Commissioni per servizi finanziari;05/07/2019
1316;1;0;1;1;BANCO DI SARDEGNA S.P.A.; ;spese per addebito rid;05/07/2019;540;0;194;1;Spese correnti;3;Acquisto di beni e servizi;2;Acquisto di servizi;17;Servizi finanziari;1;Commissioni per servizi finanziari;05/07/2019
1317;1;0;1;1;BANCO DI SARDEGNA S.P.A.; ;spese per addebito rid;05/07/2019;540;0;194;1;Spese correnti;3;Acquisto di beni e servizi;2;Acquisto di servizi;17;Servizi finanziari;1;Commissioni per servizi finanziari;05/07/2019
1318;1;0;1;1;BANCO DI SARDEGNA S.P.A.; ;spese per addebito rid;05/07/2019;540;0;194;1;Spese correnti;3;Acquisto di beni e servizi;2;Acquisto di servizi;17;Servizi finanziari;1;Commissioni per servizi finanziari;05/07/2019
1319;1;0;1;1;BANCO DI SARDEGNA S.P.A.; ;spese per addebito rid;05/07/2019;540;0;194;1;Spese correnti;3;Acquisto di beni e servizi;2;Acquisto di servizi;17;Servizi finanziari;1;Commissioni per servizi finanziari;05/07/2019
1320;1;0;1;1;BANCO DI SARDEGNA S.P.A.; ;spese per addebito rid;05/07/2019;540;0;194;1;Spese correnti;3;Acquisto di beni e servizi;2;Acquisto di servizi;17;Servizi finanziari;1;Commissioni per servizi finanziari;05/07/2019
1321;1;0;1;1;BANCO DI SARDEGNA S.P.A.; ;spese per addebito rid;05/07/2019;540;0;194;1;Spese correnti;3;Acquisto di beni e servizi;2;Acquisto di servizi;17;Servizi finanziari;1;Commissioni per servizi finanziari;05/07/2019
1322;1;0;1;1;BANCO DI SARDEGNA S.P.A.; ;spese per addebito rid;05/07/2019;540;0;194;1;Spese correnti;3;Acquisto di beni e servizi;2;Acquisto di servizi;17;Servizi finanziari;1;Commissioni per servizi finanziari;05/07/2019
1323;1;0;1;1;BANCO DI SARDEGNA S.P.A.; ;spese per addebito rid;05/07/2019;540;0;194;1;Spese correnti;3;Acquisto di beni e servizi;2;Acquisto di servizi;17;Servizi finanziari;1;Commissioni per servizi finanziari;05/07/2019
1324;1;0;1;1;BANCO DI SARDEGNA S.P.A.; ;spese per addebito rid;05/07/2019;540;0;194;1;Spese correnti;3;Acquisto di beni e servizi;2;Acquisto di servizi;17;Servizi finanziari;1;Commissioni per servizi finanziari;05/07/2019
1325;1;0;1;1;BANCO DI SARDEGNA S.P.A.; ;spese per addebito rid;05/07/2019;540;0;194;1;Spese correnti;3;Acquisto di beni e servizi;2;Acquisto di servizi;17;Servizi finanziari;1;Commissioni per servizi finanziari;05/07/2019
1326;1;0;1;1;BANCO DI SARDEGNA S.P.A.; ;spese per addebito rid;05/07/2019;540;0;194;1;Spese correnti;3;Acquisto di beni e servizi;2;Acquisto di servizi;17;Servizi finanziari;1;Commissioni per servizi finanziari;05/07/2019
1327;1;0;1;1;BANCO DI SARDEGNA S.P.A.; ;spese per addebito rid;05/07/2019;540;0;194;1;Spese correnti;3;Acquisto di beni e servizi;2;Acquisto di servizi;17;Servizi finanziari;1;Commissioni per servizi finanziari;05/07/2019
1328;1;0;1;1;BANCO DI SARDEGNA S.P.A.; ;spese per addebito rid;05/07/2019;540;0;194;1;Spese correnti;3;Acquisto di beni e servizi;2;Acquisto di servizi;17;Servizi finanziari;1;Commissioni per servizi finanziari;05/07/2019
1329;1;0;61,57;61,57;POSTE ITALIANE S.P.A.; ;SPESE BANCO POSTA CC N. 12329074 MESE DI APRILE;05/07/2019;540;0;0;1;Spese correnti;3;Acquisto di beni e servizi;2;Acquisto di servizi;17;Servizi finanziari;1;Commissioni per servizi finanziari;05/07/2019
1331;1;0;1.539,28;1.539,28;CASSA EDILE DEL NORD SARDEGNA; ;-Rimborsi oneri relativi a permessi per mandato amministrativo ai sensi degli artt. 79 e 80 del D.Lgs 18.08.2000 n 267- liquidazione  di spesa  periodo aprile -giugno;08/07/2019;40;0;162;1;Spese correnti;3;Acquisto di beni e servizi;2;Acquisto di servizi;1;Organi e incarichi istituzionali dell'amministrazione;2;Organi istituzionali dell'amministrazione - Rimborsi;08/07/2019
1332;1;0;1.907,01;1.907,01;ANTIGNANO ORESTE ANTONIO; ;SALDO Fatt.n. FPA 2/19  del 02/07/2019 VOSTRO DARE PER COMPENSO QUALE ORGANO DI REVISIONE, EX ART. 241 E TAB. A DEL T.U.E.L. - I ACC.TO 2019;08/07/2019;80;0;274;1;Spese correnti;3;Acquisto di beni e servizi;2;Acquisto di servizi;1;Organi e incarichi istituzionali dell'amministrazione;8;Compensi agli organi istituzionali di revisione, di controllo ed altri incarichi istituzionali dell'amministrazione;08/07/2019
1333;1;0;8.400,00;8.400,00;ASSOCIAZIONE TURISTICA PRO LOCO; ;"Concessione contributo straordinario all'  Associazione Turistica Pro Loco Tissi per l'organizzazione   delliniziativa denominata ""Tissi: informazione, educazione e prevenzione- Appuntamenti con la nostra salute"" . Impegno di spesa e liquidazione acc";09/07/2019;6666;31;224;1;Spese correnti;4;Trasferimenti correnti;4;Trasferimenti correnti a Istituzioni Sociali Private;1;Trasferimenti correnti a Istituzioni Sociali Private;1;Trasferimenti correnti a Istituzioni Sociali Private;09/07/2019
1334;1;0;6.090,00;6.090,00;ASSOCIAZIONE TURISTICA PRO LOCO; ;Estatissima 2019- Impegno di spesa e liquidazione anticipazione all'Associazione Turistica Pro Loco   di Tissi;09/07/2019;3800;0;226;1;Spese correnti;4;Trasferimenti correnti;4;Trasferimenti correnti a Istituzioni Sociali Private;1;Trasferimenti correnti a Istituzioni Sociali Private;1;Trasferimenti correnti a Istituzioni Sociali Private;09/07/2019
1335;1;0;22.688,10;22.688,10;CO.ME.S. Cooperativa Mediateche Sarde a r.l.;7671745C3D;SALDO Fatt.n. 71  del 04/07/2019 Tissi // Servizio Gestione del Sistema Bibliotecario del Coros Figulinas periodo giugno 2019;09/07/2019;3782;0;391;1;Spese correnti;3;Acquisto di beni e servizi;2;Acquisto di servizi;99;Altri servizi;999;Altri servizi diversi n.a.c.;09/07/2019
1337;1;0;398,94;398,94;R.H. IMPIANTI DI RAHAMANI HAMIDREZA;ZA628A32E1;SALDO Fatt.n. 69  del 02/07/2019 Servizio di manutenzione ordinaria e straordinaria impianto illuminazione pubblica del centro abitato di Tissi;10/07/2019;4144;0;195;1;Spese correnti;3;Acquisto di beni e servizi;2;Acquisto di servizi;15;Contratti di servizio pubblico;15;Contratti di servizio per l'illuminazione pubblica;10/07/2019
1338;1;0;3.466,39;3.466,39;STINCHEDDU PATRIZIO;ZA028F4367;SALDO Fatt.n. 15/19  del 03/07/2019 DARE PER INTERVENTO DI SFALCIO ERBACCE PER LA PULIZIA DELLE STRADE E DEI FRONTI DEI TERRENI COMUNALI. CAMPAGNA ANTINCENDIO 2019. LAVORI ESEGUITI CON TRATTORE CON BRACCIO MECCANICO E CON DECESPUGLIATORE CON OPERATOR;10/07/2019;454;0;210;1;Spese correnti;3;Acquisto di beni e servizi;2;Acquisto di servizi;9;Manutenzione ordinaria e riparazioni;12;Manutenzione ordinaria e riparazioni di terreni e beni materiali non prodotti;10/07/2019
1339;1;0;730,77;730,77;NOMINATIVO OMESSO PER PRIVACY; ;per Piani personalizzati L. 162/98 gestione 2018 annualita 2019,  periodo  Giugno 2019;11/07/2019;7038;0;55;1;Spese correnti;4;Trasferimenti correnti;2;Trasferimenti correnti a Famiglie;5;Altri trasferimenti a famiglie;999;Altri trasferimenti a famiglie n.a.c.;11/07/2019
1340;1;0;340,96;340,96;NOMINATIVO OMESSO PER PRIVACY; ;per Piani personalizzati L. 162/98 gestione 2018 annualita 2019,  periodo  Giugno 2019;11/07/2019;7038;0;55;1;Spese correnti;4;Trasferimenti correnti;2;Trasferimenti correnti a Famiglie;5;Altri trasferimenti a famiglie;999;Altri trasferimenti a famiglie n.a.c.;11/07/2019
1341;1;0;375;375;NOMINATIVO OMESSO PER PRIVACY; ;per Piani personalizzati L. 162/98 gestione 2018 annualita 2019,  periodo  Giugno 2019;11/07/2019;7038;0;55;1;Spese correnti;4;Trasferimenti correnti;2;Trasferimenti correnti a Famiglie;5;Altri trasferimenti a famiglie;999;Altri trasferimenti a famiglie n.a.c.;11/07/2019
1342;1;0;172;172;NOMINATIVO OMESSO PER PRIVACY; ;per Piani personalizzati L. 162/98 gestione 2018 annualita 2019,  periodo  Giugno 2019;11/07/2019;7038;0;55;1;Spese correnti;4;Trasferimenti correnti;2;Trasferimenti correnti a Famiglie;5;Altri trasferimenti a famiglie;999;Altri trasferimenti a famiglie n.a.c.;11/07/2019
1343;1;0;341,25;341,25;NOMINATIVO OMESSO PER PRIVACY; ;per Piani personalizzati L. 162/98 gestione 2018 annualita 2019,  periodo  Giugno 2019;11/07/2019;7038;0;55;1;Spese correnti;4;Trasferimenti correnti;2;Trasferimenti correnti a Famiglie;5;Altri trasferimenti a famiglie;999;Altri trasferimenti a famiglie n.a.c.;11/07/2019
1344;1;0;1.108,02;1.108,02;NOMINATIVO OMESSO PER PRIVACY; ;per Piani personalizzati L. 162/98 gestione 2018 annualita 2019,  periodo  Giugno 2019;11/07/2019;7038;0;55;1;Spese correnti;4;Trasferimenti correnti;2;Trasferimenti correnti a Famiglie;5;Altri trasferimenti a famiglie;999;Altri trasferimenti a famiglie n.a.c.;11/07/2019
1345;1;0;194,79;194,79;NOMINATIVO OMESSO PER PRIVACY; ;per Piani personalizzati L. 162/98 gestione 2018 annualita 2019,  periodo  Giugno 2019;11/07/2019;7038;0;55;1;Spese correnti;4;Trasferimenti correnti;2;Trasferimenti correnti a Famiglie;5;Altri trasferimenti a famiglie;999;Altri trasferimenti a famiglie n.a.c.;11/07/2019
1346;1;0;150,74;150,74;NOMINATIVO OMESSO PER PRIVACY; ;per Piani personalizzati L. 162/98 gestione 2018 annualita 2019,  periodo  Giugno 2019;11/07/2019;7038;0;55;1;Spese correnti;4;Trasferimenti correnti;2;Trasferimenti correnti a Famiglie;5;Altri trasferimenti a famiglie;999;Altri trasferimenti a famiglie n.a.c.;11/07/2019
1347;1;0;352,5;352,5;NOMINATIVO OMESSO PER PRIVACY; ;per Piani personalizzati L. 162/98 gestione 2018 annualita 2019,  periodo  Giugno 2019;11/07/2019;7038;0;55;1;Spese correnti;4;Trasferimenti correnti;2;Trasferimenti correnti a Famiglie;5;Altri trasferimenti a famiglie;999;Altri trasferimenti a famiglie n.a.c.;11/07/2019
1348;1;0;124;124;NOMINATIVO OMESSO PER PRIVACY; ;per Piani personalizzati L. 162/98 gestione 2018 annualita 2019,  periodo  Giugno 2019;11/07/2019;7038;0;55;1;Spese correnti;4;Trasferimenti correnti;2;Trasferimenti correnti a Famiglie;5;Altri trasferimenti a famiglie;999;Altri trasferimenti a famiglie n.a.c.;11/07/2019
1349;1;0;496;496;NOMINATIVO OMESSO PER PRIVACY; ;per Piani personalizzati L. 162/98 gestione 2018 annualita 2019,  periodo  Giugno 2019;11/07/2019;7038;0;55;1;Spese correnti;4;Trasferimenti correnti;2;Trasferimenti correnti a Famiglie;5;Altri trasferimenti a famiglie;999;Altri trasferimenti a famiglie n.a.c.;11/07/2019
1350;1;0;1.251,10;1.251,10;NOMINATIVO OMESSO PER PRIVACY; ;per Piani personalizzati L. 162/98 gestione 2018 annualita 2019,  periodo  Giugno 2019;11/07/2019;7038;0;55;1;Spese correnti;4;Trasferimenti correnti;2;Trasferimenti correnti a Famiglie;5;Altri trasferimenti a famiglie;999;Altri trasferimenti a famiglie n.a.c.;11/07/2019
1351;1;0;186,36;186,36;NOMINATIVO OMESSO PER PRIVACY; ;per Piani personalizzati L. 162/98 gestione 2018 annualita 2019,  periodo  Giugno 2019;11/07/2019;7038;0;55;1;Spese correnti;4;Trasferimenti correnti;2;Trasferimenti correnti a Famiglie;5;Altri trasferimenti a famiglie;999;Altri trasferimenti a famiglie n.a.c.;11/07/2019
1352;1;0;307,13;307,13;NOMINATIVO OMESSO PER PRIVACY; ;per Piani personalizzati L. 162/98 gestione 2018 annualita 2019,  periodo  Giugno 2019;11/07/2019;7038;0;55;1;Spese correnti;4;Trasferimenti correnti;2;Trasferimenti correnti a Famiglie;5;Altri trasferimenti a famiglie;999;Altri trasferimenti a famiglie n.a.c.;11/07/2019
1353;1;0;368;368;NOMINATIVO OMESSO PER PRIVACY; ;per Piani personalizzati L. 162/98 gestione 2018 annualita 2019,  periodo  Giugno 2019;11/07/2019;7038;0;55;1;Spese correnti;4;Trasferimenti correnti;2;Trasferimenti correnti a Famiglie;5;Altri trasferimenti a famiglie;999;Altri trasferimenti a famiglie n.a.c.;11/07/2019
1354;1;0;118,95;118,95;NOMINATIVO OMESSO PER PRIVACY; ;per Piani personalizzati L. 162/98 gestione 2018 annualita 2019,  periodo  Giugno 2019;11/07/2019;7038;0;55;1;Spese correnti;4;Trasferimenti correnti;2;Trasferimenti correnti a Famiglie;5;Altri trasferimenti a famiglie;999;Altri trasferimenti a famiglie n.a.c.;11/07/2019
1355;1;0;4.904,40;4.904,40;progetti e servizi;Z0F2714191;SALDO Fatt.n. FATTPA 39_19  del 01/07/2019 ORE UFF.TRIBUTI AL 30/6/19;12/07/2019;460;6;56;1;Spese correnti;3;Acquisto di beni e servizi;2;Acquisto di servizi;16;Servizi amministrativi;999;Altre spese per servizi amministrativi;12/07/2019
1356;1;0;932,69;932,69;VODAFONE ITALIA S.p.A..;ZD5186A85B;ACCONTO Fatt.n. AL12152311  del 04/07/2019 scissione pagamenti;12/07/2019;460;0;171;1;Spese correnti;3;Acquisto di beni e servizi;2;Acquisto di servizi;5;Utenze e canoni;1;Telefonia fissa;12/07/2019
1357;1;0;200;200;VODAFONE ITALIA S.p.A..;ZD5186A85B;ACCONTO Fatt.n. AL12152311  del 04/07/2019 scissione pagamenti;12/07/2019;3788;0;176;1;Spese correnti;3;Acquisto di beni e servizi;2;Acquisto di servizi;5;Utenze e canoni;1;Telefonia fissa;12/07/2019
1358;1;0;100;100;VODAFONE ITALIA S.p.A..;ZD5186A85B;ACCONTO Fatt.n. AL12152311  del 04/07/2019 scissione pagamenti;12/07/2019;2815;0;175;1;Spese correnti;3;Acquisto di beni e servizi;2;Acquisto di servizi;5;Utenze e canoni;1;Telefonia fissa;12/07/2019
1359;1;0;100;100;VODAFONE ITALIA S.p.A..;ZD5186A85B;ACCONTO Fatt.n. AL12152311  del 04/07/2019 scissione pagamenti;12/07/2019;3300;0;173;1;Spese correnti;3;Acquisto di beni e servizi;2;Acquisto di servizi;5;Utenze e canoni;1;Telefonia fissa;12/07/2019
1360;1;0;200;200;VODAFONE ITALIA S.p.A..;ZD5186A85B;SALDO Fatt.n. AL12152311  del 04/07/2019 scissione pagamenti;12/07/2019;3040;0;174;1;Spese correnti;3;Acquisto di beni e servizi;2;Acquisto di servizi;5;Utenze e canoni;1;Telefonia fissa;12/07/2019
1361;1;0;1,46;1,46;VODAFONE ITALIA S.p.A..;ZD5186A85B;SALDO Fatt.n. AL12153186  del 04/07/2019 telefonia;12/07/2019;460;0;171;1;Spese correnti;3;Acquisto di beni e servizi;2;Acquisto di servizi;5;Utenze e canoni;1;Telefonia fissa;12/07/2019
1362;1;0;1,46;1,46;VODAFONE ITALIA S.p.A..;ZD5186A85B;SALDO Fatt.n. AL12153185  del 04/07/2019 scissione pagamenti;12/07/2019;460;0;171;1;Spese correnti;3;Acquisto di beni e servizi;2;Acquisto di servizi;5;Utenze e canoni;1;Telefonia fissa;12/07/2019
1363;1;0;2.952,71;2.952,71;HALLEY SARDEGNA S.R.L.;Z9226F38F3;SALDO Fatt.n. 0000963  del 03/07/2019 CANONE SOFTWARE HALLEY;12/07/2019;460;1;87;1;Spese correnti;3;Acquisto di beni e servizi;2;Acquisto di servizi;19;Servizi informatici e di telecomunicazioni;999;Altri servizi informatici e di telecomunicazioni n.a.c.;12/07/2019
1364;1;0;1.155,00;1.155,00;IRIS; ;SALDO Fatt.n. 233/V2  del 01/07/2019 Fattura clienti Split Payment ex art. 17-ter DPR 633/72;12/07/2019;6666;27;48;1;Spese correnti;3;Acquisto di beni e servizi;2;Acquisto di servizi;99;Altri servizi;999;Altri servizi diversi n.a.c.;12/07/2019
1365;1;0;1.260,00;1.260,00;IRIS; ;SALDO Fatt.n. 234/V2  del 01/07/2019 Fattura clienti Split Payment ex art. 17-ter DPR 633/72;12/07/2019;6666;27;47;1;Spese correnti;3;Acquisto di beni e servizi;2;Acquisto di servizi;99;Altri servizi;999;Altri servizi diversi n.a.c.;12/07/2019
1366;1;0;650,73;650,73;BUDRONI GIOVANNI MARIA; ;liquid mese di luglio;16/07/2019;30;0;169;1;Spese correnti;3;Acquisto di beni e servizi;2;Acquisto di servizi;1;Organi e incarichi istituzionali dell'amministrazione;1;Organi istituzionali dell'amministrazione - Indennità;16/07/2019
1367;1;0;162,58;162,58;MASIA DOMENICO; ;liquidaz mese di luglio;16/07/2019;30;0;169;1;Spese correnti;3;Acquisto di beni e servizi;2;Acquisto di servizi;1;Organi e incarichi istituzionali dell'amministrazione;1;Organi istituzionali dell'amministrazione - Indennità;16/07/2019
1368;1;0;162,58;162,58;DELEDDA GIOMMARIA GIUSEPPE; ;Rimborso forfettario a beneficio di Amministratori locali previsto dal Regolamento di attuazione dell'articolo 73 della legge regionale 4 febbraio 2016, n.2 (Riordino del sistema delle autonomie locali della Sardegna) -Impegno di spesa;16/07/2019;30;0;169;1;Spese correnti;3;Acquisto di beni e servizi;2;Acquisto di servizi;1;Organi e incarichi istituzionali dell'amministrazione;1;Organi istituzionali dell'amministrazione - Indennità;16/07/2019
1369;1;0;162,58;162,58;MAMELI MARIA LUCIA; ;liquidaz mese di luglio;16/07/2019;30;0;169;1;Spese correnti;3;Acquisto di beni e servizi;2;Acquisto di servizi;1;Organi e incarichi istituzionali dell'amministrazione;1;Organi istituzionali dell'amministrazione - Indennità;16/07/2019
1370;1;0;162,58;162,58;CARTA ANGELO; ;Rimborso forfettario a beneficio di Amministratori locali previsto dal Regolamento di attuazione dell'articolo 73 della legge regionale 4 febbraio 2016, n.2 (Riordino del sistema delle autonomie locali della Sardegna) -Impegno di spesa;16/07/2019;30;0;169;1;Spese correnti;3;Acquisto di beni e servizi;2;Acquisto di servizi;1;Organi e incarichi istituzionali dell'amministrazione;1;Organi istituzionali dell'amministrazione - Indennità;16/07/2019
1371;1;0;1.301,47;1.301,47;BUDRONI GIOVANNI MARIA; ;indennita di carica al sindaco, vice sindaco e assessori;16/07/2019;10;0;40;1;Spese correnti;3;Acquisto di beni e servizi;2;Acquisto di servizi;1;Organi e incarichi istituzionali dell'amministrazione;1;Organi istituzionali dell'amministrazione - Indennità;16/07/2019
1372;1;0;130,12;130,12;MASIA DOMENICO; ;indennita di carica al sindaco, vice sindaco e assessori;16/07/2019;10;0;40;1;Spese correnti;3;Acquisto di beni e servizi;2;Acquisto di servizi;1;Organi e incarichi istituzionali dell'amministrazione;1;Organi istituzionali dell'amministrazione - Indennità;16/07/2019
1373;1;0;195,22;195,22;DELEDDA GIOMMARIA GIUSEPPE; ;indennita di carica al sindaco, vice sindaco e assessori;16/07/2019;10;0;40;1;Spese correnti;3;Acquisto di beni e servizi;2;Acquisto di servizi;1;Organi e incarichi istituzionali dell'amministrazione;1;Organi istituzionali dell'amministrazione - Indennità;16/07/2019
1374;1;0;195,22;195,22;MAMELI MARIA LUCIA; ;indennita di carica al sindaco, vice sindaco e assessori;16/07/2019;10;0;40;1;Spese correnti;3;Acquisto di beni e servizi;2;Acquisto di servizi;1;Organi e incarichi istituzionali dell'amministrazione;1;Organi istituzionali dell'amministrazione - Indennità;16/07/2019
1375;1;0;97,61;97,61;CARTA ANGELO; ;indennita di carica al sindaco, vice sindaco e assessori;16/07/2019;10;0;40;1;Spese correnti;3;Acquisto di beni e servizi;2;Acquisto di servizi;1;Organi e incarichi istituzionali dell'amministrazione;1;Organi istituzionali dell'amministrazione - Indennità;16/07/2019
1407;1;0;1.480,32;1.480,32;NOMINATIVO OMESSO PER PRIVACY; ;Programma regionale  Ritornare a casa -Attivazione progetto personalizzato a favore di SIB180984F -Periodo GIUGNO 2019.;17/07/2019;6666;26;60;1;Spese correnti;3;Acquisto di beni e servizi;2;Acquisto di servizi;99;Altri servizi;999;Altri servizi diversi n.a.c.;17/07/2019
1408;1;0;769,69;769,69;SERENISSIMA Coop.va Sociale a r.l.; ;Programma regionale  Ritornare a casa -Attivazione progetto personalizzato a favore di SIB180984F -Periodo GIUGNO 2019.;17/07/2019;6666;26;60;1;Spese correnti;3;Acquisto di beni e servizi;2;Acquisto di servizi;99;Altri servizi;999;Altri servizi diversi n.a.c.;17/07/2019
1409;1;0;902,8;902,8;GIESSE Forniture s.r.l.;Z6728C364B;SALDO Fatt.n. 2/129  del 04/07/2019 vestiario pm;17/07/2019;2180;0;197;1;Spese correnti;3;Acquisto di beni e servizi;1;Acquisto di beni;2;Altri beni di consumo;4;Vestiario;17/07/2019
1410;1;0;1.623,85;1.623,85;BUDRONI MARIA CONCETTA; ;Programma regionale  Ritornare a casa -Attivazione progetto personalizzato SG240250M - Mese di   GIUGNO 2019.;17/07/2019;6666;26;59;1;Spese correnti;3;Acquisto di beni e servizi;2;Acquisto di servizi;99;Altri servizi;999;Altri servizi diversi n.a.c.;17/07/2019
1412;1;0;5.000,00;5.000,00;COMPAGNIA BARRACELLARE DI TISSI; ;Legge Regionale n. 25 del 15 luglio 1988. Concessione del contributo straordinario alla Compagnia Barracellare di Tissi per le attivita dell'anno 2019. Liquidazione 1 acconto per il semestre Gennaio-Giugno 2019. Impegno di spesa.;18/07/2019;5838;0;235;1;Spese correnti;4;Trasferimenti correnti;5;Trasferimenti correnti versati all'Unione Europea e al Resto del Mondo;4;Trasferimenti correnti al Resto del Mondo;1;Trasferimenti correnti al Resto del Mondo;18/07/2019
1413;1;0;167,9;167,9;MINISTERO DELL'INTERNO; ;Versamento al Ministero dell' Interno dei diritti relativi alle carte d' identita elettroniche emesse - 1 versamento Mese di Luglio 2019;18/07/2019;939;0;236;1;Spese correnti;4;Trasferimenti correnti;1;Trasferimenti correnti a Amministrazioni Pubbliche;1;Trasferimenti correnti a Amministrazioni Centrali;1;Trasferimenti correnti a Ministeri;18/07/2019
1414;1;0;488,02;488,02;OTIS;ZC51A81870;SALDO Fatt.n. 3FO19062183  del 20/06/2019 Competenze Servizi di Manutenzione;18/07/2019;460;0;239;1;Spese correnti;3;Acquisto di beni e servizi;2;Acquisto di servizi;5;Utenze e canoni;999;Utenze e canoni per altri servizi n.a.c.;18/07/2019
1415;1;0;317,2;317,2;E.M.I.S.A;Z552908464;SALDO Fatt.n. 10/001  del 18/07/2019 vendita;22/07/2019;430;0;223;1;Spese correnti;3;Acquisto di beni e servizi;1;Acquisto di beni;2;Altri beni di consumo;999;Altri beni e materiali di consumo n.a.c.;22/07/2019
1416;1;0;210,74;210,74;TELECOM ITALIA S.p.A.;ZD5186A85B;SALDO Fatt.n. 8R00138973  del 08/07/2019 4BIM 2019;22/07/2019;460;0;172;1;Spese correnti;3;Acquisto di beni e servizi;2;Acquisto di servizi;5;Utenze e canoni;1;Telefonia fissa;22/07/2019
1417;1;0;114,68;114,68;TELECOM ITALIA S.p.A.;ZD5186A85B;SALDO Fatt.n. 8R00138628  del 08/07/2019 4BIM 2019;22/07/2019;460;0;172;1;Spese correnti;3;Acquisto di beni e servizi;2;Acquisto di servizi;5;Utenze e canoni;1;Telefonia fissa;22/07/2019
1418;1;0;75,64;75,64;TELECOM ITALIA S.p.A.;ZD5186A85B;SALDO Fatt.n. 8R00139690  del 08/07/2019 4BIM 2019;22/07/2019;460;0;172;1;Spese correnti;3;Acquisto di beni e servizi;2;Acquisto di servizi;5;Utenze e canoni;1;Telefonia fissa;22/07/2019
1419;1;0;208;208;INFOCOM;Z002913D57;SALDO Fatt.n. 13/PA  del 17/07/2019 VENDITA;22/07/2019;430;0;222;1;Spese correnti;3;Acquisto di beni e servizi;1;Acquisto di beni;2;Altri beni di consumo;999;Altri beni e materiali di consumo n.a.c.;22/07/2019
1420;1;0;43,99;43,99;STAZIONE RIFORNIMENTO ESSO DI SALVATORE MUDADU;ZA128CBA9A;SALDO Fatt.n. 12/PA  del 02/07/2019 Carburante per vostri mezzi mese giugno 2019;22/07/2019;438;0;204;1;Spese correnti;3;Acquisto di beni e servizi;1;Acquisto di beni;2;Altri beni di consumo;2;Carburanti, combustibili e lubrificanti;22/07/2019
1421;1;0;871,08;871,08;R.H. IMPIANTI DI RAHAMANI HAMIDREZA;ZF52924A55;SALDO Fatt.n. 78  del 10/07/2019 il costo di lavori per sostituzione un palo di luce abbattuto tramite un'auto in Via Sassari;22/07/2019;454;0;229;1;Spese correnti;3;Acquisto di beni e servizi;2;Acquisto di servizi;9;Manutenzione ordinaria e riparazioni;8;Manutenzione ordinaria e riparazioni di beni immobili;22/07/2019
1422;1;0;50;50;VODAFONE ITALIA S.p.A..;ZB9292EC9B;SALDO Fatt.n. 1804236425  del 15/06/2018 ricarica borsellino vodafon;22/07/2019;460;0;231;1;Spese correnti;3;Acquisto di beni e servizi;2;Acquisto di servizi;5;Utenze e canoni;2;Telefonia mobile;22/07/2019
1423;1;0;5.004,99;5.004,99;ANDALAS DE AMISTADE;Z90269A1E8;SALDO Fatt.n. 121\PA  del 03/07/2019 Servizio di Inserimento sociolavorativo di soggetti detenuti Art21 della Legge 26 luglio 1975 n354 dal 07 Gennaio al 31 Dicembre 2019 Periodo MAGGIOGIUGNO 2019;22/07/2019;6697;0;3;1;Spese correnti;3;Acquisto di beni e servizi;2;Acquisto di servizi;99;Altri servizi;999;Altri servizi diversi n.a.c.;22/07/2019
1424;1;0;394,11;394,11;G.P. GLOBAL POWER;622385037F;ACCONTO Fatt.n. V0/95827  del 02/07/2019 Fattura Energia Elettrica;23/07/2019;460;0;71;1;Spese correnti;3;Acquisto di beni e servizi;2;Acquisto di servizi;5;Utenze e canoni;4;Energia elettrica;23/07/2019
1425;1;0;50,32;50,32;G.P. GLOBAL POWER;622385037F;ACCONTO Fatt.n. V0/95828  del 02/07/2019 Fattura Energia Elettrica;23/07/2019;2815;0;69;1;Spese correnti;3;Acquisto di beni e servizi;2;Acquisto di servizi;5;Utenze e canoni;4;Energia elettrica;23/07/2019
1426;1;0;548,39;548,39;G.P. GLOBAL POWER;622385037F;ACCONTO Fatt.n. V0/95826  del 02/07/2019 Fattura Energia Elettrica;23/07/2019;4146;0;68;1;Spese correnti;3;Acquisto di beni e servizi;2;Acquisto di servizi;5;Utenze e canoni;4;Energia elettrica;23/07/2019
1427;1;0;11,4;11,4;G.P. GLOBAL POWER;622385037F;ACCONTO Fatt.n. V0/95825  del 02/07/2019 Fattura Energia Elettrica;23/07/2019;460;0;71;1;Spese correnti;3;Acquisto di beni e servizi;2;Acquisto di servizi;5;Utenze e canoni;4;Energia elettrica;23/07/2019
1428;1;0;547,71;547,71;G.P. GLOBAL POWER;622385037F;ACCONTO Fatt.n. V0/95827  del 02/07/2019 Fattura Energia Elettrica;23/07/2019;460;0;71;1;Spese correnti;3;Acquisto di beni e servizi;2;Acquisto di servizi;5;Utenze e canoni;4;Energia elettrica;23/07/2019
1429;1;0;436,92;436,92;G.P. GLOBAL POWER;622385037F;ACCONTO Fatt.n. V0/95827  del 02/07/2019 Fattura Energia Elettrica;23/07/2019;3788;0;65;1;Spese correnti;3;Acquisto di beni e servizi;2;Acquisto di servizi;5;Utenze e canoni;4;Energia elettrica;23/07/2019
1430;1;0;628,38;628,38;G.P. GLOBAL POWER;622385037F;ACCONTO Fatt.n. V0/95827  del 02/07/2019 Fattura Energia Elettrica;23/07/2019;3996;0;66;1;Spese correnti;3;Acquisto di beni e servizi;2;Acquisto di servizi;5;Utenze e canoni;4;Energia elettrica;23/07/2019
1431;1;0;47,01;47,01;G.P. GLOBAL POWER;622385037F;ACCONTO Fatt.n. V0/95827  del 02/07/2019 Fattura Energia Elettrica;23/07/2019;5452;0;67;1;Spese correnti;3;Acquisto di beni e servizi;2;Acquisto di servizi;5;Utenze e canoni;4;Energia elettrica;23/07/2019
1432;1;0;78,58;78,58;G.P. GLOBAL POWER;622385037F;ACCONTO Fatt.n. V0/95827  del 02/07/2019 Fattura Energia Elettrica;23/07/2019;5837;0;72;1;Spese correnti;3;Acquisto di beni e servizi;2;Acquisto di servizi;5;Utenze e canoni;4;Energia elettrica;23/07/2019
1433;1;0;52,8;52,8;G.P. GLOBAL POWER;622385037F;SALDO Fatt.n. V0/95827  del 02/07/2019 Fattura Energia Elettrica;23/07/2019;6666;8;243;1;Spese correnti;3;Acquisto di beni e servizi;2;Acquisto di servizi;99;Altri servizi;999;Altri servizi diversi n.a.c.;23/07/2019
1434;1;0;285,8;285,8;G.P. GLOBAL POWER;622385037F;ACCONTO Fatt.n. V0/95828  del 02/07/2019 Fattura Energia Elettrica;23/07/2019;2815;0;69;1;Spese correnti;3;Acquisto di beni e servizi;2;Acquisto di servizi;5;Utenze e canoni;4;Energia elettrica;23/07/2019
1435;1;0;76,36;76,36;G.P. GLOBAL POWER;622385037F;ACCONTO Fatt.n. V0/95828  del 02/07/2019 Fattura Energia Elettrica;23/07/2019;3040;0;70;1;Spese correnti;3;Acquisto di beni e servizi;2;Acquisto di servizi;5;Utenze e canoni;4;Energia elettrica;23/07/2019
1436;1;0;141,07;141,07;G.P. GLOBAL POWER;622385037F;SALDO Fatt.n. V0/95828  del 02/07/2019 Fattura Energia Elettrica;23/07/2019;3300;0;242;1;Spese correnti;3;Acquisto di beni e servizi;2;Acquisto di servizi;5;Utenze e canoni;4;Energia elettrica;23/07/2019
1437;1;0;2.492,69;2.492,69;G.P. GLOBAL POWER;622385037F;SALDO Fatt.n. V0/95826  del 02/07/2019 Fattura Energia Elettrica;23/07/2019;4146;0;68;1;Spese correnti;3;Acquisto di beni e servizi;2;Acquisto di servizi;5;Utenze e canoni;4;Energia elettrica;23/07/2019
1438;1;0;51,81;51,81;G.P. GLOBAL POWER;622385037F;SALDO Fatt.n. V0/95825  del 02/07/2019 Fattura Energia Elettrica;23/07/2019;460;0;71;1;Spese correnti;3;Acquisto di beni e servizi;2;Acquisto di servizi;5;Utenze e canoni;4;Energia elettrica;23/07/2019
1439;1;0;120,22;120,22;NOMINATIVO OMESSO PER PRIVACY; ;L.R. n. 20/97- Impegno di spesa e Liquidazione provvidenze economiche, di cui all'art. 6 della L.R. 15/92 e s.m.i., a favore di n. 12 persone affette da patologie psichiatriche.  2 TRIMESTRE 2019.;23/07/2019;7039;0;244;1;Spese correnti;4;Trasferimenti correnti;2;Trasferimenti correnti a Famiglie;5;Altri trasferimenti a famiglie;999;Altri trasferimenti a famiglie n.a.c.;23/07/2019
1440;1;0;253,86;253,86;NOMINATIVO OMESSO PER PRIVACY; ;L.R. n. 20/97- Impegno di spesa e Liquidazione provvidenze economiche, di cui all'art. 6 della L.R. 15/92 e s.m.i., a favore di n. 12 persone affette da patologie psichiatriche.  2 TRIMESTRE 2019.;23/07/2019;7039;0;244;1;Spese correnti;4;Trasferimenti correnti;2;Trasferimenti correnti a Famiglie;5;Altri trasferimenti a famiglie;999;Altri trasferimenti a famiglie n.a.c.;23/07/2019
1441;1;0;1.215,00;1.215,00;NOMINATIVO OMESSO PER PRIVACY; ;L.R. n. 20/97- Impegno di spesa e Liquidazione provvidenze economiche, di cui all'art. 6 della L.R. 15/92 e s.m.i., a favore di n. 12 persone affette da patologie psichiatriche.  2 TRIMESTRE 2019.;23/07/2019;7039;0;244;1;Spese correnti;4;Trasferimenti correnti;2;Trasferimenti correnti a Famiglie;5;Altri trasferimenti a famiglie;999;Altri trasferimenti a famiglie n.a.c.;23/07/2019
1442;1;0;1.468,86;1.468,86;NOMINATIVO OMESSO PER PRIVACY; ;L.R. n. 20/97- Impegno di spesa e Liquidazione provvidenze economiche, di cui all'art. 6 della L.R. 15/92 e s.m.i., a favore di n. 12 persone affette da patologie psichiatriche.  2 TRIMESTRE 2019.;23/07/2019;7039;0;244;1;Spese correnti;4;Trasferimenti correnti;2;Trasferimenti correnti a Famiglie;5;Altri trasferimenti a famiglie;999;Altri trasferimenti a famiglie n.a.c.;23/07/2019
1443;1;0;1.468,86;1.468,86;NOMINATIVO OMESSO PER PRIVACY; ;L.R. n. 20/97- Impegno di spesa e Liquidazione provvidenze economiche, di cui all'art. 6 della L.R. 15/92 e s.m.i., a favore di n. 12 persone affette da patologie psichiatriche.  2 TRIMESTRE 2019.;23/07/2019;7039;0;244;1;Spese correnti;4;Trasferimenti correnti;2;Trasferimenti correnti a Famiglie;5;Altri trasferimenti a famiglie;999;Altri trasferimenti a famiglie n.a.c.;23/07/2019
1444;1;0;1.468,86;1.468,86;NOMINATIVO OMESSO PER PRIVACY; ;L.R. n. 20/97- Impegno di spesa e Liquidazione provvidenze economiche, di cui all'art. 6 della L.R. 15/92 e s.m.i., a favore di n. 12 persone affette da patologie psichiatriche.  2 TRIMESTRE 2019.;23/07/2019;7039;0;244;1;Spese correnti;4;Trasferimenti correnti;2;Trasferimenti correnti a Famiglie;5;Altri trasferimenti a famiglie;999;Altri trasferimenti a famiglie n.a.c.;23/07/2019
1445;1;0;809,88;809,88;NOMINATIVO OMESSO PER PRIVACY; ;L.R. n. 20/97- Impegno di spesa e Liquidazione provvidenze economiche, di cui all'art. 6 della L.R. 15/92 e s.m.i., a favore di n. 12 persone affette da patologie psichiatriche.  2 TRIMESTRE 2019.;23/07/2019;7039;0;244;1;Spese correnti;4;Trasferimenti correnti;2;Trasferimenti correnti a Famiglie;5;Altri trasferimenti a famiglie;999;Altri trasferimenti a famiglie n.a.c.;23/07/2019
1446;1;0;510,11;510,11;NOMINATIVO OMESSO PER PRIVACY; ;L.R. n. 20/97- Impegno di spesa e Liquidazione provvidenze economiche, di cui all'art. 6 della L.R. 15/92 e s.m.i., a favore di n. 12 persone affette da patologie psichiatriche.  2 TRIMESTRE 2019.;23/07/2019;7039;0;244;1;Spese correnti;4;Trasferimenti correnti;2;Trasferimenti correnti a Famiglie;5;Altri trasferimenti a famiglie;999;Altri trasferimenti a famiglie n.a.c.;23/07/2019
1447;1;0;809,88;809,88;NOMINATIVO OMESSO PER PRIVACY; ;L.R. n. 20/97- Impegno di spesa e Liquidazione provvidenze economiche, di cui all'art. 6 della L.R. 15/92 e s.m.i., a favore di n. 12 persone affette da patologie psichiatriche.  2 TRIMESTRE 2019.;23/07/2019;7039;0;244;1;Spese correnti;4;Trasferimenti correnti;2;Trasferimenti correnti a Famiglie;5;Altri trasferimenti a famiglie;999;Altri trasferimenti a famiglie n.a.c.;23/07/2019
1448;1;0;809,88;809,88;NOMINATIVO OMESSO PER PRIVACY; ;L.R. n. 20/97- Impegno di spesa e Liquidazione provvidenze economiche, di cui all'art. 6 della L.R. 15/92 e s.m.i., a favore di n. 12 persone affette da patologie psichiatriche.  2 TRIMESTRE 2019.;23/07/2019;7039;0;244;1;Spese correnti;4;Trasferimenti correnti;2;Trasferimenti correnti a Famiglie;5;Altri trasferimenti a famiglie;999;Altri trasferimenti a famiglie n.a.c.;23/07/2019
1449;1;0;809,88;809,88;NOMINATIVO OMESSO PER PRIVACY; ;L.R. n. 20/97- Impegno di spesa e Liquidazione provvidenze economiche, di cui all'art. 6 della L.R. 15/92 e s.m.i., a favore di n. 12 persone affette da patologie psichiatriche.  2 TRIMESTRE 2019.;23/07/2019;7039;0;244;1;Spese correnti;4;Trasferimenti correnti;2;Trasferimenti correnti a Famiglie;5;Altri trasferimenti a famiglie;999;Altri trasferimenti a famiglie n.a.c.;23/07/2019
1450;1;0;1.468,86;1.468,86;NOMINATIVO OMESSO PER PRIVACY; ;L.R. n. 20/97- Impegno di spesa e Liquidazione provvidenze economiche, di cui all'art. 6 della L.R. 15/92 e s.m.i., a favore di n. 12 persone affette da patologie psichiatriche.  2 TRIMESTRE 2019.;23/07/2019;7039;0;244;1;Spese correnti;4;Trasferimenti correnti;2;Trasferimenti correnti a Famiglie;5;Altri trasferimenti a famiglie;999;Altri trasferimenti a famiglie n.a.c.;23/07/2019
1451;1;0;1.050,00;1.050,00;NOMINATIVO OMESSO PER PRIVACY; ;"Liquidazione anticipazione contributo economico all'A.S.D SPORTISSI  , per la manifestazione sportiva ""Torneo Piccola Parigi 3vs3"" -";23/07/2019;4000;1;159;1;Spese correnti;4;Trasferimenti correnti;4;Trasferimenti correnti a Istituzioni Sociali Private;1;Trasferimenti correnti a Istituzioni Sociali Private;1;Trasferimenti correnti a Istituzioni Sociali Private;23/07/2019
1452;1;0;300;300;NOMINATIVO OMESSO PER PRIVACY; ;L.R. n. 23/2005-  Interventi di sostegno alla persona-Concessione contributi  straordinari  in favore di nuclei familiari in stato di disagio sociale ed economico. Impegno di spesa e liquidazione.;23/07/2019;6666;0;246;1;Spese correnti;4;Trasferimenti correnti;2;Trasferimenti correnti a Famiglie;2;Interventi assistenziali;999;Altri assegni e sussidi assistenziali;23/07/2019
1453;1;0;300;300;NOMINATIVO OMESSO PER PRIVACY; ;L.R. n. 23/2005-  Interventi di sostegno alla persona-Concessione contributi  straordinari  in favore di nuclei familiari in stato di disagio sociale ed economico. Impegno di spesa e liquidazione.;23/07/2019;6666;0;246;1;Spese correnti;4;Trasferimenti correnti;2;Trasferimenti correnti a Famiglie;2;Interventi assistenziali;999;Altri assegni e sussidi assistenziali;23/07/2019
1454;1;0;50;50;NOMINATIVO OMESSO PER PRIVACY; ;L.R. n. 23/2005-  Interventi di sostegno alla persona-Concessione contributi  straordinari  in favore di nuclei familiari in stato di disagio sociale ed economico. Impegno di spesa e liquidazione.;23/07/2019;6666;0;246;1;Spese correnti;4;Trasferimenti correnti;2;Trasferimenti correnti a Famiglie;2;Interventi assistenziali;999;Altri assegni e sussidi assistenziali;23/07/2019
1455;1;0;200;200;NOMINATIVO OMESSO PER PRIVACY; ;L.R. n. 23/2005-  Interventi di sostegno alla persona-Concessione contributi  straordinari  in favore di nuclei familiari in stato di disagio sociale ed economico. Impegno di spesa e liquidazione.;23/07/2019;6666;0;246;1;Spese correnti;4;Trasferimenti correnti;2;Trasferimenti correnti a Famiglie;2;Interventi assistenziali;999;Altri assegni e sussidi assistenziali;23/07/2019
1456;1;0;300;300;NOMINATIVO OMESSO PER PRIVACY; ;L.R. n. 23/2005-  Interventi di sostegno alla persona-Concessione contributi  straordinari  in favore di nuclei familiari in stato di disagio sociale ed economico. Impegno di spesa e liquidazione.;23/07/2019;6666;0;246;1;Spese correnti;4;Trasferimenti correnti;2;Trasferimenti correnti a Famiglie;2;Interventi assistenziali;999;Altri assegni e sussidi assistenziali;23/07/2019
1457;1;0;932,74;932,74;NOMINATIVO OMESSO PER PRIVACY; ;L.R. n.27/1983 e s.m.i.- Impegno di spesa e Liquidazione provvidenze a favore delle persone affette  da talassemia 1 semestre 2019;23/07/2019;7039;0;248;1;Spese correnti;4;Trasferimenti correnti;2;Trasferimenti correnti a Famiglie;5;Altri trasferimenti a famiglie;999;Altri trasferimenti a famiglie n.a.c.;23/07/2019
1458;1;0;1.000,94;1.000,94;NOMINATIVO OMESSO PER PRIVACY; ;L.R. n.27/1983 e s.m.i.- Impegno di spesa e Liquidazione provvidenze a favore delle persone affette  da talassemia 1 semestre 2019;23/07/2019;7039;0;248;1;Spese correnti;4;Trasferimenti correnti;2;Trasferimenti correnti a Famiglie;5;Altri trasferimenti a famiglie;999;Altri trasferimenti a famiglie n.a.c.;23/07/2019
1473;1;0;420,1;420,1;NOMINATIVO OMESSO PER PRIVACY; ;L. R. n.9/2004 e s.m.i.- Impegno di spesa e Liquidazione provvidenze a favore delle persone affette da neoplasie maligne. ANNO 2019;25/07/2019;7039;0;249;1;Spese correnti;4;Trasferimenti correnti;2;Trasferimenti correnti a Famiglie;5;Altri trasferimenti a famiglie;999;Altri trasferimenti a famiglie n.a.c.;25/07/2019
1474;1;0;1.201,62;1.201,62;NOMINATIVO OMESSO PER PRIVACY; ;LL.RR.N 11/85 e 43/93 Impegno di spesa e Liquidazione provvidenze a favore dei nefropatici per il 1 semestre 2019;25/07/2019;7039;0;250;1;Spese correnti;4;Trasferimenti correnti;2;Trasferimenti correnti a Famiglie;5;Altri trasferimenti a famiglie;999;Altri trasferimenti a famiglie n.a.c.;25/07/2019
1475;1;0;4.423,09;4.423,09;NOMINATIVO OMESSO PER PRIVACY; ;LL.RR.N 11/85 e 43/93 Impegno di spesa e Liquidazione provvidenze a favore dei nefropatici per il 1 semestre 2019;25/07/2019;7039;0;250;1;Spese correnti;4;Trasferimenti correnti;2;Trasferimenti correnti a Famiglie;5;Altri trasferimenti a famiglie;999;Altri trasferimenti a famiglie n.a.c.;25/07/2019
1479;1;0;51,89;51,89;POSTE ITALIANE S.P.A.; ;SPESA BANCO POSTA MESE DI GIUGNO 2019  CC N. 12329074;29/07/2019;540;0;0;1;Spese correnti;3;Acquisto di beni e servizi;2;Acquisto di servizi;17;Servizi finanziari;1;Commissioni per servizi finanziari;29/07/2019
1480;1;0;35.417,64;35.417,64;AGECO S.R.L;7782458F7E;CODICE IDENTIFICATIVO FASCICOLO 102/2019/65023;29/07/2019;9253;0;411;2;Spese in conto capitale;2;Investimenti fissi lordi e acquisto di terreni;1;Beni materiali;9;Beni immobili;12;Infrastrutture stradali;29/07/2019
1481;1;0;340,01;340,01;POSTE ITALIANE S.P.A.;Z782756457;SALDO Fatt.n. 8719214430  del 02/07/2019 Fattura Elettronica relativa all'Identificativo Rendiconto 2102567880;29/07/2019;460;4;75;1;Spese correnti;3;Acquisto di beni e servizi;2;Acquisto di servizi;16;Servizi amministrativi;2;Spese postali;29/07/2019
1482;1;0;1;1;BANCO DI SARDEGNA S.P.A.; ;spese per addebito rid;30/07/2019;540;0;194;1;Spese correnti;3;Acquisto di beni e servizi;2;Acquisto di servizi;17;Servizi finanziari;1;Commissioni per servizi finanziari;30/07/2019
1483;1;0;1;1;BANCO DI SARDEGNA S.P.A.; ;spese per addebito rid;30/07/2019;540;0;194;1;Spese correnti;3;Acquisto di beni e servizi;2;Acquisto di servizi;17;Servizi finanziari;1;Commissioni per servizi finanziari;30/07/2019
1484;1;0;1;1;BANCO DI SARDEGNA S.P.A.; ;spese per addebito rid;30/07/2019;540;0;194;1;Spese correnti;3;Acquisto di beni e servizi;2;Acquisto di servizi;17;Servizi finanziari;1;Commissioni per servizi finanziari;30/07/2019
1485;1;0;1;1;BANCO DI SARDEGNA S.P.A.; ;spese per addebito rid;30/07/2019;540;0;194;1;Spese correnti;3;Acquisto di beni e servizi;2;Acquisto di servizi;17;Servizi finanziari;1;Commissioni per servizi finanziari;30/07/2019
1486;1;0;1;1;BANCO DI SARDEGNA S.P.A.; ;spese per addebito rid;30/07/2019;540;0;194;1;Spese correnti;3;Acquisto di beni e servizi;2;Acquisto di servizi;17;Servizi finanziari;1;Commissioni per servizi finanziari;30/07/2019
1487;1;0;0,79;0,79;Gestore dei Servizi Energetici - GSE S.p.a.; ;ACCONTO Fatt.n. 2019026383  del 08/07/2019 CORRISPETTIVO A COPERTURA DEGLI ONERI DI GESTIONE CONVENZIONE: N04E04739807;30/07/2019;460;0;253;1;Spese correnti;3;Acquisto di beni e servizi;2;Acquisto di servizi;5;Utenze e canoni;999;Utenze e canoni per altri servizi n.a.c.;30/07/2019
1488;1;0;34,2;34,2;Gestore dei Servizi Energetici - GSE S.p.a.; ;ACCONTO Fatt.n. 2019022525  del 05/06/2019 CORRISPETTIVO A COPERTURA DEGLI ONERI DI GESTIONE CONVENZIONE: N04E12113407;30/07/2019;460;0;253;1;Spese correnti;3;Acquisto di beni e servizi;2;Acquisto di servizi;5;Utenze e canoni;999;Utenze e canoni per altri servizi n.a.c.;30/07/2019
1489;1;0;7,52;7,52;Gestore dei Servizi Energetici - GSE S.p.a.; ;SALDO Fatt.n. 2019022525  del 05/06/2019 CORRISPETTIVO A COPERTURA DEGLI ONERI DI GESTIONE CONVENZIONE: N04E12113407;30/07/2019;460;0;253;1;Spese correnti;3;Acquisto di beni e servizi;2;Acquisto di servizi;5;Utenze e canoni;999;Utenze e canoni per altri servizi n.a.c.;30/07/2019
1490;1;0;0,17;0,17;Gestore dei Servizi Energetici - GSE S.p.a.; ;SALDO Fatt.n. 2019026383  del 08/07/2019 CORRISPETTIVO A COPERTURA DEGLI ONERI DI GESTIONE CONVENZIONE: N04E04739807;30/07/2019;460;0;253;1;Spese correnti;3;Acquisto di beni e servizi;2;Acquisto di servizi;5;Utenze e canoni;999;Utenze e canoni per altri servizi n.a.c.;30/07/2019
1493;1;0;250;250;NOMINATIVO OMESSO PER PRIVACY; ;L.R. n. 23/2005-  Interventi di sostegno alla persona-Concessione contributi  ordinari  in favore di nuclei familiari in stato di disagio sociale ed economico. Impegno di spesa e liquidazione.;01/08/2019;6666;0;254;1;Spese correnti;4;Trasferimenti correnti;2;Trasferimenti correnti a Famiglie;2;Interventi assistenziali;999;Altri assegni e sussidi assistenziali;01/08/2019
1494;1;0;3.500,00;3.500,00;Mediterranea Energia Ambiente;ZC11922169;ACCONTO Fatt.n. 06201900000073  del 14/06/2019 gas scuole;02/08/2019;3300;0;251;1;Spese correnti;3;Acquisto di beni e servizi;2;Acquisto di servizi;5;Utenze e canoni;6;Gas;02/08/2019
1495;1;0;3.234,67;3.234,67;Mediterranea Energia Ambiente;ZC11922169;SALDO Fatt.n. 06201900000073  del 14/06/2019 gas scuole;02/08/2019;3040;0;252;1;Spese correnti;3;Acquisto di beni e servizi;2;Acquisto di servizi;5;Utenze e canoni;6;Gas;02/08/2019
1496;1;0;144,57;144,57;Mediterranea Energia Ambiente;Z35217A5FA;SALDO Fatt.n. 06201900000074  del 14/06/2019;02/08/2019;3996;0;255;1;Spese correnti;3;Acquisto di beni e servizi;2;Acquisto di servizi;5;Utenze e canoni;6;Gas;02/08/2019
1529;1;0;20;20;DIPENDENTI COMUNALI; ;rimborso spese di mission;05/08/2019;950;0;234;1;Spese correnti;3;Acquisto di beni e servizi;2;Acquisto di servizi;2;Organizzazione eventi, pubblicita` e servizi per trasferta;2;Indennità di missione e di trasferta;05/08/2019
1530;1;0;10;10;DIPENDENTI COMUNALI; ;rimborso spese di mission;05/08/2019;770;0;233;1;Spese correnti;3;Acquisto di beni e servizi;2;Acquisto di servizi;2;Organizzazione eventi, pubblicita` e servizi per trasferta;2;Indennità di missione e di trasferta;05/08/2019
1531;1;0;1.301,47;1.301,47;BUDRONI GIOVANNI MARIA; ;indennita di carica al sindaco, vice sindaco e assessori mese di agosto;05/08/2019;10;0;40;1;Spese correnti;3;Acquisto di beni e servizi;2;Acquisto di servizi;1;Organi e incarichi istituzionali dell'amministrazione;1;Organi istituzionali dell'amministrazione - Indennità;05/08/2019
1532;1;0;130,12;130,12;MASIA DOMENICO; ;indennita di carica al sindaco, vice sindaco e assessori;05/08/2019;10;0;40;1;Spese correnti;3;Acquisto di beni e servizi;2;Acquisto di servizi;1;Organi e incarichi istituzionali dell'amministrazione;1;Organi istituzionali dell'amministrazione - Indennità;05/08/2019
1533;1;0;195,22;195,22;DELEDDA GIOMMARIA GIUSEPPE; ;indennita di carica al sindaco, vice sindaco e assessori luglio;05/08/2019;10;0;40;1;Spese correnti;3;Acquisto di beni e servizi;2;Acquisto di servizi;1;Organi e incarichi istituzionali dell'amministrazione;1;Organi istituzionali dell'amministrazione - Indennità;05/08/2019
1534;1;0;195,22;195,22;MAMELI MARIA LUCIA; ;indennita di carica al sindaco, vice sindaco e assessori luglio 2019;05/08/2019;10;0;40;1;Spese correnti;3;Acquisto di beni e servizi;2;Acquisto di servizi;1;Organi e incarichi istituzionali dell'amministrazione;1;Organi istituzionali dell'amministrazione - Indennità;05/08/2019
1535;1;0;97,61;97,61;CARTA ANGELO; ;indennita di carica al sindaco, vice sindaco e assessori luglio 2019;05/08/2019;10;0;40;1;Spese correnti;3;Acquisto di beni e servizi;2;Acquisto di servizi;1;Organi e incarichi istituzionali dell'amministrazione;1;Organi istituzionali dell'amministrazione - Indennità;05/08/2019
1536;1;0;650,73;650,73;BUDRONI GIOVANNI MARIA; ;Rimborso forfettario a beneficio di Amministratori locali previsto dal Regolamento di attuazione dell'articolo 73 della legge regionale 4 febbraio 2016, n.2 (Riordino del sistema delle autonomie locali della Sardegna) -Impegno di spesa;05/08/2019;30;0;169;1;Spese correnti;3;Acquisto di beni e servizi;2;Acquisto di servizi;1;Organi e incarichi istituzionali dell'amministrazione;1;Organi istituzionali dell'amministrazione - Indennità;05/08/2019
1537;1;0;162,58;162,58;DELEDDA GIOMMARIA GIUSEPPE; ;Rimborso forfettario a beneficio di Amministratori locali previsto dal Regolamento di attuazione dell'articolo 73 della legge regionale 4 febbraio 2016, n.2 (Riordino del sistema delle autonomie locali della Sardegna) -Impegno di spesa;05/08/2019;30;0;169;1;Spese correnti;3;Acquisto di beni e servizi;2;Acquisto di servizi;1;Organi e incarichi istituzionali dell'amministrazione;1;Organi istituzionali dell'amministrazione - Indennità;05/08/2019
1538;1;0;162,58;162,58;MASIA DOMENICO; ;Rimborso forfettario a beneficio di Amministratori locali previsto dal Regolamento di attuazione dell'articolo 73 della legge regionale 4 febbraio 2016, n.2 (Riordino del sistema delle autonomie locali della Sardegna) -Impegno di spesa;05/08/2019;30;0;169;1;Spese correnti;3;Acquisto di beni e servizi;2;Acquisto di servizi;1;Organi e incarichi istituzionali dell'amministrazione;1;Organi istituzionali dell'amministrazione - Indennità;05/08/2019
1539;1;0;162,58;162,58;MAMELI MARIA LUCIA; ;Rimborso forfettario a beneficio di Amministratori locali previsto dal Regolamento di attuazione dell'articolo 73 della legge regionale 4 febbraio 2016, n.2 (Riordino del sistema delle autonomie locali della Sardegna) -Impegno di spesa;05/08/2019;30;0;169;1;Spese correnti;3;Acquisto di beni e servizi;2;Acquisto di servizi;1;Organi e incarichi istituzionali dell'amministrazione;1;Organi istituzionali dell'amministrazione - Indennità;05/08/2019
1540;1;0;162,58;162,58;CARTA ANGELO; ;Rimborso forfettario a beneficio di Amministratori locali previsto dal Regolamento di attuazione dell'articolo 73 della legge regionale 4 febbraio 2016, n.2 (Riordino del sistema delle autonomie locali della Sardegna) -Impegno di spesa;05/08/2019;30;0;169;1;Spese correnti;3;Acquisto di beni e servizi;2;Acquisto di servizi;1;Organi e incarichi istituzionali dell'amministrazione;1;Organi istituzionali dell'amministrazione - Indennità;05/08/2019
1541;1;0;302,22;302,22;MINISTERO DELL'INTERNO; ;Versamento al Ministero dell' Interno dei diritti relativi alle carte d' identita elettroniche emesse - 2^ versamento Mese di Luglio 2019;05/08/2019;939;0;257;1;Spese correnti;4;Trasferimenti correnti;1;Trasferimenti correnti a Amministrazioni Pubbliche;1;Trasferimenti correnti a Amministrazioni Centrali;1;Trasferimenti correnti a Ministeri;05/08/2019
1550;1;0;204,72;204,72;ABBANOA S.P.A.; ;SALDO Fatt.n. 0150020190001556900  del 12/07/2019 B/Bollettazione;07/08/2019;5438;0;261;1;Spese correnti;3;Acquisto di beni e servizi;2;Acquisto di servizi;5;Utenze e canoni;5;Acqua;07/08/2019
1551;1;0;864,3;864,3;ABBANOA S.P.A.; ;SALDO Fatt.n. 0150020190001602700  del 19/07/2019 B/Bollettazione;07/08/2019;5438;0;275;1;Spese correnti;3;Acquisto di beni e servizi;2;Acquisto di servizi;5;Utenze e canoni;5;Acqua;07/08/2019
1552;1;0;2.876,57;2.876,57;ABBANOA S.P.A.; ;SALDO Fatt.n. 0150020190001602600  del 19/07/2019 B/Bollettazione;07/08/2019;5438;0;274;1;Spese correnti;3;Acquisto di beni e servizi;2;Acquisto di servizi;5;Utenze e canoni;5;Acqua;07/08/2019
1553;1;0;1.619,27;1.619,27;ABBANOA S.P.A.; ;SALDO Fatt.n. 0150020190001593500  del 17/07/2019 B/Bollettazione;07/08/2019;5438;0;273;1;Spese correnti;3;Acquisto di beni e servizi;2;Acquisto di servizi;5;Utenze e canoni;5;Acqua;07/08/2019
1554;1;0;84,79;84,79;ABBANOA S.P.A.; ;SALDO Fatt.n. 0150020190001557200  del 12/07/2019 B/Bollettazione;07/08/2019;5438;0;264;1;Spese correnti;3;Acquisto di beni e servizi;2;Acquisto di servizi;5;Utenze e canoni;5;Acqua;07/08/2019
1555;1;0;191,14;191,14;ABBANOA S.P.A.; ;SALDO Fatt.n. 0150020190001593300  del 17/07/2019 B/Bollettazione;07/08/2019;5438;0;271;1;Spese correnti;3;Acquisto di beni e servizi;2;Acquisto di servizi;5;Utenze e canoni;5;Acqua;07/08/2019
1556;1;0;1.297,14;1.297,14;ABBANOA S.P.A.; ;SALDO Fatt.n. 0150020190001593200  del 17/07/2019 B/Bollettazione;07/08/2019;5438;0;270;1;Spese correnti;3;Acquisto di beni e servizi;2;Acquisto di servizi;5;Utenze e canoni;5;Acqua;07/08/2019
1557;1;0;827,82;827,82;ABBANOA S.P.A.; ;SALDO Fatt.n. 0150020190001578400  del 16/07/2019 B/Bollettazione;07/08/2019;5438;0;265;1;Spese correnti;3;Acquisto di beni e servizi;2;Acquisto di servizi;5;Utenze e canoni;5;Acqua;07/08/2019
1558;1;0;465,27;465,27;ABBANOA S.P.A.; ;SALDO Fatt.n. 0150020190001593100  del 17/07/2019 B/Bollettazione;07/08/2019;5438;0;269;1;Spese correnti;3;Acquisto di beni e servizi;2;Acquisto di servizi;5;Utenze e canoni;5;Acqua;07/08/2019
1559;1;0;565,92;565,92;ABBANOA S.P.A.; ;SALDO Fatt.n. 0150020190001557000  del 12/07/2019 B/Bollettazione;07/08/2019;5438;0;262;1;Spese correnti;3;Acquisto di beni e servizi;2;Acquisto di servizi;5;Utenze e canoni;5;Acqua;07/08/2019
1560;1;0;71,82;71,82;ABBANOA S.P.A.; ;SALDO Fatt.n. 0150020190001557100  del 12/07/2019 B/Bollettazione;07/08/2019;5438;0;263;1;Spese correnti;3;Acquisto di beni e servizi;2;Acquisto di servizi;5;Utenze e canoni;5;Acqua;07/08/2019
1561;1;0;67,46;67,46;ABBANOA S.P.A.; ;SALDO Fatt.n. 0150020190001578600  del 16/07/2019 B/Bollettazione;07/08/2019;5438;0;267;1;Spese correnti;3;Acquisto di beni e servizi;2;Acquisto di servizi;5;Utenze e canoni;5;Acqua;07/08/2019
1562;1;0;201,56;201,56;ABBANOA S.P.A.; ;SALDO Fatt.n. 0150020190001578700  del 16/07/2019 B/Bollettazione;07/08/2019;5438;0;268;1;Spese correnti;3;Acquisto di beni e servizi;2;Acquisto di servizi;5;Utenze e canoni;5;Acqua;07/08/2019
1563;1;0;109,66;109,66;ABBANOA S.P.A.; ;SALDO Fatt.n. 0150020190001593400  del 17/07/2019 B/Bollettazione;07/08/2019;5438;0;272;1;Spese correnti;3;Acquisto di beni e servizi;2;Acquisto di servizi;5;Utenze e canoni;5;Acqua;07/08/2019
1564;1;0;75,61;75,61;ABBANOA S.P.A.; ;SALDO Fatt.n. 0150020190001578500  del 16/07/2019 B/Bollettazione;07/08/2019;5438;0;266;1;Spese correnti;3;Acquisto di beni e servizi;2;Acquisto di servizi;5;Utenze e canoni;5;Acqua;07/08/2019
1565;1;0;799,06;799,06;ABBANOA S.P.A.; ;SALDO Fatt.n. 0150020190001602800  del 19/07/2019 B/Bollettazione;07/08/2019;5438;0;276;1;Spese correnti;3;Acquisto di beni e servizi;2;Acquisto di servizi;5;Utenze e canoni;5;Acqua;07/08/2019
1566;1;0;463,6;463,6;SECHI SG DOMOTIC DI ALESSANDRO;ZC12908125;SALDO Fatt.n. 3/PA  del 28/07/2019 Fornitura e installazione di linea di alimentazione e quadro elettrico posizionato nell'aria del campo di calcetto di Via Spina Santa. Smart GIC ZC12908125 N' 215 del 02-07-2019;08/08/2019;452;0;212;1;Spese correnti;3;Acquisto di beni e servizi;1;Acquisto di beni;2;Altri beni di consumo;999;Altri beni e materiali di consumo n.a.c.;08/08/2019
1567;1;0;399,55;399,55;R.H. IMPIANTI DI RAHAMANI HAMIDREZA;ZA628A32E1;SALDO Fatt.n. 90  del 03/08/2019 : IL COSTO DEL CANONE MENSILE PER IL SERVIZIO DI GESTIONE E MANUTENZIONE L'IMPIANTO DI ILLUMINAZIONE PUBBLICA DEL MESE DI LUGLIO 2019;08/08/2019;4144;0;195;1;Spese correnti;3;Acquisto di beni e servizi;2;Acquisto di servizi;15;Contratti di servizio pubblico;15;Contratti di servizio per l'illuminazione pubblica;08/08/2019
1568;1;0;413;413;STAZIONE RIFORNIMENTO ESSO DI SALVATORE MUDADU;ZA128CBA9A;SALDO Fatt.n. 15/PA  del 01/08/2019 CARBURANTE TIPO DIESEL PER VOSTRI MEZZI MESE LUGLIO 2019;08/08/2019;438;0;204;1;Spese correnti;3;Acquisto di beni e servizi;1;Acquisto di beni;2;Altri beni di consumo;2;Carburanti, combustibili e lubrificanti;08/08/2019
1569;1;0;122;122;AUTOFFICINA RUBATTU  ANGELO;ZB22964B7E;SALDO Fatt.n. FPA 3/19  del 01/08/2019;08/08/2019;439;0;256;1;Spese correnti;3;Acquisto di beni e servizi;2;Acquisto di servizi;9;Manutenzione ordinaria e riparazioni;1;Manutenzione ordinaria e riparazioni di mezzi di trasporto ad uso civile, di sicurezza e ordine pubblico;08/08/2019
1570;1;0;87,02;87,02;POSTE ITALIANE S.P.A.;Z782756457;SALDO Fatt.n. 8719247472  del 31/07/2019 Fattura Elettronica relativa all'Identificativo Rendiconto 2103092962;09/08/2019;460;4;75;1;Spese correnti;3;Acquisto di beni e servizi;2;Acquisto di servizi;16;Servizi amministrativi;2;Spese postali;09/08/2019
1571;1;0;306,22;306,22;ICART SRL;ZAA2971350;SALDO Fatt.n. 692  del 07/08/2019 ORDINE CAT 4822 DEL 06/08/19;09/08/2019;430;0;260;1;Spese correnti;3;Acquisto di beni e servizi;1;Acquisto di beni;2;Altri beni di consumo;1;Carta, cancelleria e stampati;09/08/2019
1573;1;0;29.215,25;29.215,25;AGECO S.R.L;7782458F7E;"ACCONTO Fatt.n. FATTPA 10_19  del 07/08/2019 PAGAMENTO SECONDO STATO DI AVANZAMENTO. REALIZZAZIONE ROTATORIA STRADALE INTERSEZIONE VIA ITALIA - VIA 	EUROPA";14/08/2019;9253;0;411;2;Spese in conto capitale;2;Investimenti fissi lordi e acquisto di terreni;1;Beni materiali;9;Beni immobili;12;Infrastrutture stradali;14/08/2019
1574;1;0;1.344,98;1.344,98;AGECO S.R.L;7782458F7E;"SALDO Fatt.n. FATTPA 10_19  del 07/08/2019 PAGAMENTO SECONDO STATO DI AVANZAMENTO. REALIZZAZIONE ROTATORIA STRADALE INTERSEZIONE VIA ITALIA - VIA 	EUROPA";14/08/2019;9253;0;411;2;Spese in conto capitale;2;Investimenti fissi lordi e acquisto di terreni;1;Beni materiali;9;Beni immobili;12;Infrastrutture stradali;14/08/2019
1575;1;0;2.500,00;2.500,00;ASSOCIAZIONE TURISTICA PRO LOCO; ;"Liquidazione  contributo economico all'Associazione Turistica Pro loco di Tissi  per la realizzazione dell'iniziativa denominata "" Sagra dell'Asparago 2018  - Tissi 22/04/2018";27/08/2019;3800;0;154;1;Spese correnti;4;Trasferimenti correnti;4;Trasferimenti correnti a Istituzioni Sociali Private;1;Trasferimenti correnti a Istituzioni Sociali Private;1;Trasferimenti correnti a Istituzioni Sociali Private;27/08/2019
1576;1;0;218,27;218,27;MINISTERO DELL'INTERNO; ;Versamento al Ministero dell' Interno dei diritti relativi alle carte d' identita elettroniche emesse - 1 versamento Mese di Agosto 2019;27/08/2019;939;0;279;1;Spese correnti;4;Trasferimenti correnti;1;Trasferimenti correnti a Amministrazioni Pubbliche;1;Trasferimenti correnti a Amministrazioni Centrali;1;Trasferimenti correnti a Ministeri;27/08/2019
1577;1;0;1.682,04;1.682,04;INTERNET BOOKSHOPP;Z952921DD4;SALDO Fatt.n. 24963/C  del 26/07/2019;27/08/2019;3790;0;228;1;Spese correnti;3;Acquisto di beni e servizi;1;Acquisto di beni;2;Altri beni di consumo;1;Carta, cancelleria e stampati;27/08/2019
1578;1;0;25,66;25,66;INTERNET BOOKSHOPP;Z952921DD4;SALDO Fatt.n. 25178/C  del 30/07/2019;27/08/2019;3790;0;228;1;Spese correnti;3;Acquisto di beni e servizi;1;Acquisto di beni;2;Altri beni di consumo;1;Carta, cancelleria e stampati;27/08/2019
1579;1;0;22.688,10;22.688,10;CO.ME.S. Cooperativa Mediateche Sarde a r.l.;7671745C3D;SALDO Fatt.n. 82  del 05/08/2019 Tissi // Servizio Gestione del Sistema Bibliotecario del Coros Figulinas periodo luglio 2019;27/08/2019;3782;0;391;1;Spese correnti;3;Acquisto di beni e servizi;2;Acquisto di servizi;99;Altri servizi;999;Altri servizi diversi n.a.c.;27/08/2019
1580;1;0;1.134,00;1.134,00;NOMINATIVO OMESSO PER PRIVACY; ;Programma regionale  Ritornare a casa -Attivazione progetto personalizzato a favore di SIB180984F -Periodo LUGLIO 2019.;27/08/2019;6666;26;60;1;Spese correnti;3;Acquisto di beni e servizi;2;Acquisto di servizi;99;Altri servizi;999;Altri servizi diversi n.a.c.;27/08/2019
1581;1;0;805,16;805,16;SERENISSIMA Coop.va Sociale a r.l.; ;Programma regionale  Ritornare a casa -Attivazione progetto personalizzato a favore di SIB180984F -Periodo LUGLIO 2019.;27/08/2019;6666;26;60;1;Spese correnti;3;Acquisto di beni e servizi;2;Acquisto di servizi;99;Altri servizi;999;Altri servizi diversi n.a.c.;27/08/2019
1582;1;0;1.039,50;1.039,50;NOMINATIVO OMESSO PER PRIVACY; ;Programma regionale  Ritornare a casa -Attivazione progetto personalizzato SG240250M - Mese di   LUGLIO 2019.;27/08/2019;6666;26;59;1;Spese correnti;3;Acquisto di beni e servizi;2;Acquisto di servizi;99;Altri servizi;999;Altri servizi diversi n.a.c.;27/08/2019
1583;1;0;5.037,70;5.037,70;CONSORZIO LA SORGENTE;7312004894;SALDO Fatt.n. 3/207  del 01/08/2019 VENDITA;27/08/2019;6666;24;378;1;Spese correnti;3;Acquisto di beni e servizi;2;Acquisto di servizi;99;Altri servizi;999;Altri servizi diversi n.a.c.;27/08/2019
1584;1;0;857,97;857,97;CONSORZIO LA SORGENTE;7312004894;SALDO Fatt.n. 3/208  del 01/08/2019  ASSISTENZA SCOLASTICA - OSS -;27/08/2019;6666;24;378;1;Spese correnti;3;Acquisto di beni e servizi;2;Acquisto di servizi;99;Altri servizi;999;Altri servizi diversi n.a.c.;27/08/2019
1585;1;0;330,46;330,46;CONSORZIO LA SORGENTE;Z8725DCDC1;SALDO Fatt.n. 3/209  del 01/08/2019 GRUPPO SOSTEGNO ALLO STUDIO;27/08/2019;6666;24;341;1;Spese correnti;3;Acquisto di beni e servizi;2;Acquisto di servizi;99;Altri servizi;999;Altri servizi diversi n.a.c.;27/08/2019
1586;1;0;2.128,54;2.128,54;NOMINATIVO OMESSO PER PRIVACY; ;"integrazione rette di ricovero in struttura socio-assistenziale a favore di LMA270238F  C.I. "" Villa Gardenia"" di Ossi . Periodo luglio - agosto 2019.";27/08/2019;6666;27;42;1;Spese correnti;3;Acquisto di beni e servizi;2;Acquisto di servizi;99;Altri servizi;999;Altri servizi diversi n.a.c.;27/08/2019
1587;1;0;718,41;718,41;NOMINATIVO OMESSO PER PRIVACY; ;Liquidazione di spesa preventivamente impegnata per Piani personalizzati L. 162/98 gestione 2018 annualita 2019 - periodo LUGLIO 2019;27/08/2019;7038;0;293;1;Spese correnti;4;Trasferimenti correnti;2;Trasferimenti correnti a Famiglie;5;Altri trasferimenti a famiglie;999;Altri trasferimenti a famiglie n.a.c.;27/08/2019
1588;1;0;216;216;NOMINATIVO OMESSO PER PRIVACY; ;Liquidazione di spesa preventivamente impegnata per Piani personalizzati L. 162/98 gestione 2018 annualita 2019 - periodo LUGLIO 2019;27/08/2019;7038;0;293;1;Spese correnti;4;Trasferimenti correnti;2;Trasferimenti correnti a Famiglie;5;Altri trasferimenti a famiglie;999;Altri trasferimenti a famiglie n.a.c.;27/08/2019
1589;1;0;375;375;NOMINATIVO OMESSO PER PRIVACY; ;Liquidazione di spesa preventivamente impegnata per Piani personalizzati L. 162/98 gestione 2018 annualita 2019 - periodo LUGLIO 2019;27/08/2019;7038;0;293;1;Spese correnti;4;Trasferimenti correnti;2;Trasferimenti correnti a Famiglie;5;Altri trasferimenti a famiglie;999;Altri trasferimenti a famiglie n.a.c.;27/08/2019
1590;1;0;108,04;108,04;NOMINATIVO OMESSO PER PRIVACY; ;Liquidazione di spesa preventivamente impegnata per Piani personalizzati L. 162/98 gestione 2018 annualita 2019 - periodo LUGLIO 2019;27/08/2019;7038;0;293;1;Spese correnti;4;Trasferimenti correnti;2;Trasferimenti correnti a Famiglie;5;Altri trasferimenti a famiglie;999;Altri trasferimenti a famiglie n.a.c.;27/08/2019
1591;1;0;341,25;341,25;NOMINATIVO OMESSO PER PRIVACY; ;Liquidazione di spesa preventivamente impegnata per Piani personalizzati L. 162/98 gestione 2018 annualita 2019 - periodo LUGLIO 2019;27/08/2019;7038;0;293;1;Spese correnti;4;Trasferimenti correnti;2;Trasferimenti correnti a Famiglie;5;Altri trasferimenti a famiglie;999;Altri trasferimenti a famiglie n.a.c.;27/08/2019
1592;1;0;131,15;131,15;NOMINATIVO OMESSO PER PRIVACY; ;Liquidazione di spesa preventivamente impegnata per Piani personalizzati L. 162/98 gestione 2018 annualita 2019 - periodo LUGLIO 2019;27/08/2019;7038;0;293;1;Spese correnti;4;Trasferimenti correnti;2;Trasferimenti correnti a Famiglie;5;Altri trasferimenti a famiglie;999;Altri trasferimenti a famiglie n.a.c.;27/08/2019
1593;1;0;458,01;458,01;NOMINATIVO OMESSO PER PRIVACY; ;Liquidazione di spesa preventivamente impegnata per Piani personalizzati L. 162/98 gestione 2018 annualita 2019 - periodo LUGLIO 2019;27/08/2019;7038;0;293;1;Spese correnti;4;Trasferimenti correnti;2;Trasferimenti correnti a Famiglie;5;Altri trasferimenti a famiglie;999;Altri trasferimenti a famiglie n.a.c.;27/08/2019
1594;1;0;158;158;NOMINATIVO OMESSO PER PRIVACY; ;Liquidazione di spesa preventivamente impegnata per Piani personalizzati L. 162/98 gestione 2018 annualita 2019 - periodo LUGLIO 2019;27/08/2019;7038;0;293;1;Spese correnti;4;Trasferimenti correnti;2;Trasferimenti correnti a Famiglie;5;Altri trasferimenti a famiglie;999;Altri trasferimenti a famiglie n.a.c.;27/08/2019
1595;1;0;102,44;102,44;NOMINATIVO OMESSO PER PRIVACY; ;Liquidazione di spesa preventivamente impegnata per Piani personalizzati L. 162/98 gestione 2018 annualita 2019 - periodo LUGLIO 2019;27/08/2019;7038;0;293;1;Spese correnti;4;Trasferimenti correnti;2;Trasferimenti correnti a Famiglie;5;Altri trasferimenti a famiglie;999;Altri trasferimenti a famiglie n.a.c.;27/08/2019
1596;1;0;352,5;352,5;NOMINATIVO OMESSO PER PRIVACY; ;Liquidazione di spesa preventivamente impegnata per Piani personalizzati L. 162/98 gestione 2018 annualita 2019 - periodo LUGLIO 2019;27/08/2019;7038;0;293;1;Spese correnti;4;Trasferimenti correnti;2;Trasferimenti correnti a Famiglie;5;Altri trasferimenti a famiglie;999;Altri trasferimenti a famiglie n.a.c.;27/08/2019
1597;1;0;127,9;127,9;NOMINATIVO OMESSO PER PRIVACY; ;Liquidazione di spesa preventivamente impegnata per Piani personalizzati L. 162/98 gestione 2018 annualita 2019 - periodo LUGLIO 2019;27/08/2019;7038;0;293;1;Spese correnti;4;Trasferimenti correnti;2;Trasferimenti correnti a Famiglie;5;Altri trasferimenti a famiglie;999;Altri trasferimenti a famiglie n.a.c.;27/08/2019
1598;1;0;667,5;667,5;NOMINATIVO OMESSO PER PRIVACY; ;Liquidazione di spesa preventivamente impegnata per Piani personalizzati L. 162/98 gestione 2018 annualita 2019 - periodo LUGLIO 2019;27/08/2019;7038;0;293;1;Spese correnti;4;Trasferimenti correnti;2;Trasferimenti correnti a Famiglie;5;Altri trasferimenti a famiglie;999;Altri trasferimenti a famiglie n.a.c.;27/08/2019
1599;1;0;124,63;124,63;NOMINATIVO OMESSO PER PRIVACY; ;Liquidazione di spesa preventivamente impegnata per Piani personalizzati L. 162/98 gestione 2018 annualita 2019 - periodo LUGLIO 2019;27/08/2019;7038;0;293;1;Spese correnti;4;Trasferimenti correnti;2;Trasferimenti correnti a Famiglie;5;Altri trasferimenti a famiglie;999;Altri trasferimenti a famiglie n.a.c.;27/08/2019
1600;1;0;336;336;NOMINATIVO OMESSO PER PRIVACY; ;Liquidazione di spesa preventivamente impegnata per Piani personalizzati L. 162/98 gestione 2018 annualita 2019 - periodo LUGLIO 2019;27/08/2019;7038;0;293;1;Spese correnti;4;Trasferimenti correnti;2;Trasferimenti correnti a Famiglie;5;Altri trasferimenti a famiglie;999;Altri trasferimenti a famiglie n.a.c.;27/08/2019
1601;1;0;318,18;318,18;NOMINATIVO OMESSO PER PRIVACY; ;Liquidazione di spesa preventivamente impegnata per Piani personalizzati L. 162/98 gestione 2018 annualita 2019 - periodo LUGLIO 2019;27/08/2019;7038;0;293;1;Spese correnti;4;Trasferimenti correnti;2;Trasferimenti correnti a Famiglie;5;Altri trasferimenti a famiglie;999;Altri trasferimenti a famiglie n.a.c.;27/08/2019
1602;1;0;468,75;468,75;NOMINATIVO OMESSO PER PRIVACY; ;Liquidazione di spesa preventivamente impegnata per Piani personalizzati L. 162/98 gestione 2018 annualita 2019 - periodo LUGLIO 2019;27/08/2019;7038;0;293;1;Spese correnti;4;Trasferimenti correnti;2;Trasferimenti correnti a Famiglie;5;Altri trasferimenti a famiglie;999;Altri trasferimenti a famiglie n.a.c.;27/08/2019
1603;1;0;228,98;228,98;NOMINATIVO OMESSO PER PRIVACY; ;Liquidazione di spesa preventivamente impegnata per Piani personalizzati L. 162/98 gestione 2018 annualita 2019 - periodo LUGLIO 2019;27/08/2019;7038;0;293;1;Spese correnti;4;Trasferimenti correnti;2;Trasferimenti correnti a Famiglie;5;Altri trasferimenti a famiglie;999;Altri trasferimenti a famiglie n.a.c.;27/08/2019
1604;1;0;988;988;NOMINATIVO OMESSO PER PRIVACY; ;Liquidazione di spesa preventivamente impegnata per Piani personalizzati L. 162/98 gestione 2018 annualita 2019 - periodo LUGLIO 2019;27/08/2019;7038;0;293;1;Spese correnti;4;Trasferimenti correnti;2;Trasferimenti correnti a Famiglie;5;Altri trasferimenti a famiglie;999;Altri trasferimenti a famiglie n.a.c.;27/08/2019
1605;1;0;200;200;A.S.D  FOLGORE TISSI; ;"Liquidazione contributo economico all'A.S.D. Folgore Tissi per la partecipazione all'evento sportivo ""Coppa Coros"" -";27/08/2019;4000;1;186;1;Spese correnti;4;Trasferimenti correnti;4;Trasferimenti correnti a Istituzioni Sociali Private;1;Trasferimenti correnti a Istituzioni Sociali Private;1;Trasferimenti correnti a Istituzioni Sociali Private;27/08/2019
1606;1;0;916,78;916,78;G.P. GLOBAL POWER;622385037F;ACCONTO Fatt.n. V0/113111  del 01/08/2019 Fattura Energia Elettrica;28/08/2019;460;0;71;1;Spese correnti;3;Acquisto di beni e servizi;2;Acquisto di servizi;5;Utenze e canoni;4;Energia elettrica;28/08/2019
1607;1;0;410,49;410,49;G.P. GLOBAL POWER;622385037F;ACCONTO Fatt.n. V0/113111  del 01/08/2019 Fattura Energia Elettrica;28/08/2019;3788;0;65;1;Spese correnti;3;Acquisto di beni e servizi;2;Acquisto di servizi;5;Utenze e canoni;4;Energia elettrica;28/08/2019
1608;1;0;589,24;589,24;G.P. GLOBAL POWER;622385037F;ACCONTO Fatt.n. V0/113111  del 01/08/2019 Fattura Energia Elettrica;28/08/2019;3996;0;66;1;Spese correnti;3;Acquisto di beni e servizi;2;Acquisto di servizi;5;Utenze e canoni;4;Energia elettrica;28/08/2019
1609;1;0;43,96;43,96;G.P. GLOBAL POWER;622385037F;ACCONTO Fatt.n. V0/113111  del 01/08/2019 Fattura Energia Elettrica;28/08/2019;5452;0;67;1;Spese correnti;3;Acquisto di beni e servizi;2;Acquisto di servizi;5;Utenze e canoni;4;Energia elettrica;28/08/2019
1610;1;0;105,22;105,22;G.P. GLOBAL POWER;622385037F;ACCONTO Fatt.n. V0/113111  del 01/08/2019 Fattura Energia Elettrica;28/08/2019;5837;0;72;1;Spese correnti;3;Acquisto di beni e servizi;2;Acquisto di servizi;5;Utenze e canoni;4;Energia elettrica;28/08/2019
1611;1;0;67,01;67,01;G.P. GLOBAL POWER;622385037F;ACCONTO Fatt.n. V0/113111  del 01/08/2019 Fattura Energia Elettrica;28/08/2019;6666;8;243;1;Spese correnti;3;Acquisto di beni e servizi;2;Acquisto di servizi;99;Altri servizi;999;Altri servizi diversi n.a.c.;28/08/2019
1612;1;0;2.748,11;2.748,11;G.P. GLOBAL POWER;622385037F;ACCONTO Fatt.n. V0/113110  del 01/08/2019 Fattura Energia Elettrica;28/08/2019;4146;0;68;1;Spese correnti;3;Acquisto di beni e servizi;2;Acquisto di servizi;5;Utenze e canoni;4;Energia elettrica;28/08/2019
1613;1;0;51,07;51,07;G.P. GLOBAL POWER;622385037F;ACCONTO Fatt.n. V0/113109  del 01/08/2019 Fattura Energia Elettrica;28/08/2019;460;0;71;1;Spese correnti;3;Acquisto di beni e servizi;2;Acquisto di servizi;5;Utenze e canoni;4;Energia elettrica;28/08/2019
1615;1;0;48,85;48,85;G.P. GLOBAL POWER;622385037F;ACCONTO Fatt.n. V0/113112  del 01/08/2019 Fattura Energia Elettrica;28/08/2019;2815;0;69;1;Spese correnti;3;Acquisto di beni e servizi;2;Acquisto di servizi;5;Utenze e canoni;4;Energia elettrica;28/08/2019
1616;1;0;142,86;142,86;G.P. GLOBAL POWER;622385037F;ACCONTO Fatt.n. V0/113112  del 01/08/2019 Fattura Energia Elettrica;28/08/2019;3300;0;242;1;Spese correnti;3;Acquisto di beni e servizi;2;Acquisto di servizi;5;Utenze e canoni;4;Energia elettrica;28/08/2019
1617;1;0;166,3;166,3;G.P. GLOBAL POWER;622385037F;ACCONTO Fatt.n. V0/113112  del 01/08/2019 Fattura Energia Elettrica;28/08/2019;3040;0;70;1;Spese correnti;3;Acquisto di beni e servizi;2;Acquisto di servizi;5;Utenze e canoni;4;Energia elettrica;28/08/2019
1618;1;0;469,19;469,19;G.P. GLOBAL POWER;622385037F;SALDO Fatt.n. V0/113111  del 01/08/2019 Fattura Energia Elettrica;28/08/2019;460;0;71;1;Spese correnti;3;Acquisto di beni e servizi;2;Acquisto di servizi;5;Utenze e canoni;4;Energia elettrica;28/08/2019
1619;1;0;11,24;11,24;G.P. GLOBAL POWER;622385037F;SALDO Fatt.n. V0/113109  del 01/08/2019 Fattura Energia Elettrica;28/08/2019;460;0;71;1;Spese correnti;3;Acquisto di beni e servizi;2;Acquisto di servizi;5;Utenze e canoni;4;Energia elettrica;28/08/2019
1620;1;0;604,58;604,58;G.P. GLOBAL POWER;622385037F;SALDO Fatt.n. V0/113110  del 01/08/2019 Fattura Energia Elettrica;28/08/2019;4146;0;68;1;Spese correnti;3;Acquisto di beni e servizi;2;Acquisto di servizi;5;Utenze e canoni;4;Energia elettrica;28/08/2019
1621;1;0;35,8;35,8;G.P. GLOBAL POWER;622385037F;SALDO Fatt.n. V0/113112  del 01/08/2019 Fattura Energia Elettrica;28/08/2019;3300;0;242;1;Spese correnti;3;Acquisto di beni e servizi;2;Acquisto di servizi;5;Utenze e canoni;4;Energia elettrica;28/08/2019
1622;1;0;1;1;BANCO DI SARDEGNA S.P.A.; ;spese per addebito rid;29/08/2019;540;0;194;1;Spese correnti;3;Acquisto di beni e servizi;2;Acquisto di servizi;17;Servizi finanziari;1;Commissioni per servizi finanziari;29/08/2019
1633;1;0;225;225;ANAC autorita nazionale anticorruzione; ;Versamento contributo gare a favore di ANAC ai sensi dell'art. 1, commi 65 e 67, della legge 23 dicembre 2005, n. 266. Codice Gara: 7327988 - 7372017 - 7391807 - 7414779.;02/09/2019;9402;0;412;2;Spese in conto capitale;2;Investimenti fissi lordi e acquisto di terreni;1;Beni materiali;9;Beni immobili;14;Opere per la sistemazione del suolo;02/09/2019
1634;1;0;30;30;ANAC autorita nazionale anticorruzione; ;Versamento contributo gare a favore di ANAC ai sensi dell'art. 1, commi 65 e 67, della legge 23 dicembre 2005, n. 266. Codice Gara: 7327988 - 7372017 - 7391807 - 7414779.;02/09/2019;7100;0;281;1;Spese correnti;10;Altre spese correnti;99;Altre spese correnti n.a.c.;99;Altre spese correnti n.a.c.;999;Altre spese correnti n.a.c.;02/09/2019
1635;1;0;30;30;ANAC autorita nazionale anticorruzione; ;Versamento contributo gare a favore di ANAC ai sensi dell'art. 1, commi 65 e 67, della legge 23 dicembre 2005, n. 266. Codice Gara: 7327988 - 7372017 - 7391807 - 7414779.;02/09/2019;9103;0;282;2;Spese in conto capitale;2;Investimenti fissi lordi e acquisto di terreni;1;Beni materiali;3;Mobili e arredi;999;Mobili e arredi n.a.c.;02/09/2019
1636;1;0;30;30;ANAC autorita nazionale anticorruzione;7782458F7E;Versamento contributo gare a favore di ANAC ai sensi dell'art. 1, commi 65 e 67, della legge 23 dicembre 2005, n. 266. Codice Gara: 7327988 - 7372017 - 7391807 - 7414779.;02/09/2019;9253;0;411;2;Spese in conto capitale;2;Investimenti fissi lordi e acquisto di terreni;1;Beni materiali;9;Beni immobili;12;Infrastrutture stradali;02/09/2019
1637;1;0;25.882,06;25.882,06;S.A.S.S.U. SRL;7899434328;SALDO Fatt.n. 3/21  del 09/08/2019 SISTEMAZIONE E MESSA I SICUREZZA MARCIAPIEDI VIA ROMA PARTE;02/09/2019;9458;0;165;2;Spese in conto capitale;2;Investimenti fissi lordi e acquisto di terreni;1;Beni materiali;9;Beni immobili;14;Opere per la sistemazione del suolo;02/09/2019
1638;1;0;3.899,21;3.899,21;PIRODDI SERGIO;ZBC24E1387;SALDO Fatt.n. 000001-2019-E  del 09/08/2019 Direzione lavori rotatoria stradale di intersezione via Italia - via Europa;02/09/2019;9253;0;411;2;Spese in conto capitale;2;Investimenti fissi lordi e acquisto di terreni;1;Beni materiali;9;Beni immobili;12;Infrastrutture stradali;02/09/2019
1639;1;0;1.500,00;1.500,00;COMITATO FESTEGGIAMENTI SANTA VITTORIA; ;Liquidazione contributo economico straordinario  al Comitato 2019 per i festeggiamenti in onore di Santa Vittoria. - Tissi 15 maggio 2019 -;03/09/2019;3800;0;160;1;Spese correnti;4;Trasferimenti correnti;4;Trasferimenti correnti a Istituzioni Sociali Private;1;Trasferimenti correnti a Istituzioni Sociali Private;1;Trasferimenti correnti a Istituzioni Sociali Private;03/09/2019
1640;1;0;450;450;A.S.D. SPORTISSI; ;"Liquidazione saldo contributo economico all'A.S.D SPORTISSI  , per la manifestazione sportiva ""Torneo Piccola Parigi 3vs3"" -";03/09/2019;4000;1;159;1;Spese correnti;4;Trasferimenti correnti;4;Trasferimenti correnti a Istituzioni Sociali Private;1;Trasferimenti correnti a Istituzioni Sociali Private;1;Trasferimenti correnti a Istituzioni Sociali Private;03/09/2019
1641;1;0;197;197;STAZIONE RIFORNIMENTO ESSO DI SALVATORE MUDADU;ZA128CBA9A;SALDO Fatt.n. 18/PA  del 31/08/2019 Carburante tipo diesel per vostro mezzo mese agosto 2019;03/09/2019;438;0;204;1;Spese correnti;3;Acquisto di beni e servizi;1;Acquisto di beni;2;Altri beni di consumo;2;Carburanti, combustibili e lubrificanti;03/09/2019
1642;1;0;250;250;NOMINATIVO OMESSO PER PRIVACY; ;per assistenza economica ordinaria  a favore di nuclei familiari in stato di disagio - Liquidazione SETTEMBRE 2019.;03/09/2019;6666;0;254;1;Spese correnti;4;Trasferimenti correnti;2;Trasferimenti correnti a Famiglie;2;Interventi assistenziali;999;Altri assegni e sussidi assistenziali;03/09/2019
1644;1;0;1.260,00;1.260,00;IRIS; ;SALDO Fatt.n. 311/V2  del 31/08/2019 INTEGRAZIONE retta Graziani Luciana LUGLIO-AGOSTO 2019;03/09/2019;6666;27;47;1;Spese correnti;3;Acquisto di beni e servizi;2;Acquisto di servizi;99;Altri servizi;999;Altri servizi diversi n.a.c.;03/09/2019
1645;1;0;1.155,00;1.155,00;IRIS; ;SALDO Fatt.n. 312/V2  del 31/08/2019 INTEGRAZIONE retta Chessa Cosimo LUGLIO-AGOSTO 2019;03/09/2019;6666;27;48;1;Spese correnti;3;Acquisto di beni e servizi;2;Acquisto di servizi;99;Altri servizi;999;Altri servizi diversi n.a.c.;03/09/2019
1646;1;0;1.647,00;1.647,00;BRANDINU MICHELE;Z5328DD77C;"SALDO Fatt.n. 74  del 30/06/2019 FRESATURA, FORNITURA E POSA IN OPERA DI CONGLOMERATO BITUMINOSO, TIPO ""TAPPETO"", CON LO SPESSORE MEDIO DI CM. 3 - NEL CANTIERE DI VIA ROMA A TISSI";05/09/2019;454;0;206;1;Spese correnti;3;Acquisto di beni e servizi;2;Acquisto di servizi;9;Manutenzione ordinaria e riparazioni;8;Manutenzione ordinaria e riparazioni di beni immobili;05/09/2019
1647;1;0;3.600,00;3.600,00;ASSOCIAZIONE TURISTICA PRO LOCO; ;"Concessione contributo straordinario all'  Associazione Turistica Pro Loco Tissi per l'organizzazione   delliniziativa denominata ""Tissi: informazione, educazione e prevenzione- Appuntamenti con la nostra salute"".  Approvazione rendiconto e liquidazi";05/09/2019;6666;31;224;1;Spese correnti;4;Trasferimenti correnti;4;Trasferimenti correnti a Istituzioni Sociali Private;1;Trasferimenti correnti a Istituzioni Sociali Private;1;Trasferimenti correnti a Istituzioni Sociali Private;05/09/2019
1648;1;0;3.000,00;3.000,00;COMPAGNIA BARRACELLARE DI TISSI; ;Legge Regionale n. 25 del 15 luglio 1988. Impegno di spesa e liquidazione di un contributo straordinario alla Compagnia Barracellare di Tissi per le attivita di gestione, servizi aggiuntivi e spese extra dell'anno 2019.;06/09/2019;5838;0;290;1;Spese correnti;4;Trasferimenti correnti;5;Trasferimenti correnti versati all'Unione Europea e al Resto del Mondo;4;Trasferimenti correnti al Resto del Mondo;1;Trasferimenti correnti al Resto del Mondo;06/09/2019
1649;1;0;2.852,36;2.852,36;SERVIZI PER L'AGRICOLTURA SAS DI GIANNI MANZONI;Z8C2932130;SALDO Fatt.n. 16/FE  del 28/08/2019 Lavori di manutenzione straordinaria del verde pubblico mediante abbattimento e taglio alberi in aree e strade Comunali;06/09/2019;6212;0;240;1;Spese correnti;3;Acquisto di beni e servizi;2;Acquisto di servizi;99;Altri servizi;999;Altri servizi diversi n.a.c.;06/09/2019
1650;1;0;290,46;290,46;AGRICOLA SASSARESE;Z3C29268DE;SALDO Fatt.n. 155/6300002001  del 16/07/2019 PA2 6300/002 n. 155 del 16/07/2019;06/09/2019;454;0;230;1;Spese correnti;3;Acquisto di beni e servizi;2;Acquisto di servizi;9;Manutenzione ordinaria e riparazioni;5;Manutenzione ordinaria e riparazioni di attrezzature;06/09/2019
1651;1;0;400;400;NOMINATIVO OMESSO PER PRIVACY; ;L.R. n. 23/2005-  Interventi di sostegno alla persona-Concessione contributi  straordinari  in favore di nuclei familiari in stato di disagio sociale ed economico. Impegno di spesa e liquidazione.;10/09/2019;6666;0;294;1;Spese correnti;4;Trasferimenti correnti;2;Trasferimenti correnti a Famiglie;2;Interventi assistenziali;999;Altri assegni e sussidi assistenziali;10/09/2019
1652;1;0;300;300;NOMINATIVO OMESSO PER PRIVACY; ;L.R. n. 23/2005-  Interventi di sostegno alla persona-Concessione contributi  straordinari  in favore di nuclei familiari in stato di disagio sociale ed economico. Impegno di spesa e liquidazione.;10/09/2019;6666;0;294;1;Spese correnti;4;Trasferimenti correnti;2;Trasferimenti correnti a Famiglie;2;Interventi assistenziali;999;Altri assegni e sussidi assistenziali;10/09/2019
1653;1;0;200;200;NOMINATIVO OMESSO PER PRIVACY; ;L.R. n. 23/2005-  Interventi di sostegno alla persona-Concessione contributi  straordinari  in favore di nuclei familiari in stato di disagio sociale ed economico. Impegno di spesa e liquidazione.;10/09/2019;6666;0;294;1;Spese correnti;4;Trasferimenti correnti;2;Trasferimenti correnti a Famiglie;2;Interventi assistenziali;999;Altri assegni e sussidi assistenziali;10/09/2019
1654;1;0;200;200;NOMINATIVO OMESSO PER PRIVACY; ;L.R. n. 23/2005-  Interventi di sostegno alla persona-Concessione contributi  straordinari  in favore di nuclei familiari in stato di disagio sociale ed economico. Impegno di spesa e liquidazione.;10/09/2019;6666;0;294;1;Spese correnti;4;Trasferimenti correnti;2;Trasferimenti correnti a Famiglie;2;Interventi assistenziali;999;Altri assegni e sussidi assistenziali;10/09/2019
1655;1;0;1.134,00;1.134,00;NOMINATIVO OMESSO PER PRIVACY; ;Programma regionale  Ritornare a casa -Attivazione progetto personalizzato a favore di SIB180984F -Periodo AGOSTO 2019.;10/09/2019;6666;26;60;1;Spese correnti;3;Acquisto di beni e servizi;2;Acquisto di servizi;99;Altri servizi;999;Altri servizi diversi n.a.c.;10/09/2019
1656;1;0;735,15;735,15;SERENISSIMA Coop.va Sociale a r.l.; ;Programma regionale  Ritornare a casa -Attivazione progetto personalizzato a favore di SIB180984F -Periodo AGOSTO 2019.;10/09/2019;6666;26;60;1;Spese correnti;3;Acquisto di beni e servizi;2;Acquisto di servizi;99;Altri servizi;999;Altri servizi diversi n.a.c.;10/09/2019
1657;1;0;9.220,44;9.220,44;CONSORZIO LA SORGENTE;Z922904083;SALDO Fatt.n. 3/238  del 05/09/2019 SERVIZIO DI ANIMAZIONE ESTIVA PER MINORI ANNO 2019;10/09/2019;6666;14;220;1;Spese correnti;3;Acquisto di beni e servizi;2;Acquisto di servizi;99;Altri servizi;999;Altri servizi diversi n.a.c.;10/09/2019
1658;1;0;1.039,50;1.039,50;NOMINATIVO OMESSO PER PRIVACY; ;Programma regionale  Ritornare a casa -Attivazione progetto personalizzato SG240250M - Mese di   AGOSTO 2019.;10/09/2019;6666;26;59;1;Spese correnti;3;Acquisto di beni e servizi;2;Acquisto di servizi;99;Altri servizi;999;Altri servizi diversi n.a.c.;10/09/2019
1659;1;0;47,07;47,07;POSTE ITALIANE S.P.A.; ;SPESE BANCO POSTA MESE DI GIUGNO;13/09/2019;540;0;0;1;Spese correnti;3;Acquisto di beni e servizi;2;Acquisto di servizi;17;Servizi finanziari;1;Commissioni per servizi finanziari;13/09/2019
1689;1;0;1.250,00;1.250,00;A.S.D  FOLGORE TISSI; ;Concessione contributo economico all'A.S.D. Folgore Tissi per l'iscrizione della squadra al campionato 2019/2020 di 3^ Categoria - Impegno di spesa e Liquidazione.;17/09/2019;4000;1;311;1;Spese correnti;4;Trasferimenti correnti;4;Trasferimenti correnti a Istituzioni Sociali Private;1;Trasferimenti correnti a Istituzioni Sociali Private;1;Trasferimenti correnti a Istituzioni Sociali Private;17/09/2019
1690;1;0;1.301,47;1.301,47;BUDRONI GIOVANNI MARIA; ;indennita di carica al sindaco, vice sindaco e assessori mese di settembre;18/09/2019;10;0;40;1;Spese correnti;3;Acquisto di beni e servizi;2;Acquisto di servizi;1;Organi e incarichi istituzionali dell'amministrazione;1;Organi istituzionali dell'amministrazione - Indennità;18/09/2019
1691;1;0;130,12;130,12;MASIA DOMENICO; ;indennita di carica al sindaco, vice sindaco e assessori mese di settembre;18/09/2019;10;0;40;1;Spese correnti;3;Acquisto di beni e servizi;2;Acquisto di servizi;1;Organi e incarichi istituzionali dell'amministrazione;1;Organi istituzionali dell'amministrazione - Indennità;18/09/2019
1692;1;0;195,22;195,22;DELEDDA GIOMMARIA GIUSEPPE; ;indennita di carica al sindaco, vice sindaco e assessori;18/09/2019;10;0;40;1;Spese correnti;3;Acquisto di beni e servizi;2;Acquisto di servizi;1;Organi e incarichi istituzionali dell'amministrazione;1;Organi istituzionali dell'amministrazione - Indennità;18/09/2019
1693;1;0;195,22;195,22;MAMELI MARIA LUCIA; ;indennita di carica al sindaco, vice sindaco e assessori mese di settembre;18/09/2019;10;0;40;1;Spese correnti;3;Acquisto di beni e servizi;2;Acquisto di servizi;1;Organi e incarichi istituzionali dell'amministrazione;1;Organi istituzionali dell'amministrazione - Indennità;18/09/2019
1694;1;0;97,61;97,61;CARTA ANGELO; ;indennita di carica al sindaco, vice sindaco e assessori;18/09/2019;10;0;40;1;Spese correnti;3;Acquisto di beni e servizi;2;Acquisto di servizi;1;Organi e incarichi istituzionali dell'amministrazione;1;Organi istituzionali dell'amministrazione - Indennità;18/09/2019
1695;1;0;650,73;650,73;BUDRONI GIOVANNI MARIA; ;Rimborso forfettario a beneficio di Amministratori locali previsto dal Regolamento di attuazione dell'articolo 73 della legge regionale 4 febbraio 2016, n.2 (Riordino del sistema delle autonomie locali della Sardegna) -Impegno di spesa;18/09/2019;30;0;169;1;Spese correnti;3;Acquisto di beni e servizi;2;Acquisto di servizi;1;Organi e incarichi istituzionali dell'amministrazione;1;Organi istituzionali dell'amministrazione - Indennità;18/09/2019
1696;1;0;162,58;162,58;MASIA DOMENICO; ;Rimborso forfettario a beneficio di Amministratori locali previsto dal Regolamento di attuazione dell'articolo 73 della legge regionale 4 febbraio 2016, n.2 (Riordino del sistema delle autonomie locali della Sardegna) -Impegno di spesa;18/09/2019;30;0;169;1;Spese correnti;3;Acquisto di beni e servizi;2;Acquisto di servizi;1;Organi e incarichi istituzionali dell'amministrazione;1;Organi istituzionali dell'amministrazione - Indennità;18/09/2019
1697;1;0;162,58;162,58;CARTA ANGELO; ;Rimborso forfettario a beneficio di Amministratori locali previsto dal Regolamento di attuazione dell'articolo 73 della legge regionale 4 febbraio 2016, n.2 (Riordino del sistema delle autonomie locali della Sardegna) -Impegno di spesa;18/09/2019;30;0;169;1;Spese correnti;3;Acquisto di beni e servizi;2;Acquisto di servizi;1;Organi e incarichi istituzionali dell'amministrazione;1;Organi istituzionali dell'amministrazione - Indennità;18/09/2019
1698;1;0;162,58;162,58;MAMELI MARIA LUCIA; ;Rimborso forfettario a beneficio di Amministratori locali previsto dal Regolamento di attuazione dell'articolo 73 della legge regionale 4 febbraio 2016, n.2 (Riordino del sistema delle autonomie locali della Sardegna) -Impegno di spesa;18/09/2019;30;0;169;1;Spese correnti;3;Acquisto di beni e servizi;2;Acquisto di servizi;1;Organi e incarichi istituzionali dell'amministrazione;1;Organi istituzionali dell'amministrazione - Indennità;18/09/2019
1699;1;0;162,58;162,58;DELEDDA GIOMMARIA GIUSEPPE; ;Rimborso forfettario a beneficio di Amministratori locali previsto dal Regolamento di attuazione dell'articolo 73 della legge regionale 4 febbraio 2016, n.2 (Riordino del sistema delle autonomie locali della Sardegna) -Impegno di spesa;18/09/2019;30;0;169;1;Spese correnti;3;Acquisto di beni e servizi;2;Acquisto di servizi;1;Organi e incarichi istituzionali dell'amministrazione;1;Organi istituzionali dell'amministrazione - Indennità;18/09/2019
1700;1;0;218,27;218,27;MINISTERO DELL'INTERNO; ;Versamento al Ministero dell' Interno dei diritti relativi alle carte d' identita elettroniche emesse - 2 versamento Mese di Agosto 2019;18/09/2019;939;0;312;1;Spese correnti;4;Trasferimenti correnti;1;Trasferimenti correnti a Amministrazioni Pubbliche;1;Trasferimenti correnti a Amministrazioni Centrali;1;Trasferimenti correnti a Ministeri;18/09/2019
1701;1;0;167,9;167,9;MINISTERO DELL'INTERNO; ;Versamento al Ministero dell' Interno dei diritti relativi alle carte d' identita elettroniche emesse - 1 versamento Mese di settembre 2019.;18/09/2019;939;0;313;1;Spese correnti;4;Trasferimenti correnti;1;Trasferimenti correnti a Amministrazioni Pubbliche;1;Trasferimenti correnti a Amministrazioni Centrali;1;Trasferimenti correnti a Ministeri;18/09/2019
1702;1;0;218,27;218,27;MINISTERO DELL'INTERNO; ;Versamento al Ministero dell' Interno dei diritti relativi alle carte d' identita elettroniche emesse - 1 versamento Mese di Agosto 2019;18/09/2019;939;0;314;1;Spese correnti;4;Trasferimenti correnti;1;Trasferimenti correnti a Amministrazioni Pubbliche;1;Trasferimenti correnti a Amministrazioni Centrali;1;Trasferimenti correnti a Ministeri;18/09/2019
1703;1;0;1.083,33;1.083,33;ETZO ALESSANDRA SEBASTIANA;Z0424E569C;SALDO Fatt.n. FEPA/2019/0037  del 17/09/2019 CONVENZIONE DI AFFIDAMENTO DEL SERVIZIO DI DPO e ASSISTENZA NELLE ATTIVITA' DI ADEGUAMENTO DELLE PROCEDURE DEL REGOLAMENTO UE 2016/679 II^ TRANCHE PAGAMENTO AL 31/08/2019;19/09/2019;431;1;249;1;Spese correnti;3;Acquisto di beni e servizi;2;Acquisto di servizi;16;Servizi amministrativi;999;Altre spese per servizi amministrativi;19/09/2019
1704;1;0;1.622,20;1.622,20;L.I.D.A. o.n.l.u.s. Sezione Regionale di Sassari; ;il rimborso alla L.I.D.A. ONLUS di Sassari delle spese  sostenute per il mantenimento, ricovero e cura dei cani randagi. 4^ bimestre 2019.;19/09/2019;4520;0;406;1;Spese correnti;4;Trasferimenti correnti;4;Trasferimenti correnti a Istituzioni Sociali Private;1;Trasferimenti correnti a Istituzioni Sociali Private;1;Trasferimenti correnti a Istituzioni Sociali Private;19/09/2019
1705;1;0;22.688,10;22.688,10;CO.ME.S. Cooperativa Mediateche Sarde a r.l.;7671745C3D;SALDO Fatt.n. 91  del 11/09/2019 Tissi // Servizio Gestione del Sistema Bibliotecario del Coros Figulinas periodo agosto 2019;19/09/2019;3782;0;391;1;Spese correnti;3;Acquisto di beni e servizi;2;Acquisto di servizi;99;Altri servizi;999;Altri servizi diversi n.a.c.;19/09/2019
1706;1;0;549;549;ISOLA VERDE GIARDINI;ZBB28891F5;SALDO Fatt.n. 97  del 20/08/2019 dare per fornitura mattoncioni per aiuola olivo in piazza, terriccio professionale e concime. CIG ZBB28891F5.;19/09/2019;452;0;183;1;Spese correnti;3;Acquisto di beni e servizi;1;Acquisto di beni;2;Altri beni di consumo;999;Altri beni e materiali di consumo n.a.c.;19/09/2019
1707;1;0;399,55;399,55;R.H. IMPIANTI DI RAHAMANI HAMIDREZA;ZA628A32E1;SALDO Fatt.n. 99  del 06/09/2019 COSTO DEL CANONE MENSILE PER IL SERVIZIO DI GESTIONE E MANUTENZIONE L'IMPIANTO DI ILLUMINAZIONE PUBBLICA DEL MESE DI AGOSTO 2019;19/09/2019;4144;0;195;1;Spese correnti;3;Acquisto di beni e servizi;2;Acquisto di servizi;15;Contratti di servizio pubblico;15;Contratti di servizio per l'illuminazione pubblica;19/09/2019
1708;1;0;610;610;R.H. IMPIANTI DI RAHAMANI HAMIDREZA;ZCE29AA8EE;SALDO Fatt.n. 108  del 07/09/2019 CIG. ZCE29AA8EE;19/09/2019;454;0;291;1;Spese correnti;3;Acquisto di beni e servizi;2;Acquisto di servizi;9;Manutenzione ordinaria e riparazioni;4;Manutenzione ordinaria e riparazioni di impianti e macchinari;19/09/2019
1709;1;0;0,01;0,01;TELECOM ITALIA S.p.A.;ZD5186A85B;SALDO Fatt.n. 8R00180283  del 09/09/2019 5BIM 2019;19/09/2019;460;0;172;1;Spese correnti;3;Acquisto di beni e servizi;2;Acquisto di servizi;5;Utenze e canoni;1;Telefonia fissa;19/09/2019
1710;1;0;75,64;75,64;TELECOM ITALIA S.p.A.;ZD5186A85B;SALDO Fatt.n. 8R00179677  del 09/09/2019 5BIM 2019;19/09/2019;460;0;172;1;Spese correnti;3;Acquisto di beni e servizi;2;Acquisto di servizi;5;Utenze e canoni;1;Telefonia fissa;19/09/2019
1712;1;0;114,68;114,68;TELECOM ITALIA S.p.A.;ZD5186A85B;SALDO Fatt.n. 8R00179693  del 09/09/2019 5BIM 2019;19/09/2019;460;0;172;1;Spese correnti;3;Acquisto di beni e servizi;2;Acquisto di servizi;5;Utenze e canoni;1;Telefonia fissa;19/09/2019
1713;1;0;905,81;905,81;VODAFONE ITALIA S.p.A..;ZD5186A85B;ACCONTO Fatt.n. AL16405152  del 04/09/2019 scissione pagamenti;19/09/2019;460;0;171;1;Spese correnti;3;Acquisto di beni e servizi;2;Acquisto di servizi;5;Utenze e canoni;1;Telefonia fissa;19/09/2019
1714;1;0;200;200;VODAFONE ITALIA S.p.A..;ZD5186A85B;ACCONTO Fatt.n. AL16405152  del 04/09/2019 scissione pagamenti;19/09/2019;3788;0;176;1;Spese correnti;3;Acquisto di beni e servizi;2;Acquisto di servizi;5;Utenze e canoni;1;Telefonia fissa;19/09/2019
1715;1;0;200;200;VODAFONE ITALIA S.p.A..;ZD5186A85B;ACCONTO Fatt.n. AL16405152  del 04/09/2019 scissione pagamenti;19/09/2019;2815;0;175;1;Spese correnti;3;Acquisto di beni e servizi;2;Acquisto di servizi;5;Utenze e canoni;1;Telefonia fissa;19/09/2019
1716;1;0;200;200;VODAFONE ITALIA S.p.A..;ZD5186A85B;SALDO Fatt.n. AL16405152  del 04/09/2019 scissione pagamenti;19/09/2019;3300;0;173;1;Spese correnti;3;Acquisto di beni e servizi;2;Acquisto di servizi;5;Utenze e canoni;1;Telefonia fissa;19/09/2019
1717;1;0;1,46;1,46;VODAFONE ITALIA S.p.A..;ZD5186A85B;SALDO Fatt.n. AL16405945  del 04/09/2019 scissione pagamenti;19/09/2019;460;0;171;1;Spese correnti;3;Acquisto di beni e servizi;2;Acquisto di servizi;5;Utenze e canoni;1;Telefonia fissa;19/09/2019
1718;1;0;1,46;1,46;VODAFONE ITALIA S.p.A..;ZD5186A85B;SALDO Fatt.n. AL16405946  del 04/09/2019 scissione pagamenti;19/09/2019;460;0;171;1;Spese correnti;3;Acquisto di beni e servizi;2;Acquisto di servizi;5;Utenze e canoni;1;Telefonia fissa;19/09/2019
1719;1;0;25.000,00;25.000,00;COMUNE DI OSILO; ;L.R. n. 23/2005- Plus Anglona- Coros- Figulinas.  Gestione associata del servizio di assistenza domiciliare. Impegno di spesa e  liquidazione saldo della quota a carico del comune per l'anno 2019.;19/09/2019;7034;0;316;1;Spese correnti;4;Trasferimenti correnti;1;Trasferimenti correnti a Amministrazioni Pubbliche;2;Trasferimenti correnti a Amministrazioni Locali;3;Trasferimenti correnti a Comuni;19/09/2019
1720;1;0;10.732,00;10.732,00;COMUNE DI OSILO; ;L.R. n. 23/2005- Plus Anglona- Coros- Figulinas.  Gestione associata del servizio educativo territoriale. Impegno di spesa e  liquidazione saldo della quota a carico del comune per l'anno 2019;19/09/2019;7031;0;317;1;Spese correnti;4;Trasferimenti correnti;1;Trasferimenti correnti a Amministrazioni Pubbliche;2;Trasferimenti correnti a Amministrazioni Locali;3;Trasferimenti correnti a Comuni;19/09/2019
1721;1;0;498,85;498,85;SERENISSIMA Coop.va Sociale a r.l.; ;"OGGETTO: Impegno di spesa  e Liquidazione relativa al ""Finanziamento Piani Personalizzati Legge 162/98""  annualita 2018/gest.2019 (periodo maggio - giugno 2019).";19/09/2019;7038;0;315;1;Spese correnti;4;Trasferimenti correnti;2;Trasferimenti correnti a Famiglie;5;Altri trasferimenti a famiglie;999;Altri trasferimenti a famiglie n.a.c.;19/09/2019
1722;1;0;350,07;350,07;SERENISSIMA Coop.va Sociale a r.l.; ;"OGGETTO: Impegno di spesa  e Liquidazione relativa al ""Finanziamento Piani Personalizzati Legge 162/98""  annualita 2018/gest.2019 (periodo maggio - giugno 2019).";19/09/2019;7038;0;315;1;Spese correnti;4;Trasferimenti correnti;2;Trasferimenti correnti a Famiglie;5;Altri trasferimenti a famiglie;999;Altri trasferimenti a famiglie n.a.c.;19/09/2019
1723;1;0;341,25;341,25;SERENISSIMA Coop.va Sociale a r.l.; ;"OGGETTO: Impegno di spesa  e Liquidazione relativa al ""Finanziamento Piani Personalizzati Legge 162/98""  annualita 2018/gest.2019 (periodo maggio - giugno 2019).";19/09/2019;7038;0;315;1;Spese correnti;4;Trasferimenti correnti;2;Trasferimenti correnti a Famiglie;5;Altri trasferimenti a famiglie;999;Altri trasferimenti a famiglie n.a.c.;19/09/2019
1724;1;0;367,58;367,58;SERENISSIMA Coop.va Sociale a r.l.; ;"OGGETTO: Impegno di spesa  e Liquidazione relativa al ""Finanziamento Piani Personalizzati Legge 162/98""  annualita 2018/gest.2019 (periodo maggio - giugno 2019).";19/09/2019;7038;0;315;1;Spese correnti;4;Trasferimenti correnti;2;Trasferimenti correnti a Famiglie;5;Altri trasferimenti a famiglie;999;Altri trasferimenti a famiglie n.a.c.;19/09/2019
1725;1;0;962,7;962,7;SERENISSIMA Coop.va Sociale a r.l.; ;"OGGETTO: Impegno di spesa  e Liquidazione relativa al ""Finanziamento Piani Personalizzati Legge 162/98""  annualita 2018/gest.2019 (periodo maggio - giugno 2019).";19/09/2019;7038;0;315;1;Spese correnti;4;Trasferimenti correnti;2;Trasferimenti correnti a Famiglie;5;Altri trasferimenti a famiglie;999;Altri trasferimenti a famiglie n.a.c.;19/09/2019
1726;1;0;297,56;297,56;SERENISSIMA Coop.va Sociale a r.l.; ;"OGGETTO: Impegno di spesa  e Liquidazione relativa al ""Finanziamento Piani Personalizzati Legge 162/98""  annualita 2018/gest.2019 (periodo maggio - giugno 2019).";19/09/2019;7038;0;315;1;Spese correnti;4;Trasferimenti correnti;2;Trasferimenti correnti a Famiglie;5;Altri trasferimenti a famiglie;999;Altri trasferimenti a famiglie n.a.c.;19/09/2019
1727;1;0;288,81;288,81;SERENISSIMA Coop.va Sociale a r.l.; ;"OGGETTO: Impegno di spesa  e Liquidazione relativa al ""Finanziamento Piani Personalizzati Legge 162/98""  annualita 2018/gest.2019 (periodo maggio - giugno 2019).";19/09/2019;7038;0;315;1;Spese correnti;4;Trasferimenti correnti;2;Trasferimenti correnti a Famiglie;5;Altri trasferimenti a famiglie;999;Altri trasferimenti a famiglie n.a.c.;19/09/2019
1728;1;0;70,01;70,01;SERENISSIMA Coop.va Sociale a r.l.; ;"OGGETTO: Impegno di spesa  e Liquidazione relativa al ""Finanziamento Piani Personalizzati Legge 162/98""  annualita 2018/gest.2019 (periodo maggio - giugno 2019).";20/09/2019;7038;0;315;1;Spese correnti;4;Trasferimenti correnti;2;Trasferimenti correnti a Famiglie;5;Altri trasferimenti a famiglie;999;Altri trasferimenti a famiglie n.a.c.;20/09/2019
1729;1;0;723,91;723,91;NOMINATIVO OMESSO PER PRIVACY; ;"Accertamento di entrata e Impegno di spesa relativa al ""Finanziamento Piani Personalizzati Legge 162/98"" saldo annualita 2018/gest.2019 periodo luglio-settembre 2019";20/09/2019;7038;0;245;1;Spese correnti;4;Trasferimenti correnti;2;Trasferimenti correnti a Famiglie;5;Altri trasferimenti a famiglie;999;Altri trasferimenti a famiglie n.a.c.;20/09/2019
1730;1;0;216;216;NOMINATIVO OMESSO PER PRIVACY; ;"Accertamento di entrata e Impegno di spesa relativa al ""Finanziamento Piani Personalizzati Legge 162/98"" saldo annualita 2018/gest.2019 periodo luglio-settembre 2019";20/09/2019;7038;0;245;1;Spese correnti;4;Trasferimenti correnti;2;Trasferimenti correnti a Famiglie;5;Altri trasferimenti a famiglie;999;Altri trasferimenti a famiglie n.a.c.;20/09/2019
1731;1;0;375;375;NOMINATIVO OMESSO PER PRIVACY; ;"Accertamento di entrata e Impegno di spesa relativa al ""Finanziamento Piani Personalizzati Legge 162/98"" saldo annualita 2018/gest.2019 periodo luglio-settembre 2019";20/09/2019;7038;0;245;1;Spese correnti;4;Trasferimenti correnti;2;Trasferimenti correnti a Famiglie;5;Altri trasferimenti a famiglie;999;Altri trasferimenti a famiglie n.a.c.;20/09/2019
1732;1;0;136,55;136,55;NOMINATIVO OMESSO PER PRIVACY; ;"Accertamento di entrata e Impegno di spesa relativa al ""Finanziamento Piani Personalizzati Legge 162/98"" saldo annualita 2018/gest.2019 periodo luglio-settembre 2019";20/09/2019;7038;0;245;1;Spese correnti;4;Trasferimenti correnti;2;Trasferimenti correnti a Famiglie;5;Altri trasferimenti a famiglie;999;Altri trasferimenti a famiglie n.a.c.;20/09/2019
1733;1;0;341,25;341,25;NOMINATIVO OMESSO PER PRIVACY; ;"Accertamento di entrata e Impegno di spesa relativa al ""Finanziamento Piani Personalizzati Legge 162/98"" saldo annualita 2018/gest.2019 periodo luglio-settembre 2019";20/09/2019;7038;0;245;1;Spese correnti;4;Trasferimenti correnti;2;Trasferimenti correnti a Famiglie;5;Altri trasferimenti a famiglie;999;Altri trasferimenti a famiglie n.a.c.;20/09/2019
1734;1;0;209;209;NOMINATIVO OMESSO PER PRIVACY; ;"Accertamento di entrata e Impegno di spesa relativa al ""Finanziamento Piani Personalizzati Legge 162/98"" saldo annualita 2018/gest.2019 periodo luglio-settembre 2019";20/09/2019;7038;0;245;1;Spese correnti;4;Trasferimenti correnti;2;Trasferimenti correnti a Famiglie;5;Altri trasferimenti a famiglie;999;Altri trasferimenti a famiglie n.a.c.;20/09/2019
1735;1;0;468,85;468,85;NOMINATIVO OMESSO PER PRIVACY; ;"Accertamento di entrata e Impegno di spesa relativa al ""Finanziamento Piani Personalizzati Legge 162/98"" saldo annualita 2018/gest.2019 periodo luglio-settembre 2019(CHESSA C.)";20/09/2019;7038;0;245;1;Spese correnti;4;Trasferimenti correnti;2;Trasferimenti correnti a Famiglie;5;Altri trasferimenti a famiglie;999;Altri trasferimenti a famiglie n.a.c.;20/09/2019
1736;1;0;1.213,37;1.213,37;NOMINATIVO OMESSO PER PRIVACY; ;"Accertamento di entrata e Impegno di spesa relativa al ""Finanziamento Piani Personalizzati Legge 162/98"" saldo annualita 2018/gest.2019 periodo luglio-settembre 2019";20/09/2019;7038;0;245;1;Spese correnti;4;Trasferimenti correnti;2;Trasferimenti correnti a Famiglie;5;Altri trasferimenti a famiglie;999;Altri trasferimenti a famiglie n.a.c.;20/09/2019
1737;1;0;80;80;NOMINATIVO OMESSO PER PRIVACY; ;"Accertamento di entrata e Impegno di spesa relativa al ""Finanziamento Piani Personalizzati Legge 162/98"" saldo annualita 2018/gest.2019 periodo luglio-settembre 2019";20/09/2019;7038;0;245;1;Spese correnti;4;Trasferimenti correnti;2;Trasferimenti correnti a Famiglie;5;Altri trasferimenti a famiglie;999;Altri trasferimenti a famiglie n.a.c.;20/09/2019
1738;1;0;98,62;98,62;NOMINATIVO OMESSO PER PRIVACY; ;"Accertamento di entrata e Impegno di spesa relativa al ""Finanziamento Piani Personalizzati Legge 162/98"" saldo annualita 2018/gest.2019 periodo luglio-settembre 2019";20/09/2019;7038;0;245;1;Spese correnti;4;Trasferimenti correnti;2;Trasferimenti correnti a Famiglie;5;Altri trasferimenti a famiglie;999;Altri trasferimenti a famiglie n.a.c.;20/09/2019
1739;1;0;350,07;350,07;SERENISSIMA Coop.va Sociale a r.l.; ;"Accertamento di entrata e Impegno di spesa relativa al ""Finanziamento Piani Personalizzati Legge 162/98"" saldo annualita 2018/gest.2019 periodo luglio-settembre 2019( FIORI GIUSEPPINO)";20/09/2019;7038;0;245;1;Spese correnti;4;Trasferimenti correnti;2;Trasferimenti correnti a Famiglie;5;Altri trasferimenti a famiglie;999;Altri trasferimenti a famiglie n.a.c.;20/09/2019
1740;1;0;341,25;341,25;SERENISSIMA Coop.va Sociale a r.l.; ;"Accertamento di entrata e Impegno di spesa relativa al ""Finanziamento Piani Personalizzati Legge 162/98"" saldo annualita 2018/gest.2019 periodo luglio-settembre 2019(MARROSU G.)";20/09/2019;7038;0;245;1;Spese correnti;4;Trasferimenti correnti;2;Trasferimenti correnti a Famiglie;5;Altri trasferimenti a famiglie;999;Altri trasferimenti a famiglie n.a.c.;20/09/2019
1741;1;0;367,58;367,58;SERENISSIMA Coop.va Sociale a r.l.; ;"Accertamento di entrata e Impegno di spesa relativa al ""Finanziamento Piani Personalizzati Legge 162/98"" saldo annualita 2018/gest.2019 periodo luglio-settembre 2019(MUDADU V.)";20/09/2019;7038;0;245;1;Spese correnti;4;Trasferimenti correnti;2;Trasferimenti correnti a Famiglie;5;Altri trasferimenti a famiglie;999;Altri trasferimenti a famiglie n.a.c.;20/09/2019
1742;1;0;962,7;962,7;SERENISSIMA Coop.va Sociale a r.l.; ;"Accertamento di entrata e Impegno di spesa relativa al ""Finanziamento Piani Personalizzati Legge 162/98"" saldo annualita 2018/gest.2019 periodo luglio-settembre 2019(PAIS F.)";20/09/2019;7038;0;245;1;Spese correnti;4;Trasferimenti correnti;2;Trasferimenti correnti a Famiglie;5;Altri trasferimenti a famiglie;999;Altri trasferimenti a famiglie n.a.c.;20/09/2019
1743;1;0;297,56;297,56;SERENISSIMA Coop.va Sociale a r.l.; ;"Accertamento di entrata e Impegno di spesa relativa al ""Finanziamento Piani Personalizzati Legge 162/98"" saldo annualita 2018/gest.2019 periodo luglio-settembre 2019(PITTALIS VITTORINA)";20/09/2019;7038;0;245;1;Spese correnti;4;Trasferimenti correnti;2;Trasferimenti correnti a Famiglie;5;Altri trasferimenti a famiglie;999;Altri trasferimenti a famiglie n.a.c.;20/09/2019
1744;1;0;352,5;352,5;NOMINATIVO OMESSO PER PRIVACY; ;"Accertamento di entrata e Impegno di spesa relativa al ""Finanziamento Piani Personalizzati Legge 162/98"" saldo annualita 2018/gest.2019 periodo luglio-settembre 2019";20/09/2019;7038;0;245;1;Spese correnti;4;Trasferimenti correnti;2;Trasferimenti correnti a Famiglie;5;Altri trasferimenti a famiglie;999;Altri trasferimenti a famiglie n.a.c.;20/09/2019
1745;1;0;127,9;127,9;NOMINATIVO OMESSO PER PRIVACY; ;"Accertamento di entrata e Impegno di spesa relativa al ""Finanziamento Piani Personalizzati Legge 162/98"" saldo annualita 2018/gest.2019 periodo luglio-settembre 2019";20/09/2019;7038;0;245;1;Spese correnti;4;Trasferimenti correnti;2;Trasferimenti correnti a Famiglie;5;Altri trasferimenti a famiglie;999;Altri trasferimenti a famiglie n.a.c.;20/09/2019
1746;1;0;336;336;NOMINATIVO OMESSO PER PRIVACY; ;"Accertamento di entrata e Impegno di spesa relativa al ""Finanziamento Piani Personalizzati Legge 162/98"" saldo annualita 2018/gest.2019 periodo luglio-settembre 2019";20/09/2019;7038;0;245;1;Spese correnti;4;Trasferimenti correnti;2;Trasferimenti correnti a Famiglie;5;Altri trasferimenti a famiglie;999;Altri trasferimenti a famiglie n.a.c.;20/09/2019
1747;1;0;115;115;NOMINATIVO OMESSO PER PRIVACY; ;"Accertamento di entrata e Impegno di spesa relativa al ""Finanziamento Piani Personalizzati Legge 162/98"" saldo annualita 2018/gest.2019 periodo luglio-settembre 2019";20/09/2019;7038;0;245;1;Spese correnti;4;Trasferimenti correnti;2;Trasferimenti correnti a Famiglie;5;Altri trasferimenti a famiglie;999;Altri trasferimenti a famiglie n.a.c.;20/09/2019
1748;1;0;288,81;288,81;NOMINATIVO OMESSO PER PRIVACY; ;"Accertamento di entrata e Impegno di spesa relativa al ""Finanziamento Piani Personalizzati Legge 162/98"" saldo annualita 2018/gest.2019 periodo luglio-settembre 2019(SAU VITTORIA)";20/09/2019;7038;0;245;1;Spese correnti;4;Trasferimenti correnti;2;Trasferimenti correnti a Famiglie;5;Altri trasferimenti a famiglie;999;Altri trasferimenti a famiglie n.a.c.;20/09/2019
1749;1;0;318,18;318,18;NOMINATIVO OMESSO PER PRIVACY; ;"Accertamento di entrata e Impegno di spesa relativa al ""Finanziamento Piani Personalizzati Legge 162/98"" saldo annualita 2018/gest.2019 periodo luglio-settembre 2019";20/09/2019;7038;0;245;1;Spese correnti;4;Trasferimenti correnti;2;Trasferimenti correnti a Famiglie;5;Altri trasferimenti a famiglie;999;Altri trasferimenti a famiglie n.a.c.;20/09/2019
1750;1;0;156,25;156,25;NOMINATIVO OMESSO PER PRIVACY; ;"Accertamento di entrata e Impegno di spesa relativa al ""Finanziamento Piani Personalizzati Legge 162/98"" saldo annualita 2018/gest.2019 periodo luglio-settembre 2019";20/09/2019;7038;0;245;1;Spese correnti;4;Trasferimenti correnti;2;Trasferimenti correnti a Famiglie;5;Altri trasferimenti a famiglie;999;Altri trasferimenti a famiglie n.a.c.;20/09/2019
1751;1;0;400;400;NOMINATIVO OMESSO PER PRIVACY; ;"Accertamento di entrata e Impegno di spesa relativa al ""Finanziamento Piani Personalizzati Legge 162/98"" saldo annualita 2018/gest.2019 periodo luglio-settembre 2019";20/09/2019;7038;0;245;1;Spese correnti;4;Trasferimenti correnti;2;Trasferimenti correnti a Famiglie;5;Altri trasferimenti a famiglie;999;Altri trasferimenti a famiglie n.a.c.;20/09/2019
1752;1;0;70,02;70,02;NOMINATIVO OMESSO PER PRIVACY; ;"Accertamento di entrata e Impegno di spesa relativa al ""Finanziamento Piani Personalizzati Legge 162/98"" saldo annualita 2018/gest.2019 periodo luglio-settembre 2019 * SEDDA RAFFAELE";20/09/2019;7038;0;245;1;Spese correnti;4;Trasferimenti correnti;2;Trasferimenti correnti a Famiglie;5;Altri trasferimenti a famiglie;999;Altri trasferimenti a famiglie n.a.c.;20/09/2019
1753;1;0;186,36;186,36;NOMINATIVO OMESSO PER PRIVACY; ;"Accertamento di entrata e Impegno di spesa relativa al ""Finanziamento Piani Personalizzati Legge 162/98"" saldo annualita 2018/gest.2019 periodo luglio-settembre 2019";20/09/2019;7038;0;245;1;Spese correnti;4;Trasferimenti correnti;2;Trasferimenti correnti a Famiglie;5;Altri trasferimenti a famiglie;999;Altri trasferimenti a famiglie n.a.c.;20/09/2019
1754;1;0;951;951;NOMINATIVO OMESSO PER PRIVACY; ;"Accertamento di entrata e Impegno di spesa relativa al ""Finanziamento Piani Personalizzati Legge 162/98"" saldo annualita 2018/gest.2019 periodo luglio-settembre 2019";20/09/2019;7038;0;245;1;Spese correnti;4;Trasferimenti correnti;2;Trasferimenti correnti a Famiglie;5;Altri trasferimenti a famiglie;999;Altri trasferimenti a famiglie n.a.c.;20/09/2019
1759;1;0;188;188;NOMINATIVO OMESSO PER PRIVACY; ;"Accertamento di entrata e Impegno di spesa relativa al ""Finanziamento Piani Personalizzati Legge 162/98"" saldo annualita 2018/gest.2019 periodo luglio-settembre 2019";23/09/2019;7038;0;245;1;Spese correnti;4;Trasferimenti correnti;2;Trasferimenti correnti a Famiglie;5;Altri trasferimenti a famiglie;999;Altri trasferimenti a famiglie n.a.c.;23/09/2019
1760;1;0;188;188;NOMINATIVO OMESSO PER PRIVACY; ;"OGGETTO: Impegno di spesa  e Liquidazione relativa al ""Finanziamento Piani Personalizzati Legge 162/98""  annualita 2018/gest.2019 (periodo maggio - giugno 2019).";23/09/2019;7038;0;315;1;Spese correnti;4;Trasferimenti correnti;2;Trasferimenti correnti a Famiglie;5;Altri trasferimenti a famiglie;999;Altri trasferimenti a famiglie n.a.c.;23/09/2019
1761;1;0;237,9;237,9;KRONOWEB;Z6229C54B8;SALDO Fatt.n. 76/E  del 18/09/2019 FATTURA P.A. SPLIT;23/09/2019;460;0;307;1;Spese correnti;3;Acquisto di beni e servizi;2;Acquisto di servizi;5;Utenze e canoni;999;Utenze e canoni per altri servizi n.a.c.;23/09/2019
1762;1;0;276,33;276,33;GRAFICHE E.GASPARI s.r.l.;Z7C2935E91;SALDO Fatt.n. 16002/S  del 31/08/2019 RILEGATURA REGISTRI DI STATO CIVILE;23/09/2019;940;0;238;1;Spese correnti;3;Acquisto di beni e servizi;1;Acquisto di beni;2;Altri beni di consumo;1;Carta, cancelleria e stampati;23/09/2019
1763;1;0;311,61;311,61;POSTE ITALIANE S.P.A.;Z782756457;SALDO Fatt.n. 8719276411  del 05/09/2019 Fattura Elettronica relativa all'Identificativo Rendiconto 2103253339;24/09/2019;460;4;75;1;Spese correnti;3;Acquisto di beni e servizi;2;Acquisto di servizi;16;Servizi amministrativi;2;Spese postali;24/09/2019
1764;1;0;-65,88;1.093,88;OFFICE DEPOT ITALIA SRL;ZEF296CFA1;SALDO Fatt.n. 1789622  del 30/08/2019 Contributo SIAE - D.Lgs.n.68/2003 assolto, se dovuto;24/09/2019;430;0;259;1;Spese correnti;3;Acquisto di beni e servizi;1;Acquisto di beni;2;Altri beni di consumo;1;Carta, cancelleria e stampati;24/09/2019
1764;2;0;1.159,76;1.093,88;OFFICE DEPOT ITALIA SRL;ZEF296CFA1;SALDO Fatt.n. 1789623  del 30/08/2019 CANCELLERIA;24/09/2019;430;0;259;1;Spese correnti;3;Acquisto di beni e servizi;1;Acquisto di beni;2;Altri beni di consumo;1;Carta, cancelleria e stampati;24/09/2019
1765;1;0;199,48;199,48;TELECOM ITALIA S.p.A.;ZD5186A85B;SALDO Fatt.n. 8R00179602  del 09/09/2019 5BIM 2019;25/09/2019;460;0;172;1;Spese correnti;3;Acquisto di beni e servizi;2;Acquisto di servizi;5;Utenze e canoni;1;Telefonia fissa;25/09/2019
1797;1;0;476,92;476,92;G.P. GLOBAL POWER;622385037F;ACCONTO Fatt.n. V0/131112  del 01/09/2019 Fattura Energia Elettrica;01/10/2019;460;0;71;1;Spese correnti;3;Acquisto di beni e servizi;2;Acquisto di servizi;5;Utenze e canoni;4;Energia elettrica;01/10/2019
1798;1;0;11,24;11,24;G.P. GLOBAL POWER;622385037F;ACCONTO Fatt.n. V0/131110  del 01/09/2019 Fattura Energia Elettrica;01/10/2019;460;0;71;1;Spese correnti;3;Acquisto di beni e servizi;2;Acquisto di servizi;5;Utenze e canoni;4;Energia elettrica;01/10/2019
1799;1;0;683,13;683,13;G.P. GLOBAL POWER;622385037F;ACCONTO Fatt.n. V0/131111  del 01/09/2019 Fattura Energia Elettrica;01/10/2019;4146;0;68;1;Spese correnti;3;Acquisto di beni e servizi;2;Acquisto di servizi;5;Utenze e canoni;4;Energia elettrica;01/10/2019
1800;1;0;36,43;36,43;G.P. GLOBAL POWER;622385037F;ACCONTO Fatt.n. V0/131113  del 01/09/2019 Fattura Energia Elettrica;01/10/2019;3040;0;70;1;Spese correnti;3;Acquisto di beni e servizi;2;Acquisto di servizi;5;Utenze e canoni;4;Energia elettrica;01/10/2019
1801;1;0;51,07;51,07;G.P. GLOBAL POWER;622385037F;SALDO Fatt.n. V0/131110  del 01/09/2019 Fattura Energia Elettrica;01/10/2019;460;0;71;1;Spese correnti;3;Acquisto di beni e servizi;2;Acquisto di servizi;5;Utenze e canoni;4;Energia elettrica;01/10/2019
1802;1;0;3.105,12;3.105,12;G.P. GLOBAL POWER;622385037F;SALDO Fatt.n. V0/131111  del 01/09/2019 Fattura Energia Elettrica;01/10/2019;4146;0;68;1;Spese correnti;3;Acquisto di beni e servizi;2;Acquisto di servizi;5;Utenze e canoni;4;Energia elettrica;01/10/2019
1803;1;0;185,41;185,41;G.P. GLOBAL POWER;622385037F;ACCONTO Fatt.n. V0/131113  del 01/09/2019 Fattura Energia Elettrica;01/10/2019;3040;0;70;1;Spese correnti;3;Acquisto di beni e servizi;2;Acquisto di servizi;5;Utenze e canoni;4;Energia elettrica;01/10/2019
1804;1;0;122,89;122,89;G.P. GLOBAL POWER;622385037F;ACCONTO Fatt.n. V0/131113  del 01/09/2019 Fattura Energia Elettrica;01/10/2019;3300;0;242;1;Spese correnti;3;Acquisto di beni e servizi;2;Acquisto di servizi;5;Utenze e canoni;4;Energia elettrica;01/10/2019
1805;1;0;55,95;55,95;G.P. GLOBAL POWER;622385037F;SALDO Fatt.n. V0/131113  del 01/09/2019 Fattura Energia Elettrica;01/10/2019;2815;0;69;1;Spese correnti;3;Acquisto di beni e servizi;2;Acquisto di servizi;5;Utenze e canoni;4;Energia elettrica;01/10/2019
1806;1;0;948,08;948,08;G.P. GLOBAL POWER;622385037F;ACCONTO Fatt.n. V0/131112  del 01/09/2019 Fattura Energia Elettrica;01/10/2019;460;0;71;1;Spese correnti;3;Acquisto di beni e servizi;2;Acquisto di servizi;5;Utenze e canoni;4;Energia elettrica;01/10/2019
1807;1;0;515,57;515,57;G.P. GLOBAL POWER;622385037F;ACCONTO Fatt.n. V0/131112  del 01/09/2019 Fattura Energia Elettrica;01/10/2019;3788;0;65;1;Spese correnti;3;Acquisto di beni e servizi;2;Acquisto di servizi;5;Utenze e canoni;4;Energia elettrica;01/10/2019
1808;1;0;499,44;499,44;G.P. GLOBAL POWER;622385037F;ACCONTO Fatt.n. V0/131112  del 01/09/2019 Fattura Energia Elettrica;01/10/2019;3996;0;66;1;Spese correnti;3;Acquisto di beni e servizi;2;Acquisto di servizi;5;Utenze e canoni;4;Energia elettrica;01/10/2019
1809;1;0;44,05;44,05;G.P. GLOBAL POWER;622385037F;ACCONTO Fatt.n. V0/131112  del 01/09/2019 Fattura Energia Elettrica;01/10/2019;5452;0;67;1;Spese correnti;3;Acquisto di beni e servizi;2;Acquisto di servizi;5;Utenze e canoni;4;Energia elettrica;01/10/2019
1810;1;0;79,81;79,81;G.P. GLOBAL POWER;622385037F;ACCONTO Fatt.n. V0/131112  del 01/09/2019 Fattura Energia Elettrica;01/10/2019;5837;0;72;1;Spese correnti;3;Acquisto di beni e servizi;2;Acquisto di servizi;5;Utenze e canoni;4;Energia elettrica;01/10/2019
1811;1;0;80,86;80,86;G.P. GLOBAL POWER;622385037F;SALDO Fatt.n. V0/131112  del 01/09/2019 Fattura Energia Elettrica;01/10/2019;6666;8;243;1;Spese correnti;3;Acquisto di beni e servizi;2;Acquisto di servizi;99;Altri servizi;999;Altri servizi diversi n.a.c.;01/10/2019
1812;1;0;300;300;NOMINATIVO OMESSO PER PRIVACY; ;L.R. n. 23/2005-  Interventi di sostegno alla persona-Concessione contributi  straordinari  in favore di nuclei familiari in stato di disagio sociale ed economico. Impegno di spesa e liquidazione.;04/10/2019;6666;0;326;1;Spese correnti;4;Trasferimenti correnti;2;Trasferimenti correnti a Famiglie;2;Interventi assistenziali;999;Altri assegni e sussidi assistenziali;04/10/2019
1813;1;0;200;200;NOMINATIVO OMESSO PER PRIVACY; ;L.R. n. 23/2005-  Interventi di sostegno alla persona-Concessione contributi  straordinari  in favore di nuclei familiari in stato di disagio sociale ed economico. Impegno di spesa e liquidazione.;04/10/2019;6666;0;326;1;Spese correnti;4;Trasferimenti correnti;2;Trasferimenti correnti a Famiglie;2;Interventi assistenziali;999;Altri assegni e sussidi assistenziali;04/10/2019
1814;1;0;200;200;NOMINATIVO OMESSO PER PRIVACY; ;L.R. n. 23/2005-  Interventi di sostegno alla persona-Concessione contributi  straordinari  in favore di nuclei familiari in stato di disagio sociale ed economico. Impegno di spesa e liquidazione.;04/10/2019;6666;0;326;1;Spese correnti;4;Trasferimenti correnti;2;Trasferimenti correnti a Famiglie;2;Interventi assistenziali;999;Altri assegni e sussidi assistenziali;04/10/2019
1815;1;0;200;200;NOMINATIVO OMESSO PER PRIVACY; ;L.R. n. 23/2005-  Interventi di sostegno alla persona-Concessione contributi  straordinari  in favore di nuclei familiari in stato di disagio sociale ed economico. Impegno di spesa e liquidazione.;04/10/2019;6666;0;326;1;Spese correnti;4;Trasferimenti correnti;2;Trasferimenti correnti a Famiglie;2;Interventi assistenziali;999;Altri assegni e sussidi assistenziali;04/10/2019
1816;1;0;200;200;NOMINATIVO OMESSO PER PRIVACY; ;L.R. n. 23/2005-  Interventi di sostegno alla persona-Concessione contributi  straordinari  in favore di nuclei familiari in stato di disagio sociale ed economico. Impegno di spesa e liquidazione.;04/10/2019;6666;0;326;1;Spese correnti;4;Trasferimenti correnti;2;Trasferimenti correnti a Famiglie;2;Interventi assistenziali;999;Altri assegni e sussidi assistenziali;04/10/2019
1817;1;0;30;30;ANAC autorita nazionale anticorruzione;7968941226;"in favore di A.N.A.C. quale contributo per la gara n. 7483551 "" Procedura aperta  ai sensi dell'art. 60 del d.lgs. n. 50/2016- DEL SERVIZIO DI MENSA SCOLASTICA "" Biennio 2019/2020 - 2020/2021";04/10/2019;2815;0;232;1;Spese correnti;3;Acquisto di beni e servizi;2;Acquisto di servizi;5;Utenze e canoni;999;Utenze e canoni per altri servizi n.a.c.;04/10/2019
1818;1;0;219,6;219,6;SECHI SG DOMOTIC DI ALESSANDRO;ZED29A35BF;SALDO Fatt.n. 4/PA  del 28/09/2019;04/10/2019;454;0;288;1;Spese correnti;3;Acquisto di beni e servizi;2;Acquisto di servizi;9;Manutenzione ordinaria e riparazioni;11;Manutenzione ordinaria e riparazioni di altri beni materiali;04/10/2019
1819;1;0;1.403,00;1.403,00;S.A.S.S.U. SRL;Z4829797BC;Sistemazione e messa in sicurezza marciapiedi via Roma bassa. Affidamento lavori aggiuntivi per allacci privati. Liquidazione fattura. SmartCIG:Z4829797BC;07/10/2019;9032;0;278;2;Spese in conto capitale;2;Investimenti fissi lordi e acquisto di terreni;3;Beni immateriali;99;Spese di investimento per beni immateriali n.a.c.;1;Spese di investimento per beni immateriali n.a.c.;07/10/2019
1820;1;0;2.500,00;2.500,00;S.A.S.S.U. SRL;ZCD29BAD77;SALDO Fatt.n. 3/24  del 02/10/2019;07/10/2019;9032;0;308;2;Spese in conto capitale;2;Investimenti fissi lordi e acquisto di terreni;3;Beni immateriali;99;Spese di investimento per beni immateriali n.a.c.;1;Spese di investimento per beni immateriali n.a.c.;07/10/2019
1821;1;0;5.004,99;5.004,99;ANDALAS DE AMISTADE;Z90269A1E8;SALDO Fatt.n. 154\PA  del 19/09/2019 Servizio di Inserimento sociolavorativo di soggetti detenuti Art21 della Legge 26 luglio 1975 n354 dal 07 Gennaio al 31 Dicembre 2019 Periodo LUGLIOAGOSTO 2019;07/10/2019;6697;0;3;1;Spese correnti;3;Acquisto di beni e servizi;2;Acquisto di servizi;99;Altri servizi;999;Altri servizi diversi n.a.c.;07/10/2019
1822;1;0;510,11;510,11;NOMINATIVO OMESSO PER PRIVACY; ;L.R. n. 20/97- Impegno di spesa e Liquidazione provvidenze economiche, di cui all'art. 6 della L.R. 15/92 e s.m.i., a favore di n. 12 persone affette da patologie psichiatriche.  3 TRIMESTRE 2019.;08/10/2019;7039;0;328;1;Spese correnti;4;Trasferimenti correnti;2;Trasferimenti correnti a Famiglie;5;Altri trasferimenti a famiglie;999;Altri trasferimenti a famiglie n.a.c.;08/10/2019
1823;1;0;778,86;778,86;NOMINATIVO OMESSO PER PRIVACY; ;L.R. n. 20/97- Impegno di spesa e Liquidazione provvidenze economiche, di cui all'art. 6 della L.R. 15/92 e s.m.i., a favore di n. 12 persone affette da patologie psichiatriche.  3 TRIMESTRE 2019.;08/10/2019;7039;0;328;1;Spese correnti;4;Trasferimenti correnti;2;Trasferimenti correnti a Famiglie;5;Altri trasferimenti a famiglie;999;Altri trasferimenti a famiglie n.a.c.;08/10/2019
1824;1;0;690;690;PORTA APERTA Societa' Cooperativa Sociale a r.l.; ;L.R. n. 20/97- Impegno di spesa e Liquidazione provvidenze economiche, di cui all'art. 6 della L.R. 15/92 e s.m.i., a favore di n. 12 persone affette da patologie psichiatriche.  3 TRIMESTRE 2019.;08/10/2019;7039;0;328;1;Spese correnti;4;Trasferimenti correnti;2;Trasferimenti correnti a Famiglie;5;Altri trasferimenti a famiglie;999;Altri trasferimenti a famiglie n.a.c.;08/10/2019
1825;1;0;1.468,86;1.468,86;NOMINATIVO OMESSO PER PRIVACY; ;L.R. n. 20/97- Impegno di spesa e Liquidazione provvidenze economiche, di cui all'art. 6 della L.R. 15/92 e s.m.i., a favore di n. 12 persone affette da patologie psichiatriche.  3 TRIMESTRE 2019.;08/10/2019;7039;0;328;1;Spese correnti;4;Trasferimenti correnti;2;Trasferimenti correnti a Famiglie;5;Altri trasferimenti a famiglie;999;Altri trasferimenti a famiglie n.a.c.;08/10/2019
1826;1;0;1.468,86;1.468,86;NOMINATIVO OMESSO PER PRIVACY; ;L.R. n. 20/97- Impegno di spesa e Liquidazione provvidenze economiche, di cui all'art. 6 della L.R. 15/92 e s.m.i., a favore di n. 12 persone affette da patologie psichiatriche.  3 TRIMESTRE 2019.;08/10/2019;7039;0;328;1;Spese correnti;4;Trasferimenti correnti;2;Trasferimenti correnti a Famiglie;5;Altri trasferimenti a famiglie;999;Altri trasferimenti a famiglie n.a.c.;08/10/2019
1827;1;0;1.468,86;1.468,86;NOMINATIVO OMESSO PER PRIVACY; ;L.R. n. 20/97- Impegno di spesa e Liquidazione provvidenze economiche, di cui all'art. 6 della L.R. 15/92 e s.m.i., a favore di n. 12 persone affette da patologie psichiatriche.  3 TRIMESTRE 2019.;08/10/2019;7039;0;328;1;Spese correnti;4;Trasferimenti correnti;2;Trasferimenti correnti a Famiglie;5;Altri trasferimenti a famiglie;999;Altri trasferimenti a famiglie n.a.c.;08/10/2019
1828;1;0;350,74;350,74;NOMINATIVO OMESSO PER PRIVACY; ;L.R. n. 20/97- Impegno di spesa e Liquidazione provvidenze economiche, di cui all'art. 6 della L.R. 15/92 e s.m.i., a favore di n. 12 persone affette da patologie psichiatriche.  3 TRIMESTRE 2019.;09/10/2019;7039;0;328;1;Spese correnti;4;Trasferimenti correnti;2;Trasferimenti correnti a Famiglie;5;Altri trasferimenti a famiglie;999;Altri trasferimenti a famiglie n.a.c.;09/10/2019
1829;1;0;809,88;809,88;NOMINATIVO OMESSO PER PRIVACY; ;L.R. n. 20/97- Impegno di spesa e Liquidazione provvidenze economiche, di cui all'art. 6 della L.R. 15/92 e s.m.i., a favore di n. 12 persone affette da patologie psichiatriche.  3 TRIMESTRE 2019.;09/10/2019;7039;0;328;1;Spese correnti;4;Trasferimenti correnti;2;Trasferimenti correnti a Famiglie;5;Altri trasferimenti a famiglie;999;Altri trasferimenti a famiglie n.a.c.;09/10/2019
1830;1;0;510,12;510,12;NOMINATIVO OMESSO PER PRIVACY; ;L.R. n. 20/97- Impegno di spesa e Liquidazione provvidenze economiche, di cui all'art. 6 della L.R. 15/92 e s.m.i., a favore di n. 12 persone affette da patologie psichiatriche.  3 TRIMESTRE 2019.;09/10/2019;7039;0;328;1;Spese correnti;4;Trasferimenti correnti;2;Trasferimenti correnti a Famiglie;5;Altri trasferimenti a famiglie;999;Altri trasferimenti a famiglie n.a.c.;09/10/2019
1831;1;0;809,88;809,88;NOMINATIVO OMESSO PER PRIVACY; ;L.R. n. 20/97- Impegno di spesa e Liquidazione provvidenze economiche, di cui all'art. 6 della L.R. 15/92 e s.m.i., a favore di n. 12 persone affette da patologie psichiatriche.  3 TRIMESTRE 2019.;09/10/2019;7039;0;328;1;Spese correnti;4;Trasferimenti correnti;2;Trasferimenti correnti a Famiglie;5;Altri trasferimenti a famiglie;999;Altri trasferimenti a famiglie n.a.c.;09/10/2019
1832;1;0;809,88;809,88;NOMINATIVO OMESSO PER PRIVACY; ;L.R. n. 20/97- Impegno di spesa e Liquidazione provvidenze economiche, di cui all'art. 6 della L.R. 15/92 e s.m.i., a favore di n. 12 persone affette da patologie psichiatriche.  3 TRIMESTRE 2019.;09/10/2019;7039;0;328;1;Spese correnti;4;Trasferimenti correnti;2;Trasferimenti correnti a Famiglie;5;Altri trasferimenti a famiglie;999;Altri trasferimenti a famiglie n.a.c.;09/10/2019
1833;1;0;809,88;809,88;NOMINATIVO OMESSO PER PRIVACY; ;L.R. n. 20/97- Impegno di spesa e Liquidazione provvidenze economiche, di cui all'art. 6 della L.R. 15/92 e s.m.i., a favore di n. 12 persone affette da patologie psichiatriche.  3 TRIMESTRE 2019.;09/10/2019;7039;0;328;1;Spese correnti;4;Trasferimenti correnti;2;Trasferimenti correnti a Famiglie;5;Altri trasferimenti a famiglie;999;Altri trasferimenti a famiglie n.a.c.;09/10/2019
1834;1;0;1.468,86;1.468,86;NOMINATIVO OMESSO PER PRIVACY; ;L.R. n. 20/97- Impegno di spesa e Liquidazione provvidenze economiche, di cui all'art. 6 della L.R. 15/92 e s.m.i., a favore di n. 12 persone affette da patologie psichiatriche.  3 TRIMESTRE 2019.;09/10/2019;7039;0;328;1;Spese correnti;4;Trasferimenti correnti;2;Trasferimenti correnti a Famiglie;5;Altri trasferimenti a famiglie;999;Altri trasferimenti a famiglie n.a.c.;09/10/2019
1835;1;0;1.433,50;1.433,50;KHELU S.r.l;ZAD285AAE9;SALDO Fatt.n. 128  del 01/10/2019 Manutenzione preventiva e correttiva dell'impianto Rete di monitoraggio ambientale per la sicurezza del cittadino e del territorio del Comune di Tissi 1 trimestre;09/10/2019;460;2;168;1;Spese correnti;3;Acquisto di beni e servizi;2;Acquisto di servizi;9;Manutenzione ordinaria e riparazioni;4;Manutenzione ordinaria e riparazioni di impianti e macchinari;09/10/2019
1836;1;0;1.562,48;1.562,48;NOMINATIVO OMESSO PER PRIVACY; ;Programma regionale  Ritornare a casa -Attivazione progetto personalizzato a favore di SIB180984F - Periodo  SETTEMBRE 2019.;09/10/2019;6666;26;60;1;Spese correnti;3;Acquisto di beni e servizi;2;Acquisto di servizi;99;Altri servizi;999;Altri servizi diversi n.a.c.;09/10/2019
1837;1;0;840,17;840,17;SERENISSIMA Coop.va Sociale a r.l.; ;Programma regionale  Ritornare a casa -Attivazione progetto personalizzato a favore di SIB180984F - Periodo  SETTEMBRE 2019.;09/10/2019;6666;26;60;1;Spese correnti;3;Acquisto di beni e servizi;2;Acquisto di servizi;99;Altri servizi;999;Altri servizi diversi n.a.c.;09/10/2019
1838;1;0;1.623,85;1.623,85;NOMINATIVO OMESSO PER PRIVACY; ;Programma regionale  Ritornare a casa -Attivazione progetto personalizzato SG240250M - Mese di   SETTEMBRE 2019.;09/10/2019;6666;26;59;1;Spese correnti;3;Acquisto di beni e servizi;2;Acquisto di servizi;99;Altri servizi;999;Altri servizi diversi n.a.c.;09/10/2019
1839;1;0;80;80;NOMINATIVO OMESSO PER PRIVACY; ;Agevolazioni di viaggio in favore degli studenti anno scolastico e accademico 2018/2019  L.R.N.48 del 28/12/2018  art.5 comma 33 (Legge di stabilita 2019).  - Liquidazione;09/10/2019;3564;0;329;1;Spese correnti;4;Trasferimenti correnti;2;Trasferimenti correnti a Famiglie;3;Borse di studio, dottorati di ricerca e contratti di formazione specialistica area medica;1;Borse di studio;09/10/2019
1840;1;0;2.128,54;2.128,54;NOMINATIVO OMESSO PER PRIVACY; ;"integrazione rette di ricovero in struttura socio-assistenziale a favore di LMA270238F  C.I. "" Villa Gardenia"" di Ossi . Periodo settembre - ottobre 2019.";09/10/2019;6666;27;42;1;Spese correnti;3;Acquisto di beni e servizi;2;Acquisto di servizi;99;Altri servizi;999;Altri servizi diversi n.a.c.;09/10/2019
1841;1;0;33,6;33,6;NOMINATIVO OMESSO PER PRIVACY; ;Agevolazioni di viaggio in favore degli studenti anno scolastico e accademico 2018/2019  L.R.N.48 del 28/12/2018  art.5 comma 33 (Legge di stabilita 2019).  - Liquidazione;09/10/2019;3564;0;329;1;Spese correnti;4;Trasferimenti correnti;2;Trasferimenti correnti a Famiglie;3;Borse di studio, dottorati di ricerca e contratti di formazione specialistica area medica;1;Borse di studio;09/10/2019
1842;1;0;33,6;33,6;NOMINATIVO OMESSO PER PRIVACY; ;Agevolazioni di viaggio in favore degli studenti anno scolastico e accademico 2018/2019  L.R.N.48 del 28/12/2018  art.5 comma 33 (Legge di stabilita 2019).  - Liquidazione;09/10/2019;3564;0;329;1;Spese correnti;4;Trasferimenti correnti;2;Trasferimenti correnti a Famiglie;3;Borse di studio, dottorati di ricerca e contratti di formazione specialistica area medica;1;Borse di studio;09/10/2019
1843;1;0;33,6;33,6;NOMINATIVO OMESSO PER PRIVACY; ;Agevolazioni di viaggio in favore degli studenti anno scolastico e accademico 2018/2019  L.R.N.48 del 28/12/2018  art.5 comma 33 (Legge di stabilita 2019).  - Liquidazione;09/10/2019;3564;0;329;1;Spese correnti;4;Trasferimenti correnti;2;Trasferimenti correnti a Famiglie;3;Borse di studio, dottorati di ricerca e contratti di formazione specialistica area medica;1;Borse di studio;09/10/2019
1844;1;0;33,6;33,6;NOMINATIVO OMESSO PER PRIVACY; ;Agevolazioni di viaggio in favore degli studenti anno scolastico e accademico 2018/2019  L.R.N.48 del 28/12/2018  art.5 comma 33 (Legge di stabilita 2019).  - Liquidazione;09/10/2019;3564;0;329;1;Spese correnti;4;Trasferimenti correnti;2;Trasferimenti correnti a Famiglie;3;Borse di studio, dottorati di ricerca e contratti di formazione specialistica area medica;1;Borse di studio;09/10/2019
1845;1;0;25,2;25,2;NOMINATIVO OMESSO PER PRIVACY; ;Agevolazioni di viaggio in favore degli studenti anno scolastico e accademico 2018/2019  L.R.N.48 del 28/12/2018  art.5 comma 33 (Legge di stabilita 2019).  - Liquidazione;09/10/2019;3564;0;329;1;Spese correnti;4;Trasferimenti correnti;2;Trasferimenti correnti a Famiglie;3;Borse di studio, dottorati di ricerca e contratti di formazione specialistica area medica;1;Borse di studio;09/10/2019
1846;1;0;50,4;50,4;NOMINATIVO OMESSO PER PRIVACY; ;Agevolazioni di viaggio in favore degli studenti anno scolastico e accademico 2018/2019  L.R.N.48 del 28/12/2018  art.5 comma 33 (Legge di stabilita 2019).  - Liquidazione;09/10/2019;3564;0;329;1;Spese correnti;4;Trasferimenti correnti;2;Trasferimenti correnti a Famiglie;3;Borse di studio, dottorati di ricerca e contratti di formazione specialistica area medica;1;Borse di studio;09/10/2019
1847;1;0;33,6;33,6;NOMINATIVO OMESSO PER PRIVACY; ;Agevolazioni di viaggio in favore degli studenti anno scolastico e accademico 2018/2019  L.R.N.48 del 28/12/2018  art.5 comma 33 (Legge di stabilita 2019).  - Liquidazione;09/10/2019;3564;0;329;1;Spese correnti;4;Trasferimenti correnti;2;Trasferimenti correnti a Famiglie;3;Borse di studio, dottorati di ricerca e contratti di formazione specialistica area medica;1;Borse di studio;09/10/2019
1848;1;0;33,6;33,6;NOMINATIVO OMESSO PER PRIVACY; ;Agevolazioni di viaggio in favore degli studenti anno scolastico e accademico 2018/2019  L.R.N.48 del 28/12/2018  art.5 comma 33 (Legge di stabilita 2019).  - Liquidazione;09/10/2019;3564;0;329;1;Spese correnti;4;Trasferimenti correnti;2;Trasferimenti correnti a Famiglie;3;Borse di studio, dottorati di ricerca e contratti di formazione specialistica area medica;1;Borse di studio;09/10/2019
1849;1;0;33,6;33,6;NOMINATIVO OMESSO PER PRIVACY; ;Agevolazioni di viaggio in favore degli studenti anno scolastico e accademico 2018/2019  L.R.N.48 del 28/12/2018  art.5 comma 33 (Legge di stabilita 2019).  - Liquidazione;09/10/2019;3564;0;329;1;Spese correnti;4;Trasferimenti correnti;2;Trasferimenti correnti a Famiglie;3;Borse di studio, dottorati di ricerca e contratti di formazione specialistica area medica;1;Borse di studio;09/10/2019
1850;1;0;25,2;25,2;NOMINATIVO OMESSO PER PRIVACY; ;Agevolazioni di viaggio in favore degli studenti anno scolastico e accademico 2018/2019  L.R.N.48 del 28/12/2018  art.5 comma 33 (Legge di stabilita 2019).  - Liquidazione;09/10/2019;3564;0;329;1;Spese correnti;4;Trasferimenti correnti;2;Trasferimenti correnti a Famiglie;3;Borse di studio, dottorati di ricerca e contratti di formazione specialistica area medica;1;Borse di studio;09/10/2019
1851;1;0;50,4;50,4;NOMINATIVO OMESSO PER PRIVACY; ;Agevolazioni di viaggio in favore degli studenti anno scolastico e accademico 2018/2019  L.R.N.48 del 28/12/2018  art.5 comma 33 (Legge di stabilita 2019).  - Liquidazione;09/10/2019;3564;0;329;1;Spese correnti;4;Trasferimenti correnti;2;Trasferimenti correnti a Famiglie;3;Borse di studio, dottorati di ricerca e contratti di formazione specialistica area medica;1;Borse di studio;09/10/2019
1852;1;0;33,6;33,6;NOMINATIVO OMESSO PER PRIVACY; ;Agevolazioni di viaggio in favore degli studenti anno scolastico e accademico 2018/2019  L.R.N.48 del 28/12/2018  art.5 comma 33 (Legge di stabilita 2019).  - Liquidazione;09/10/2019;3564;0;329;1;Spese correnti;4;Trasferimenti correnti;2;Trasferimenti correnti a Famiglie;3;Borse di studio, dottorati di ricerca e contratti di formazione specialistica area medica;1;Borse di studio;09/10/2019
1853;1;0;33,6;33,6;NOMINATIVO OMESSO PER PRIVACY; ;Agevolazioni di viaggio in favore degli studenti anno scolastico e accademico 2018/2019  L.R.N.48 del 28/12/2018  art.5 comma 33 (Legge di stabilita 2019).  - Liquidazione;09/10/2019;3564;0;329;1;Spese correnti;4;Trasferimenti correnti;2;Trasferimenti correnti a Famiglie;3;Borse di studio, dottorati di ricerca e contratti di formazione specialistica area medica;1;Borse di studio;09/10/2019
1854;1;0;80;80;NOMINATIVO OMESSO PER PRIVACY; ;Agevolazioni di viaggio in favore degli studenti anno scolastico e accademico 2018/2019  L.R.N.48 del 28/12/2018  art.5 comma 33 (Legge di stabilita 2019).  - Liquidazione;09/10/2019;3564;0;329;1;Spese correnti;4;Trasferimenti correnti;2;Trasferimenti correnti a Famiglie;3;Borse di studio, dottorati di ricerca e contratti di formazione specialistica area medica;1;Borse di studio;09/10/2019
1855;1;0;60;60;NOMINATIVO OMESSO PER PRIVACY; ;Agevolazioni di viaggio in favore degli studenti anno scolastico e accademico 2018/2019  L.R.N.48 del 28/12/2018  art.5 comma 33 (Legge di stabilita 2019).  - Liquidazione;09/10/2019;3564;0;329;1;Spese correnti;4;Trasferimenti correnti;2;Trasferimenti correnti a Famiglie;3;Borse di studio, dottorati di ricerca e contratti di formazione specialistica area medica;1;Borse di studio;09/10/2019
1856;1;0;93,33;93,33;NOMINATIVO OMESSO PER PRIVACY; ;Agevolazioni di viaggio in favore degli studenti anno scolastico e accademico 2018/2019  L.R.N.48 del 28/12/2018  art.5 comma 33 (Legge di stabilita 2019).  - Liquidazione;09/10/2019;3564;0;329;1;Spese correnti;4;Trasferimenti correnti;2;Trasferimenti correnti a Famiglie;3;Borse di studio, dottorati di ricerca e contratti di formazione specialistica area medica;1;Borse di studio;09/10/2019
1857;1;0;33,6;33,6;NOMINATIVO OMESSO PER PRIVACY; ;Agevolazioni di viaggio in favore degli studenti anno scolastico e accademico 2018/2019  L.R.N.48 del 28/12/2018  art.5 comma 33 (Legge di stabilita 2019).  - Liquidazione;09/10/2019;3564;0;329;1;Spese correnti;4;Trasferimenti correnti;2;Trasferimenti correnti a Famiglie;3;Borse di studio, dottorati di ricerca e contratti di formazione specialistica area medica;1;Borse di studio;09/10/2019
1858;1;0;33,6;33,6;NOMINATIVO OMESSO PER PRIVACY; ;Agevolazioni di viaggio in favore degli studenti anno scolastico e accademico 2018/2019  L.R.N.48 del 28/12/2018  art.5 comma 33 (Legge di stabilita 2019).  - Liquidazione;09/10/2019;3564;0;329;1;Spese correnti;4;Trasferimenti correnti;2;Trasferimenti correnti a Famiglie;3;Borse di studio, dottorati di ricerca e contratti di formazione specialistica area medica;1;Borse di studio;09/10/2019
1859;1;0;33,6;33,6;NOMINATIVO OMESSO PER PRIVACY; ;Agevolazioni di viaggio in favore degli studenti anno scolastico e accademico 2018/2019  L.R.N.48 del 28/12/2018  art.5 comma 33 (Legge di stabilita 2019).  - Liquidazione;09/10/2019;3564;0;329;1;Spese correnti;4;Trasferimenti correnti;2;Trasferimenti correnti a Famiglie;3;Borse di studio, dottorati di ricerca e contratti di formazione specialistica area medica;1;Borse di studio;09/10/2019
1860;1;0;33,6;33,6;NOMINATIVO OMESSO PER PRIVACY; ;Agevolazioni di viaggio in favore degli studenti anno scolastico e accademico 2018/2019  L.R.N.48 del 28/12/2018  art.5 comma 33 (Legge di stabilita 2019).  - Liquidazione;09/10/2019;3564;0;329;1;Spese correnti;4;Trasferimenti correnti;2;Trasferimenti correnti a Famiglie;3;Borse di studio, dottorati di ricerca e contratti di formazione specialistica area medica;1;Borse di studio;09/10/2019
1861;1;0;33,6;33,6;NOMINATIVO OMESSO PER PRIVACY; ;Agevolazioni di viaggio in favore degli studenti anno scolastico e accademico 2018/2019  L.R.N.48 del 28/12/2018  art.5 comma 33 (Legge di stabilita 2019).  - Liquidazione;09/10/2019;3564;0;329;1;Spese correnti;4;Trasferimenti correnti;2;Trasferimenti correnti a Famiglie;3;Borse di studio, dottorati di ricerca e contratti di formazione specialistica area medica;1;Borse di studio;09/10/2019
1862;1;0;33,6;33,6;NOMINATIVO OMESSO PER PRIVACY; ;Agevolazioni di viaggio in favore degli studenti anno scolastico e accademico 2018/2019  L.R.N.48 del 28/12/2018  art.5 comma 33 (Legge di stabilita 2019).  - Liquidazione;09/10/2019;3564;0;329;1;Spese correnti;4;Trasferimenti correnti;2;Trasferimenti correnti a Famiglie;3;Borse di studio, dottorati di ricerca e contratti di formazione specialistica area medica;1;Borse di studio;09/10/2019
1863;1;0;67,2;67,2;NOMINATIVO OMESSO PER PRIVACY; ;Agevolazioni di viaggio in favore degli studenti anno scolastico e accademico 2018/2019  L.R.N.48 del 28/12/2018  art.5 comma 33 (Legge di stabilita 2019).  - Liquidazione;09/10/2019;3564;0;329;1;Spese correnti;4;Trasferimenti correnti;2;Trasferimenti correnti a Famiglie;3;Borse di studio, dottorati di ricerca e contratti di formazione specialistica area medica;1;Borse di studio;09/10/2019
1864;1;0;33,6;33,6;NOMINATIVO OMESSO PER PRIVACY; ;Agevolazioni di viaggio in favore degli studenti anno scolastico e accademico 2018/2019  L.R.N.48 del 28/12/2018  art.5 comma 33 (Legge di stabilita 2019).  - Liquidazione;09/10/2019;3564;0;329;1;Spese correnti;4;Trasferimenti correnti;2;Trasferimenti correnti a Famiglie;3;Borse di studio, dottorati di ricerca e contratti di formazione specialistica area medica;1;Borse di studio;09/10/2019
1865;1;0;25,2;25,2;NOMINATIVO OMESSO PER PRIVACY; ;Agevolazioni di viaggio in favore degli studenti anno scolastico e accademico 2018/2019  L.R.N.48 del 28/12/2018  art.5 comma 33 (Legge di stabilita 2019).  - Liquidazione;09/10/2019;3564;0;329;1;Spese correnti;4;Trasferimenti correnti;2;Trasferimenti correnti a Famiglie;3;Borse di studio, dottorati di ricerca e contratti di formazione specialistica area medica;1;Borse di studio;09/10/2019
1866;1;0;126,93;126,93;NOMINATIVO OMESSO PER PRIVACY; ;Agevolazioni di viaggio in favore degli studenti anno scolastico e accademico 2018/2019  L.R.N.48 del 28/12/2018  art.5 comma 33 (Legge di stabilita 2019).  - Liquidazione;09/10/2019;3564;0;329;1;Spese correnti;4;Trasferimenti correnti;2;Trasferimenti correnti a Famiglie;3;Borse di studio, dottorati di ricerca e contratti di formazione specialistica area medica;1;Borse di studio;09/10/2019
1867;1;0;33,6;33,6;NOMINATIVO OMESSO PER PRIVACY; ;Agevolazioni di viaggio in favore degli studenti anno scolastico e accademico 2018/2019  L.R.N.48 del 28/12/2018  art.5 comma 33 (Legge di stabilita 2019).  - Liquidazione;09/10/2019;3564;0;329;1;Spese correnti;4;Trasferimenti correnti;2;Trasferimenti correnti a Famiglie;3;Borse di studio, dottorati di ricerca e contratti di formazione specialistica area medica;1;Borse di studio;09/10/2019
1868;1;0;25,2;25,2;NOMINATIVO OMESSO PER PRIVACY; ;Agevolazioni di viaggio in favore degli studenti anno scolastico e accademico 2018/2019  L.R.N.48 del 28/12/2018  art.5 comma 33 (Legge di stabilita 2019).  - Liquidazione;09/10/2019;3564;0;329;1;Spese correnti;4;Trasferimenti correnti;2;Trasferimenti correnti a Famiglie;3;Borse di studio, dottorati di ricerca e contratti di formazione specialistica area medica;1;Borse di studio;09/10/2019
1869;1;0;25,2;25,2;NOMINATIVO OMESSO PER PRIVACY; ;Agevolazioni di viaggio in favore degli studenti anno scolastico e accademico 2018/2019  L.R.N.48 del 28/12/2018  art.5 comma 33 (Legge di stabilita 2019).  - Liquidazione;09/10/2019;3564;0;329;1;Spese correnti;4;Trasferimenti correnti;2;Trasferimenti correnti a Famiglie;3;Borse di studio, dottorati di ricerca e contratti di formazione specialistica area medica;1;Borse di studio;09/10/2019
1870;1;0;60;60;NOMINATIVO OMESSO PER PRIVACY; ;Agevolazioni di viaggio in favore degli studenti anno scolastico e accademico 2018/2019  L.R.N.48 del 28/12/2018  art.5 comma 33 (Legge di stabilita 2019).  - Liquidazione;09/10/2019;3564;0;329;1;Spese correnti;4;Trasferimenti correnti;2;Trasferimenti correnti a Famiglie;3;Borse di studio, dottorati di ricerca e contratti di formazione specialistica area medica;1;Borse di studio;09/10/2019
1871;1;0;33,6;33,6;NOMINATIVO OMESSO PER PRIVACY; ;Agevolazioni di viaggio in favore degli studenti anno scolastico e accademico 2018/2019  L.R.N.48 del 28/12/2018  art.5 comma 33 (Legge di stabilita 2019).  - Liquidazione;09/10/2019;3564;0;329;1;Spese correnti;4;Trasferimenti correnti;2;Trasferimenti correnti a Famiglie;3;Borse di studio, dottorati di ricerca e contratti di formazione specialistica area medica;1;Borse di studio;09/10/2019
1872;1;0;33,6;33,6;NOMINATIVO OMESSO PER PRIVACY; ;Agevolazioni di viaggio in favore degli studenti anno scolastico e accademico 2018/2019  L.R.N.48 del 28/12/2018  art.5 comma 33 (Legge di stabilita 2019).  - Liquidazione;09/10/2019;3564;0;329;1;Spese correnti;4;Trasferimenti correnti;2;Trasferimenti correnti a Famiglie;3;Borse di studio, dottorati di ricerca e contratti di formazione specialistica area medica;1;Borse di studio;09/10/2019
1873;1;0;33,6;33,6;NOMINATIVO OMESSO PER PRIVACY; ;Agevolazioni di viaggio in favore degli studenti anno scolastico e accademico 2018/2019  L.R.N.48 del 28/12/2018  art.5 comma 33 (Legge di stabilita 2019).  - Liquidazione;09/10/2019;3564;0;329;1;Spese correnti;4;Trasferimenti correnti;2;Trasferimenti correnti a Famiglie;3;Borse di studio, dottorati di ricerca e contratti di formazione specialistica area medica;1;Borse di studio;09/10/2019
1874;1;0;80;80;NOMINATIVO OMESSO PER PRIVACY; ;Agevolazioni di viaggio in favore degli studenti anno scolastico e accademico 2018/2019  L.R.N.48 del 28/12/2018  art.5 comma 33 (Legge di stabilita 2019).  - Liquidazione;09/10/2019;3564;0;329;1;Spese correnti;4;Trasferimenti correnti;2;Trasferimenti correnti a Famiglie;3;Borse di studio, dottorati di ricerca e contratti di formazione specialistica area medica;1;Borse di studio;09/10/2019
1875;1;0;350;350;OLMEO GIOVANNA;7967018F39;"Ristrutturazione con interventi di efficientamento energetico del municipio. Attuazione D.G.R.n46/7 del 10.08.2016 - Bando per il finanziamento di ""Interventi di efficientamento energetico e di realizzazione di micro reti in strutture pubbliche nell";10/10/2019;9042;0;247;2;Spese in conto capitale;2;Investimenti fissi lordi e acquisto di terreni;1;Beni materiali;9;Beni immobili;999;Beni immobili n.a.c.;10/10/2019
1876;1;0;350;350;CANNAS AGHEDU LUCIA;7967018F39;"Ristrutturazione con interventi di efficientamento energetico del municipio. Attuazione D.G.R.n46/7 del 10.08.2016 - Bando per il finanziamento di ""Interventi di efficientamento energetico e di realizzazione di micro reti in strutture pubbliche nell";10/10/2019;9042;0;247;2;Spese in conto capitale;2;Investimenti fissi lordi e acquisto di terreni;1;Beni materiali;9;Beni immobili;999;Beni immobili n.a.c.;10/10/2019
1906;1;0;700,25;700,25;DIPENDENTI COMUNALI;7782458F7E;Liquidazione incentivi al RUP e suoi collaboratori ai sensi degli artt.7 e 8 del Regolamento comunale per la costituzione e la ripartizione del fondo incentivi per lo svolgimento di funzioni tecniche da parte dei dipendenti pubblici nell'ambito di la;10/10/2019;9253;0;411;2;Spese in conto capitale;2;Investimenti fissi lordi e acquisto di terreni;1;Beni materiali;9;Beni immobili;12;Infrastrutture stradali;10/10/2019
1907;1;0;210,04;210,04;DIPENDENTI COMUNALI;7782458F7E;Liquidazione incentivi al RUP e suoi collaboratori ai sensi degli artt.7 e 8 del Regolamento comunale per la costituzione e la ripartizione del fondo incentivi per lo svolgimento di funzioni tecniche da parte dei dipendenti pubblici nell'ambito di la;10/10/2019;9253;0;411;2;Spese in conto capitale;2;Investimenti fissi lordi e acquisto di terreni;1;Beni materiali;9;Beni immobili;12;Infrastrutture stradali;10/10/2019
1910;1;0;1.907,01;1.907,01;ANTIGNANO ORESTE ANTONIO; ;SALDO Fatt.n. FPA 3/19  del 08/10/2019;14/10/2019;80;0;274;1;Spese correnti;3;Acquisto di beni e servizi;2;Acquisto di servizi;1;Organi e incarichi istituzionali dell'amministrazione;8;Compensi agli organi istituzionali di revisione, di controllo ed altri incarichi istituzionali dell'amministrazione;14/10/2019
1911;1;0;3.678,30;3.678,30;progetti e servizi;Z0F2714191;SALDO Fatt.n. FATTPA 63_19  del 03/10/2019 ORE UFF.TRIBUTI AL 30/9/19;14/10/2019;460;6;56;1;Spese correnti;3;Acquisto di beni e servizi;2;Acquisto di servizi;16;Servizi amministrativi;999;Altre spese per servizi amministrativi;14/10/2019
1912;1;0;767,99;767,99;EDILTISSI di Chessa Augusto;Z4429EEDA0;SALDO Fatt.n. 002-0000 248  del 03/10/2019;14/10/2019;452;0;323;1;Spese correnti;3;Acquisto di beni e servizi;1;Acquisto di beni;2;Altri beni di consumo;999;Altri beni e materiali di consumo n.a.c.;14/10/2019
1913;1;0;1.525,00;1.525,00;AD Srls;ZCC2979EE1;SALDO Fatt.n. FPA 1/19  del 02/10/2019 Determinazione n. 315 del 20.09. 2019  -  CIG: ZCC2979EE1;14/10/2019;9006;0;319;2;Spese in conto capitale;2;Investimenti fissi lordi e acquisto di terreni;1;Beni materiali;6;Macchine per ufficio;1;Macchine per ufficio;14/10/2019
1914;1;0;201,68;201,68;CVS centro vernici sardegna;ZA429B019E;SALDO Fatt.n. 1 P  del 09/09/2019 FATTURA;14/10/2019;2970;0;296;1;Spese correnti;3;Acquisto di beni e servizi;1;Acquisto di beni;2;Altri beni di consumo;999;Altri beni e materiali di consumo n.a.c.;14/10/2019
1915;1;0;703,96;703,96;CVS centro vernici sardegna;Z9429B013A;SALDO Fatt.n. 2 P  del 09/09/2019 FATTURA;14/10/2019;2970;0;295;1;Spese correnti;3;Acquisto di beni e servizi;1;Acquisto di beni;2;Altri beni di consumo;999;Altri beni e materiali di consumo n.a.c.;14/10/2019
1916;1;0;1.301,47;1.301,47;BUDRONI GIOVANNI MARIA; ;indennita di carica al sindaco, vice sindaco e assessori mese di ottobre;14/10/2019;10;0;40;1;Spese correnti;3;Acquisto di beni e servizi;2;Acquisto di servizi;1;Organi e incarichi istituzionali dell'amministrazione;1;Organi istituzionali dell'amministrazione - Indennità;14/10/2019
1917;1;0;130,12;130,12;MASIA DOMENICO; ;indennita di carica al sindaco, vice sindaco e assessori  mese di orttobre;14/10/2019;10;0;40;1;Spese correnti;3;Acquisto di beni e servizi;2;Acquisto di servizi;1;Organi e incarichi istituzionali dell'amministrazione;1;Organi istituzionali dell'amministrazione - Indennità;14/10/2019
1918;1;0;195,22;195,22;DELEDDA GIOMMARIA GIUSEPPE; ;indennita di carica al sindaco, vice sindaco e assessori  mese di orttobre;14/10/2019;10;0;40;1;Spese correnti;3;Acquisto di beni e servizi;2;Acquisto di servizi;1;Organi e incarichi istituzionali dell'amministrazione;1;Organi istituzionali dell'amministrazione - Indennità;14/10/2019
1919;1;0;195,22;195,22;MAMELI MARIA LUCIA; ;indennita di carica al sindaco, vice sindaco e assessori  mese di orttobre;14/10/2019;10;0;40;1;Spese correnti;3;Acquisto di beni e servizi;2;Acquisto di servizi;1;Organi e incarichi istituzionali dell'amministrazione;1;Organi istituzionali dell'amministrazione - Indennità;14/10/2019
1920;1;0;97,61;97,61;CARTA ANGELO; ;indennita di carica al sindaco, vice sindaco e assessori  mese di orttobre;14/10/2019;10;0;40;1;Spese correnti;3;Acquisto di beni e servizi;2;Acquisto di servizi;1;Organi e incarichi istituzionali dell'amministrazione;1;Organi istituzionali dell'amministrazione - Indennità;14/10/2019
1921;1;0;650,73;650,73;BUDRONI GIOVANNI MARIA; ;Rimborso forfettario a beneficio di Amministratori locali previsto dal Regolamento di attuazione dell'articolo 73 della legge regionale 4 febbraio 2016, n.2 (Riordino del sistema delle autonomie locali della Sardegna) -Impegno di spesa;14/10/2019;30;0;169;1;Spese correnti;3;Acquisto di beni e servizi;2;Acquisto di servizi;1;Organi e incarichi istituzionali dell'amministrazione;1;Organi istituzionali dell'amministrazione - Indennità;14/10/2019
1922;1;0;162,58;162,58;DELEDDA GIOMMARIA GIUSEPPE; ;Rimborso forfettario a beneficio di Amministratori locali previsto dal Regolamento di attuazione dell'articolo 73 della legge regionale 4 febbraio 2016, n.2 (Riordino del sistema delle autonomie locali della Sardegna) -Impegno di spesa;14/10/2019;30;0;169;1;Spese correnti;3;Acquisto di beni e servizi;2;Acquisto di servizi;1;Organi e incarichi istituzionali dell'amministrazione;1;Organi istituzionali dell'amministrazione - Indennità;14/10/2019
1923;1;0;162,58;162,58;MASIA DOMENICO; ;Rimborso forfettario a beneficio di Amministratori locali previsto dal Regolamento di attuazione dell'articolo 73 della legge regionale 4 febbraio 2016, n.2 (Riordino del sistema delle autonomie locali della Sardegna) -Impegno di spesa;14/10/2019;30;0;169;1;Spese correnti;3;Acquisto di beni e servizi;2;Acquisto di servizi;1;Organi e incarichi istituzionali dell'amministrazione;1;Organi istituzionali dell'amministrazione - Indennità;14/10/2019
1924;1;0;162,58;162,58;MAMELI MARIA LUCIA; ;Rimborso forfettario a beneficio di Amministratori locali previsto dal Regolamento di attuazione dell'articolo 73 della legge regionale 4 febbraio 2016, n.2 (Riordino del sistema delle autonomie locali della Sardegna) -Impegno di spesa;14/10/2019;30;0;169;1;Spese correnti;3;Acquisto di beni e servizi;2;Acquisto di servizi;1;Organi e incarichi istituzionali dell'amministrazione;1;Organi istituzionali dell'amministrazione - Indennità;14/10/2019
1925;1;0;162,58;162,58;CARTA ANGELO; ;Rimborso forfettario a beneficio di Amministratori locali previsto dal Regolamento di attuazione dell'articolo 73 della legge regionale 4 febbraio 2016, n.2 (Riordino del sistema delle autonomie locali della Sardegna) -Impegno di spesa;14/10/2019;30;0;169;1;Spese correnti;3;Acquisto di beni e servizi;2;Acquisto di servizi;1;Organi e incarichi istituzionali dell'amministrazione;1;Organi istituzionali dell'amministrazione - Indennità;14/10/2019
1942;1;0;14.154,20;14.154,20;ANDALAS DE AMISTADE;7884359ADD;SALDO Fatt.n. 155\PA  del 19/09/2019  Vostro Dare per Cantiere LAVORAS art 2 LR 12018 cantieri di nuova attivazione Determina n182 del 28052019 periodo 01072019 280220201 Acconto mesi di luglio e agosto 2019;17/10/2019;7100;0;193;1;Spese correnti;10;Altre spese correnti;99;Altre spese correnti n.a.c.;99;Altre spese correnti n.a.c.;999;Altre spese correnti n.a.c.;17/10/2019
1943;1;0;184,69;184,69;MINISTERO DELL'INTERNO; ;Versamento al Ministero dell' Interno dei diritti relativi alle carte d' identita elettroniche emesse - 2 versamento mese di settembre 2019;17/10/2019;939;0;335;1;Spese correnti;4;Trasferimenti correnti;1;Trasferimenti correnti a Amministrazioni Pubbliche;1;Trasferimenti correnti a Amministrazioni Centrali;1;Trasferimenti correnti a Ministeri;17/10/2019
1944;1;0;500;500;UNIONE DEI COMUNI  del COROS; ;Servizio di Soccorso Veterinario di 2 livello in forma associata. Versamento all' Unione dei Comuni del Coros della quota spettante - Anno 2019;17/10/2019;4520;0;336;1;Spese correnti;4;Trasferimenti correnti;4;Trasferimenti correnti a Istituzioni Sociali Private;1;Trasferimenti correnti a Istituzioni Sociali Private;1;Trasferimenti correnti a Istituzioni Sociali Private;17/10/2019
1945;1;0;197,5;197,5;STAZIONE RIFORNIMENTO ESSO DI SALVATORE MUDADU;ZA128CBA9A;ACCONTO Fatt.n. 20/PA  del 30/09/2019 Carburante tipo diesel per vostro mezzo mese settembre 2019;17/10/2019;438;0;344;1;Spese correnti;3;Acquisto di beni e servizi;1;Acquisto di beni;2;Altri beni di consumo;2;Carburanti, combustibili e lubrificanti;17/10/2019
1946;1;0;39,5;39,5;STAZIONE RIFORNIMENTO ESSO DI SALVATORE MUDADU;ZA128CBA9A;SALDO Fatt.n. 20/PA  del 30/09/2019 Carburante tipo diesel per vostro mezzo mese settembre 2019;17/10/2019;438;0;204;1;Spese correnti;3;Acquisto di beni e servizi;1;Acquisto di beni;2;Altri beni di consumo;2;Carburanti, combustibili e lubrificanti;17/10/2019
1947;1;0;22.688,10;22.688,10;CO.ME.S. Cooperativa Mediateche Sarde a r.l.;7671745C3D;SALDO Fatt.n. 106  del 03/10/2019 Tissi // Servizio Gestione del Sistema Bibliotecario del Coros Figulinas periodo settembre 2019;17/10/2019;3782;0;391;1;Spese correnti;3;Acquisto di beni e servizi;2;Acquisto di servizi;99;Altri servizi;999;Altri servizi diversi n.a.c.;17/10/2019
1948;1;0;300;300;NOMINATIVO OMESSO PER PRIVACY; ;L.R. n. 23/2005-  Interventi di sostegno alla persona-Concessione contributi  straordinari  in favore di nuclei familiari in stato di disagio sociale ed economico. Impegno di spesa e liquidazione.;17/10/2019;6666;0;340;1;Spese correnti;4;Trasferimenti correnti;2;Trasferimenti correnti a Famiglie;2;Interventi assistenziali;999;Altri assegni e sussidi assistenziali;17/10/2019
1949;1;0;200;200;NOMINATIVO OMESSO PER PRIVACY; ;L.R. n. 23/2005-  Interventi di sostegno alla persona-Concessione contributi  straordinari  in favore di nuclei familiari in stato di disagio sociale ed economico. Impegno di spesa e liquidazione.;17/10/2019;6666;0;340;1;Spese correnti;4;Trasferimenti correnti;2;Trasferimenti correnti a Famiglie;2;Interventi assistenziali;999;Altri assegni e sussidi assistenziali;17/10/2019
1951;1;0;727,5;727,5;NOMINATIVO OMESSO PER PRIVACY; ;"Accertamento di entrata e Impegno di spesa relativa al ""Finanziamento Piani Personalizzati Legge 162/98"" saldo annualita 2018/gest.2019 periodo luglio-settembre 2019";17/10/2019;7038;0;245;1;Spese correnti;4;Trasferimenti correnti;2;Trasferimenti correnti a Famiglie;5;Altri trasferimenti a famiglie;999;Altri trasferimenti a famiglie n.a.c.;17/10/2019
1952;1;0;375;375;NOMINATIVO OMESSO PER PRIVACY; ;"Accertamento di entrata e Impegno di spesa relativa al ""Finanziamento Piani Personalizzati Legge 162/98"" saldo annualita 2018/gest.2019 periodo luglio-settembre 2019";17/10/2019;7038;0;245;1;Spese correnti;4;Trasferimenti correnti;2;Trasferimenti correnti a Famiglie;5;Altri trasferimenti a famiglie;999;Altri trasferimenti a famiglie n.a.c.;17/10/2019
1953;1;0;142,19;142,19;NOMINATIVO OMESSO PER PRIVACY; ;"Accertamento di entrata e Impegno di spesa relativa al ""Finanziamento Piani Personalizzati Legge 162/98"" saldo annualita 2018/gest.2019 periodo luglio-settembre 2019";17/10/2019;7038;0;245;1;Spese correnti;4;Trasferimenti correnti;2;Trasferimenti correnti a Famiglie;5;Altri trasferimenti a famiglie;999;Altri trasferimenti a famiglie n.a.c.;17/10/2019
1954;1;0;109,38;109,38;NOMINATIVO OMESSO PER PRIVACY; ;"Accertamento di entrata e Impegno di spesa relativa al ""Finanziamento Piani Personalizzati Legge 162/98"" saldo annualita 2018/gest.2019 periodo luglio-settembre 2019";17/10/2019;7038;0;245;1;Spese correnti;4;Trasferimenti correnti;2;Trasferimenti correnti a Famiglie;5;Altri trasferimenti a famiglie;999;Altri trasferimenti a famiglie n.a.c.;17/10/2019
1955;1;0;341,25;341,25;NOMINATIVO OMESSO PER PRIVACY; ;"Accertamento di entrata e Impegno di spesa relativa al ""Finanziamento Piani Personalizzati Legge 162/98"" saldo annualita 2018/gest.2019 periodo luglio-settembre 2019";17/10/2019;7038;0;245;1;Spese correnti;4;Trasferimenti correnti;2;Trasferimenti correnti a Famiglie;5;Altri trasferimenti a famiglie;999;Altri trasferimenti a famiglie n.a.c.;17/10/2019
1956;1;0;138,79;138,79;NOMINATIVO OMESSO PER PRIVACY; ;"Accertamento di entrata e Impegno di spesa relativa al ""Finanziamento Piani Personalizzati Legge 162/98"" saldo annualita 2018/gest.2019 periodo luglio-settembre 2019";18/10/2019;7038;0;245;1;Spese correnti;4;Trasferimenti correnti;2;Trasferimenti correnti a Famiglie;5;Altri trasferimenti a famiglie;999;Altri trasferimenti a famiglie n.a.c.;18/10/2019
1957;1;0;148;148;NOMINATIVO OMESSO PER PRIVACY; ;"Accertamento di entrata e Impegno di spesa relativa al ""Finanziamento Piani Personalizzati Legge 162/98"" saldo annualita 2018/gest.2019 periodo luglio-settembre 2019";18/10/2019;7038;0;245;1;Spese correnti;4;Trasferimenti correnti;2;Trasferimenti correnti a Famiglie;5;Altri trasferimenti a famiglie;999;Altri trasferimenti a famiglie n.a.c.;18/10/2019
1958;1;0;130,99;130,99;NOMINATIVO OMESSO PER PRIVACY; ;"Accertamento di entrata e Impegno di spesa relativa al ""Finanziamento Piani Personalizzati Legge 162/98"" saldo annualita 2018/gest.2019 periodo luglio-settembre 2019";18/10/2019;7038;0;245;1;Spese correnti;4;Trasferimenti correnti;2;Trasferimenti correnti a Famiglie;5;Altri trasferimenti a famiglie;999;Altri trasferimenti a famiglie n.a.c.;18/10/2019
1959;1;0;249,43;249,43;NOMINATIVO OMESSO PER PRIVACY; ;"Accertamento di entrata e Impegno di spesa relativa al ""Finanziamento Piani Personalizzati Legge 162/98"" saldo annualita 2018/gest.2019 periodo luglio-settembre 2019(CHESSA C.)";18/10/2019;7038;0;245;1;Spese correnti;4;Trasferimenti correnti;2;Trasferimenti correnti a Famiglie;5;Altri trasferimenti a famiglie;999;Altri trasferimenti a famiglie n.a.c.;18/10/2019
1960;1;0;175,04;175,04;NOMINATIVO OMESSO PER PRIVACY; ;"Accertamento di entrata e Impegno di spesa relativa al ""Finanziamento Piani Personalizzati Legge 162/98"" saldo annualita 2018/gest.2019 periodo luglio-settembre 2019( FIORI GIUSEPPINO)";18/10/2019;7038;0;245;1;Spese correnti;4;Trasferimenti correnti;2;Trasferimenti correnti a Famiglie;5;Altri trasferimenti a famiglie;999;Altri trasferimenti a famiglie n.a.c.;18/10/2019
1961;1;0;958,33;958,33;NOMINATIVO OMESSO PER PRIVACY; ;"Accertamento di entrata e Impegno di spesa relativa al ""Finanziamento Piani Personalizzati Legge 162/98"" saldo annualita 2018/gest.2019 periodo luglio-settembre 2019";18/10/2019;7038;0;245;1;Spese correnti;4;Trasferimenti correnti;2;Trasferimenti correnti a Famiglie;5;Altri trasferimenti a famiglie;999;Altri trasferimenti a famiglie n.a.c.;18/10/2019
1962;1;0;170,63;170,63;NOMINATIVO OMESSO PER PRIVACY; ;"Accertamento di entrata e Impegno di spesa relativa al ""Finanziamento Piani Personalizzati Legge 162/98"" saldo annualita 2018/gest.2019 periodo luglio-settembre 2019(MARROSU G.)";18/10/2019;7038;0;245;1;Spese correnti;4;Trasferimenti correnti;2;Trasferimenti correnti a Famiglie;5;Altri trasferimenti a famiglie;999;Altri trasferimenti a famiglie n.a.c.;18/10/2019
1963;1;0;183,79;183,79;NOMINATIVO OMESSO PER PRIVACY; ;"Accertamento di entrata e Impegno di spesa relativa al ""Finanziamento Piani Personalizzati Legge 162/98"" saldo annualita 2018/gest.2019 periodo luglio-settembre 2019(MUDADU V.)";18/10/2019;7038;0;245;1;Spese correnti;4;Trasferimenti correnti;2;Trasferimenti correnti a Famiglie;5;Altri trasferimenti a famiglie;999;Altri trasferimenti a famiglie n.a.c.;18/10/2019
1964;1;0;481,35;481,35;NOMINATIVO OMESSO PER PRIVACY; ;"Accertamento di entrata e Impegno di spesa relativa al ""Finanziamento Piani Personalizzati Legge 162/98"" saldo annualita 2018/gest.2019 periodo luglio-settembre 2019(PAIS F.)";18/10/2019;7038;0;245;1;Spese correnti;4;Trasferimenti correnti;2;Trasferimenti correnti a Famiglie;5;Altri trasferimenti a famiglie;999;Altri trasferimenti a famiglie n.a.c.;18/10/2019
1965;1;0;308,82;308,82;NOMINATIVO OMESSO PER PRIVACY; ;"Accertamento di entrata e Impegno di spesa relativa al ""Finanziamento Piani Personalizzati Legge 162/98"" saldo annualita 2018/gest.2019 periodo luglio-settembre 2019";18/10/2019;7038;0;245;1;Spese correnti;4;Trasferimenti correnti;2;Trasferimenti correnti a Famiglie;5;Altri trasferimenti a famiglie;999;Altri trasferimenti a famiglie n.a.c.;18/10/2019
1966;1;0;900;900;NOMINATIVO OMESSO PER PRIVACY; ;"Accertamento di entrata e Impegno di spesa relativa al ""Finanziamento Piani Personalizzati Legge 162/98"" saldo annualita 2018/gest.2019 periodo luglio-settembre 2019";18/10/2019;7038;0;245;1;Spese correnti;4;Trasferimenti correnti;2;Trasferimenti correnti a Famiglie;5;Altri trasferimenti a famiglie;999;Altri trasferimenti a famiglie n.a.c.;18/10/2019
1967;1;0;186,19;186,19;NOMINATIVO OMESSO PER PRIVACY; ;"Accertamento di entrata e Impegno di spesa relativa al ""Finanziamento Piani Personalizzati Legge 162/98"" saldo annualita 2018/gest.2019 periodo luglio-settembre 2019";18/10/2019;7038;0;245;1;Spese correnti;4;Trasferimenti correnti;2;Trasferimenti correnti a Famiglie;5;Altri trasferimenti a famiglie;999;Altri trasferimenti a famiglie n.a.c.;18/10/2019
1968;1;0;480;480;NOMINATIVO OMESSO PER PRIVACY; ;"Accertamento di entrata e Impegno di spesa relativa al ""Finanziamento Piani Personalizzati Legge 162/98"" saldo annualita 2018/gest.2019 periodo luglio-settembre 2019";18/10/2019;7038;0;245;1;Spese correnti;4;Trasferimenti correnti;2;Trasferimenti correnti a Famiglie;5;Altri trasferimenti a famiglie;999;Altri trasferimenti a famiglie n.a.c.;18/10/2019
1969;1;0;144,41;144,41;NOMINATIVO OMESSO PER PRIVACY; ;"Accertamento di entrata e Impegno di spesa relativa al ""Finanziamento Piani Personalizzati Legge 162/98"" saldo annualita 2018/gest.2019 periodo luglio-settembre 2019(SAU VITTORIA)";18/10/2019;7038;0;245;1;Spese correnti;4;Trasferimenti correnti;2;Trasferimenti correnti a Famiglie;5;Altri trasferimenti a famiglie;999;Altri trasferimenti a famiglie n.a.c.;18/10/2019
1970;1;0;296,44;296,44;NOMINATIVO OMESSO PER PRIVACY; ;"Accertamento di entrata e Impegno di spesa relativa al ""Finanziamento Piani Personalizzati Legge 162/98"" saldo annualita 2018/gest.2019 periodo luglio-settembre 2019";18/10/2019;7038;0;245;1;Spese correnti;4;Trasferimenti correnti;2;Trasferimenti correnti a Famiglie;5;Altri trasferimenti a famiglie;999;Altri trasferimenti a famiglie n.a.c.;18/10/2019
1971;1;0;156,25;156,25;NOMINATIVO OMESSO PER PRIVACY; ;"Accertamento di entrata e Impegno di spesa relativa al ""Finanziamento Piani Personalizzati Legge 162/98"" saldo annualita 2018/gest.2019 periodo luglio-settembre 2019";18/10/2019;7038;0;245;1;Spese correnti;4;Trasferimenti correnti;2;Trasferimenti correnti a Famiglie;5;Altri trasferimenti a famiglie;999;Altri trasferimenti a famiglie n.a.c.;18/10/2019
1972;1;0;253,64;253,64;NOMINATIVO OMESSO PER PRIVACY; ;"Accertamento di entrata e Impegno di spesa relativa al ""Finanziamento Piani Personalizzati Legge 162/98"" saldo annualita 2018/gest.2019 periodo luglio-settembre 2019";18/10/2019;7038;0;245;1;Spese correnti;4;Trasferimenti correnti;2;Trasferimenti correnti a Famiglie;5;Altri trasferimenti a famiglie;999;Altri trasferimenti a famiglie n.a.c.;18/10/2019
1973;1;0;1.252,52;1.252,52;NOMINATIVO OMESSO PER PRIVACY; ;"Accertamento di entrata e Impegno di spesa relativa al ""Finanziamento Piani Personalizzati Legge 162/98"" saldo annualita 2018/gest.2019 periodo luglio-settembre 2019";18/10/2019;7038;0;245;1;Spese correnti;4;Trasferimenti correnti;2;Trasferimenti correnti a Famiglie;5;Altri trasferimenti a famiglie;999;Altri trasferimenti a famiglie n.a.c.;18/10/2019
1974;1;0;60;60;NOMINATIVO OMESSO PER PRIVACY; ;"L.R. n. 18/2016. REIS - Reddito Inclusione Sociale ""Agiudu torrau"" annualita 2018 - Impegno di spesa e liquidazione Giugno 2019";18/10/2019;6693;0;334;1;Spese correnti;4;Trasferimenti correnti;2;Trasferimenti correnti a Famiglie;2;Interventi assistenziali;999;Altri assegni e sussidi assistenziali;18/10/2019
1975;1;0;60;60;NOMINATIVO OMESSO PER PRIVACY; ;"L.R. n. 18/2016. REIS - Reddito Inclusione Sociale ""Agiudu torrau"" annualita 2018 - Impegno di spesa e liquidazione Giugno 2019";18/10/2019;6693;0;334;1;Spese correnti;4;Trasferimenti correnti;2;Trasferimenti correnti a Famiglie;2;Interventi assistenziali;999;Altri assegni e sussidi assistenziali;18/10/2019
1976;1;0;60;60;NOMINATIVO OMESSO PER PRIVACY; ;"L.R. n. 18/2016. REIS - Reddito Inclusione Sociale ""Agiudu torrau"" annualita 2018 - Impegno di spesa e liquidazione Giugno 2019";18/10/2019;6693;0;334;1;Spese correnti;4;Trasferimenti correnti;2;Trasferimenti correnti a Famiglie;2;Interventi assistenziali;999;Altri assegni e sussidi assistenziali;18/10/2019
1977;1;0;60;60;NOMINATIVO OMESSO PER PRIVACY; ;"L.R. n. 18/2016. REIS - Reddito Inclusione Sociale ""Agiudu torrau"" annualita 2018 - Impegno di spesa e liquidazione Giugno 2019";18/10/2019;6693;0;334;1;Spese correnti;4;Trasferimenti correnti;2;Trasferimenti correnti a Famiglie;2;Interventi assistenziali;999;Altri assegni e sussidi assistenziali;18/10/2019
1978;1;0;120;120;NOMINATIVO OMESSO PER PRIVACY; ;"L.R. n. 18/2016. REIS - Reddito Inclusione Sociale ""Agiudu torrau"" annualita 2018 - Impegno di spesa e liquidazione Giugno 2019";18/10/2019;6693;0;334;1;Spese correnti;4;Trasferimenti correnti;2;Trasferimenti correnti a Famiglie;2;Interventi assistenziali;999;Altri assegni e sussidi assistenziali;18/10/2019
1979;1;0;60;60;NOMINATIVO OMESSO PER PRIVACY; ;"L.R. n. 18/2016. REIS - Reddito Inclusione Sociale ""Agiudu torrau"" annualita 2018 - Impegno di spesa e liquidazione Giugno 2019";18/10/2019;6693;0;334;1;Spese correnti;4;Trasferimenti correnti;2;Trasferimenti correnti a Famiglie;2;Interventi assistenziali;999;Altri assegni e sussidi assistenziali;18/10/2019
1980;1;0;90;90;NOMINATIVO OMESSO PER PRIVACY; ;"L.R. n. 18/2016. REIS - Reddito Inclusione Sociale ""Agiudu torrau"" annualita 2018 - Impegno di spesa e liquidazione Giugno 2019";18/10/2019;6693;0;334;1;Spese correnti;4;Trasferimenti correnti;2;Trasferimenti correnti a Famiglie;2;Interventi assistenziali;999;Altri assegni e sussidi assistenziali;18/10/2019
1981;1;0;60;60;NOMINATIVO OMESSO PER PRIVACY; ;"L.R. n. 18/2016. REIS - Reddito Inclusione Sociale ""Agiudu torrau"" annualita 2018 - Impegno di spesa e liquidazione Giugno 2019";18/10/2019;6693;0;334;1;Spese correnti;4;Trasferimenti correnti;2;Trasferimenti correnti a Famiglie;2;Interventi assistenziali;999;Altri assegni e sussidi assistenziali;18/10/2019
1982;1;0;120;120;NOMINATIVO OMESSO PER PRIVACY; ;"L.R. n. 18/2016. REIS - Reddito Inclusione Sociale ""Agiudu torrau"" annualita 2018 - Impegno di spesa e liquidazione Giugno 2019";18/10/2019;6693;0;334;1;Spese correnti;4;Trasferimenti correnti;2;Trasferimenti correnti a Famiglie;2;Interventi assistenziali;999;Altri assegni e sussidi assistenziali;18/10/2019
1983;1;0;60;60;NOMINATIVO OMESSO PER PRIVACY; ;"L.R. n. 18/2016. REIS - Reddito Inclusione Sociale ""Agiudu torrau"" annualita 2018 - Impegno di spesa e liquidazione Giugno 2019";18/10/2019;6693;0;334;1;Spese correnti;4;Trasferimenti correnti;2;Trasferimenti correnti a Famiglie;2;Interventi assistenziali;999;Altri assegni e sussidi assistenziali;18/10/2019
1984;1;0;90;90;NOMINATIVO OMESSO PER PRIVACY; ;"L.R. n. 18/2016. REIS - Reddito Inclusione Sociale ""Agiudu torrau"" annualita 2018 - Impegno di spesa e liquidazione Giugno 2019";18/10/2019;6693;0;334;1;Spese correnti;4;Trasferimenti correnti;2;Trasferimenti correnti a Famiglie;2;Interventi assistenziali;999;Altri assegni e sussidi assistenziali;18/10/2019
1985;1;0;60;60;NOMINATIVO OMESSO PER PRIVACY; ;"L.R. n. 18/2016. REIS - Reddito Inclusione Sociale ""Agiudu torrau"" annualita 2018 - Impegno di spesa e liquidazione Giugno 2019";18/10/2019;6693;0;334;1;Spese correnti;4;Trasferimenti correnti;2;Trasferimenti correnti a Famiglie;2;Interventi assistenziali;999;Altri assegni e sussidi assistenziali;18/10/2019
1986;1;0;120;120;NOMINATIVO OMESSO PER PRIVACY; ;"L.R. n. 18/2016. REIS - Reddito Inclusione Sociale ""Agiudu torrau"" annualita 2018 - Impegno di spesa e liquidazione Giugno 2019";18/10/2019;6693;0;334;1;Spese correnti;4;Trasferimenti correnti;2;Trasferimenti correnti a Famiglie;2;Interventi assistenziali;999;Altri assegni e sussidi assistenziali;18/10/2019
1987;1;0;60;60;NOMINATIVO OMESSO PER PRIVACY; ;"L.R. n. 18/2016. REIS - Reddito Inclusione Sociale ""Agiudu torrau"" annualita 2018 - Impegno di spesa e liquidazione Giugno 2019";18/10/2019;6693;0;334;1;Spese correnti;4;Trasferimenti correnti;2;Trasferimenti correnti a Famiglie;2;Interventi assistenziali;999;Altri assegni e sussidi assistenziali;18/10/2019
1988;1;0;120;120;NOMINATIVO OMESSO PER PRIVACY; ;"L.R. n. 18/2016. REIS - Reddito Inclusione Sociale ""Agiudu torrau"" annualita 2018 - Impegno di spesa e liquidazione Giugno 2019";18/10/2019;6693;0;334;1;Spese correnti;4;Trasferimenti correnti;2;Trasferimenti correnti a Famiglie;2;Interventi assistenziali;999;Altri assegni e sussidi assistenziali;18/10/2019
1989;1;0;90;90;NOMINATIVO OMESSO PER PRIVACY; ;"L.R. n. 18/2016. REIS - Reddito Inclusione Sociale ""Agiudu torrau"" annualita 2018 - Impegno di spesa e liquidazione Giugno 2019";18/10/2019;6693;0;334;1;Spese correnti;4;Trasferimenti correnti;2;Trasferimenti correnti a Famiglie;2;Interventi assistenziali;999;Altri assegni e sussidi assistenziali;18/10/2019
1990;1;0;60;60;NOMINATIVO OMESSO PER PRIVACY; ;"L.R. n. 18/2016. REIS - Reddito Inclusione Sociale ""Agiudu torrau"" annualita 2018 - Impegno di spesa e liquidazione Giugno 2019";18/10/2019;6693;0;334;1;Spese correnti;4;Trasferimenti correnti;2;Trasferimenti correnti a Famiglie;2;Interventi assistenziali;999;Altri assegni e sussidi assistenziali;18/10/2019
1991;1;0;60;60;NOMINATIVO OMESSO PER PRIVACY; ;"L.R. n. 18/2016. REIS - Reddito Inclusione Sociale ""Agiudu torrau"" annualita 2018 - Impegno di spesa e liquidazione Giugno 2019";18/10/2019;6693;0;334;1;Spese correnti;4;Trasferimenti correnti;2;Trasferimenti correnti a Famiglie;2;Interventi assistenziali;999;Altri assegni e sussidi assistenziali;18/10/2019
1992;1;0;90;90;NOMINATIVO OMESSO PER PRIVACY; ;"L.R. n. 18/2016. REIS - Reddito Inclusione Sociale ""Agiudu torrau"" annualita 2018 - Impegno di spesa e liquidazione Giugno 2019";18/10/2019;6693;0;334;1;Spese correnti;4;Trasferimenti correnti;2;Trasferimenti correnti a Famiglie;2;Interventi assistenziali;999;Altri assegni e sussidi assistenziali;18/10/2019
1993;1;0;120;120;NOMINATIVO OMESSO PER PRIVACY; ;"L.R. n. 18/2016. REIS - Reddito Inclusione Sociale ""Agiudu torrau"" annualita 2018 - Impegno di spesa e liquidazione Giugno 2019";18/10/2019;6693;0;334;1;Spese correnti;4;Trasferimenti correnti;2;Trasferimenti correnti a Famiglie;2;Interventi assistenziali;999;Altri assegni e sussidi assistenziali;18/10/2019
1994;1;0;150;150;NOMINATIVO OMESSO PER PRIVACY; ;"L.R. n. 18/2016. REIS - Reddito Inclusione Sociale ""Agiudu torrau"" annualita 2018 - Impegno di spesa e liquidazione Giugno 2019";18/10/2019;6693;0;334;1;Spese correnti;4;Trasferimenti correnti;2;Trasferimenti correnti a Famiglie;2;Interventi assistenziali;999;Altri assegni e sussidi assistenziali;18/10/2019
1995;1;0;150;150;NOMINATIVO OMESSO PER PRIVACY; ;"L.R. n. 18/2016. REIS - Reddito Inclusione Sociale ""Agiudu torrau"" annualita 2018 - Impegno di spesa e liquidazione Giugno 2019";18/10/2019;6693;0;334;1;Spese correnti;4;Trasferimenti correnti;2;Trasferimenti correnti a Famiglie;2;Interventi assistenziali;999;Altri assegni e sussidi assistenziali;18/10/2019
1996;1;0;60;60;NOMINATIVO OMESSO PER PRIVACY; ;"L.R. n. 18/2016. REIS - Reddito Inclusione Sociale ""Agiudu torrau"" annualita 2018 - Impegno di spesa e liquidazione Giugno 2019";18/10/2019;6693;0;334;1;Spese correnti;4;Trasferimenti correnti;2;Trasferimenti correnti a Famiglie;2;Interventi assistenziali;999;Altri assegni e sussidi assistenziali;18/10/2019
1997;1;0;420,88;420,88;G.P. GLOBAL POWER;622385037F;ACCONTO Fatt.n. V0/150083  del 01/10/2019 Fattura Energia Elettrica;18/10/2019;460;0;71;1;Spese correnti;3;Acquisto di beni e servizi;2;Acquisto di servizi;5;Utenze e canoni;4;Energia elettrica;18/10/2019
1998;1;0;11,24;11,24;G.P. GLOBAL POWER;622385037F;ACCONTO Fatt.n. V0/150081  del 01/10/2019 Fattura Energia Elettrica;18/10/2019;460;0;71;1;Spese correnti;3;Acquisto di beni e servizi;2;Acquisto di servizi;5;Utenze e canoni;4;Energia elettrica;18/10/2019
1999;1;0;40,65;40,65;G.P. GLOBAL POWER; ;REGOLARIZZAZIONE PROVVISORI AL TESORIERE PER  PAGAMENTO FATTURE GLOBAL POWER;18/10/2019;3040;0;70;1;Spese correnti;3;Acquisto di beni e servizi;2;Acquisto di servizi;5;Utenze e canoni;4;Energia elettrica;18/10/2019
2000;1;0;721,61;721,61;G.P. GLOBAL POWER;622385037F;ACCONTO Fatt.n. V0/150082  del 01/10/2019 Fattura Energia Elettrica;18/10/2019;4146;0;68;1;Spese correnti;3;Acquisto di beni e servizi;2;Acquisto di servizi;5;Utenze e canoni;4;Energia elettrica;18/10/2019
2002;1;0;300;300;NOMINATIVO OMESSO PER PRIVACY; ;"L.R. n. 18/2016. REIS - Reddito Inclusione Sociale ""Agiudu torrau"" annualita 2018 - Impegno di spesa e liquidazione Giugno 2019";18/10/2019;6693;0;334;1;Spese correnti;4;Trasferimenti correnti;2;Trasferimenti correnti a Famiglie;2;Interventi assistenziali;999;Altri assegni e sussidi assistenziali;18/10/2019
2003;1;0;300;300;NOMINATIVO OMESSO PER PRIVACY; ;"L.R. n. 18/2016. REIS - Reddito Inclusione Sociale ""Agiudu torrau"" annualita 2018 - Impegno di spesa e liquidazione Giugno 2019";18/10/2019;6693;0;334;1;Spese correnti;4;Trasferimenti correnti;2;Trasferimenti correnti a Famiglie;2;Interventi assistenziali;999;Altri assegni e sussidi assistenziali;18/10/2019
2004;1;0;400;400;NOMINATIVO OMESSO PER PRIVACY; ;"L.R. n. 18/2016. REIS - Reddito Inclusione Sociale ""Agiudu torrau"" annualita 2018 - Impegno di spesa e liquidazione Giugno 2019";18/10/2019;6693;0;334;1;Spese correnti;4;Trasferimenti correnti;2;Trasferimenti correnti a Famiglie;2;Interventi assistenziali;999;Altri assegni e sussidi assistenziali;18/10/2019
2005;1;0;150;150;NOMINATIVO OMESSO PER PRIVACY; ;"L.R. n. 18/2016. REIS - Reddito Inclusione Sociale ""Agiudu torrau"" annualita 2018 - Impegno di spesa e liquidazione Giugno 2019";18/10/2019;6693;0;334;1;Spese correnti;4;Trasferimenti correnti;2;Trasferimenti correnti a Famiglie;2;Interventi assistenziali;999;Altri assegni e sussidi assistenziali;18/10/2019
2006;1;0;200;200;NOMINATIVO OMESSO PER PRIVACY; ;"L.R. n. 18/2016. REIS - Reddito Inclusione Sociale ""Agiudu torrau"" annualita 2018 - Impegno di spesa e liquidazione Giugno 2019";18/10/2019;6693;0;334;1;Spese correnti;4;Trasferimenti correnti;2;Trasferimenti correnti a Famiglie;2;Interventi assistenziali;999;Altri assegni e sussidi assistenziali;18/10/2019
2007;1;0;300;300;NOMINATIVO OMESSO PER PRIVACY; ;"L.R. n. 18/2016. REIS - Reddito Inclusione Sociale ""Agiudu torrau"" annualita 2018 - Impegno di spesa e liquidazione Giugno 2019";18/10/2019;6693;0;334;1;Spese correnti;4;Trasferimenti correnti;2;Trasferimenti correnti a Famiglie;2;Interventi assistenziali;999;Altri assegni e sussidi assistenziali;18/10/2019
2008;1;0;500;500;NOMINATIVO OMESSO PER PRIVACY; ;"L.R. n. 18/2016. REIS - Reddito Inclusione Sociale ""Agiudu torrau"" annualita 2018 - Impegno di spesa e liquidazione Giugno 2019";18/10/2019;6693;0;334;1;Spese correnti;4;Trasferimenti correnti;2;Trasferimenti correnti a Famiglie;2;Interventi assistenziali;999;Altri assegni e sussidi assistenziali;18/10/2019
2009;1;0;148,79;148,79;SERENISSIMA Coop.va Sociale a r.l.; ;"Accertamento di entrata e Impegno di spesa relativa al ""Finanziamento Piani Personalizzati Legge 162/98"" saldo annualita 2018/gest.2019 periodo luglio-settembre 2019(PITTALIS VITTORINA)";18/10/2019;7038;0;245;1;Spese correnti;4;Trasferimenti correnti;2;Trasferimenti correnti a Famiglie;5;Altri trasferimenti a famiglie;999;Altri trasferimenti a famiglie n.a.c.;18/10/2019
2010;1;0;145,63;145,63;SSDIMENSIONE NUOTO SRL; ;"Accertamento di entrata e Impegno di spesa relativa al ""Finanziamento Piani Personalizzati Legge 162/98"" saldo annualita 2018/gest.2019 periodo luglio-settembre 2019 * sechi aurora";18/10/2019;7038;0;245;1;Spese correnti;4;Trasferimenti correnti;2;Trasferimenti correnti a Famiglie;5;Altri trasferimenti a famiglie;999;Altri trasferimenti a famiglie n.a.c.;18/10/2019
2011;1;0;350;350;ASSOCIAZIONE ITALIANA BIBLIOTECHE;Z9629FD623;"SALDO Fatt.n. 679  del 16/10/2019 Corso di aggiornamento professionale ""Corso sulla privacy e aggiornamenti sul GDPR"" Sassari 11 Ottobre 2019 Partecipante: Lisa Contini, Salis Adriana, Marongiu Elisabetta, Gaias Alessandra, Garau Anna, Ruiu Maria Ant";18/10/2019;3778;0;327;1;Spese correnti;3;Acquisto di beni e servizi;2;Acquisto di servizi;5;Utenze e canoni;999;Utenze e canoni per altri servizi n.a.c.;18/10/2019
2012;1;0;2.000,00;2.000,00;ASSOCIAZIONE TURISTICA PRO LOCO; ;Estatissima 2019- Liquidazione saldo contributo all'Associazione Turistica Pro Loco di Tissi;18/10/2019;3800;0;310;1;Spese correnti;4;Trasferimenti correnti;4;Trasferimenti correnti a Istituzioni Sociali Private;1;Trasferimenti correnti a Istituzioni Sociali Private;1;Trasferimenti correnti a Istituzioni Sociali Private;18/10/2019
2013;1;0;500;500;ASSOCIAZIONE TURISTICA PRO LOCO; ;Estatissima 2019- Liquidazione saldo contributo all'Associazione Turistica Pro Loco di Tissi;18/10/2019;3800;0;155;1;Spese correnti;4;Trasferimenti correnti;4;Trasferimenti correnti a Istituzioni Sociali Private;1;Trasferimenti correnti a Istituzioni Sociali Private;1;Trasferimenti correnti a Istituzioni Sociali Private;18/10/2019
2014;1;0;2.110,00;2.110,00;ASSOCIAZIONE TURISTICA PRO LOCO; ;Estatissima 2019- Liquidazione saldo contributo all'Associazione Turistica Pro Loco di Tissi;18/10/2019;3800;0;226;1;Spese correnti;4;Trasferimenti correnti;4;Trasferimenti correnti a Istituzioni Sociali Private;1;Trasferimenti correnti a Istituzioni Sociali Private;1;Trasferimenti correnti a Istituzioni Sociali Private;18/10/2019
2015;1;0;500;500;ASSOCIAZIONE TURISTICA PRO LOCO; ;Estatissima 2019- Liquidazione saldo contributo all'Associazione Turistica Pro Loco di Tissi;18/10/2019;3800;0;157;1;Spese correnti;4;Trasferimenti correnti;4;Trasferimenti correnti a Istituzioni Sociali Private;1;Trasferimenti correnti a Istituzioni Sociali Private;1;Trasferimenti correnti a Istituzioni Sociali Private;18/10/2019
2016;1;0;200;200;ASSOCIAZIONE TURISTICA PRO LOCO; ;Estatissima 2019- Liquidazione saldo contributo all'Associazione Turistica Pro Loco di Tissi;18/10/2019;4000;1;225;1;Spese correnti;4;Trasferimenti correnti;4;Trasferimenti correnti a Istituzioni Sociali Private;1;Trasferimenti correnti a Istituzioni Sociali Private;1;Trasferimenti correnti a Istituzioni Sociali Private;18/10/2019
2017;1;0;120;120;FINANZA LOCALE MANAGEMENT SRL; ;SALDO Fatt.n. 144/PA  del 03/10/2019 CORSO FORMAZIONE 2 PARTECIPANTI;18/10/2019;82;0;322;1;Spese correnti;3;Acquisto di beni e servizi;2;Acquisto di servizi;4;Acquisto di servizi per formazione e addestramento del personale dell'ente;999;Acquisto di servizi per altre spese per formazione e addestramento n.a.c.;18/10/2019
2018;1;0;268,64;268,64;MINISTERO DELL'INTERNO; ;Versamento al Ministero dell' Interno dei diritti relativi alle carte d' identita elettroniche emesse - 2 versamento Mese di Ottobre 2019;12/11/2019;939;0;350;1;Spese correnti;4;Trasferimenti correnti;1;Trasferimenti correnti a Amministrazioni Pubbliche;1;Trasferimenti correnti a Amministrazioni Centrali;1;Trasferimenti correnti a Ministeri;12/11/2019
2019;1;0;201,48;201,48;MINISTERO DELL'INTERNO; ;Versamento al Ministero dell' Interno dei diritti relativi alle carte d' identita elettroniche emesse - 1 versamento Mese di Ottobre 2019;12/11/2019;939;0;358;1;Spese correnti;4;Trasferimenti correnti;1;Trasferimenti correnti a Amministrazioni Pubbliche;1;Trasferimenti correnti a Amministrazioni Centrali;1;Trasferimenti correnti a Ministeri;12/11/2019
2020;1;0;2.928,00;2.928,00;GRAFICHE E.GASPARI s.r.l.;ZD82916102;SALDO Fatt.n. 16712/S  del 27/09/2019 MYCITY- SITO WEB FINO A 3000 ABIT;12/11/2019;460;1;227;1;Spese correnti;3;Acquisto di beni e servizi;2;Acquisto di servizi;19;Servizi informatici e di telecomunicazioni;999;Altri servizi informatici e di telecomunicazioni n.a.c.;12/11/2019
2021;1;0;1.250,00;1.250,00;HORIZONS  UNLIMITED;ZEB2A3A129;SALDO Fatt.n. PA/366  del 05/11/2019 RINNOVO PIATTAFORMA MLOL E SERVIZI;12/11/2019;3778;0;348;1;Spese correnti;3;Acquisto di beni e servizi;2;Acquisto di servizi;5;Utenze e canoni;999;Utenze e canoni per altri servizi n.a.c.;12/11/2019
2022;1;0;1.056,40;1.056,40;SI.RI.SE MULTISERVICES;Z5F2874C28;SALDO Fatt.n. 35/PA  del 29/10/2019  SERVIZI ORDINARIO DI PULIZIE AGOSTO 2019;12/11/2019;455;0;192;1;Spese correnti;3;Acquisto di beni e servizi;2;Acquisto di servizi;99;Altri servizi;999;Altri servizi diversi n.a.c.;12/11/2019
2023;1;0;1.056,40;1.056,40;SI.RI.SE MULTISERVICES;Z5F2874C28;SALDO Fatt.n. 36/PA  del 29/10/2019 SERVIZIO DI PULIZIE ORDINARIE SETTEMBRE 2019;12/11/2019;455;0;192;1;Spese correnti;3;Acquisto di beni e servizi;2;Acquisto di servizi;99;Altri servizi;999;Altri servizi diversi n.a.c.;12/11/2019
2024;1;0;1.056,40;1.056,40;SI.RI.SE MULTISERVICES;Z5F2874C28;SALDO Fatt.n. 34/PA  del 29/10/2019 SERVIZIO DI PULIZIE ORDINARIE SETTEMBRE 2019;12/11/2019;455;0;192;1;Spese correnti;3;Acquisto di beni e servizi;2;Acquisto di servizi;99;Altri servizi;999;Altri servizi diversi n.a.c.;12/11/2019
2025;1;0;1.056,40;1.056,40;SI.RI.SE MULTISERVICES;Z5F2874C28;SALDO Fatt.n. 33/PA  del 29/10/2019 SERVIZIO DI PULIZIE ORDINARIE GIUGNO 2019;12/11/2019;455;0;192;1;Spese correnti;3;Acquisto di beni e servizi;2;Acquisto di servizi;99;Altri servizi;999;Altri servizi diversi n.a.c.;12/11/2019
2026;1;0;1.056,40;1.056,40;SI.RI.SE MULTISERVICES;Z5F2874C28;SALDO Fatt.n. 37/PA  del 04/11/2019 servizio di pulizie ordinarie ottobre 2019;12/11/2019;455;0;192;1;Spese correnti;3;Acquisto di beni e servizi;2;Acquisto di servizi;99;Altri servizi;999;Altri servizi diversi n.a.c.;12/11/2019
2027;1;0;2.335,00;2.335,00;HORIZONS  UNLIMITED;ZEB2A3A129;SALDO Fatt.n. PA/366  del 05/11/2019 RINNOVO PIATTAFORMA MLOL E SERVIZI;13/11/2019;3778;0;348;1;Spese correnti;3;Acquisto di beni e servizi;2;Acquisto di servizi;5;Utenze e canoni;999;Utenze e canoni per altri servizi n.a.c.;13/11/2019
2028;1;0;2.138,00;2.138,00;L.I.D.A. o.n.l.u.s. Sezione Regionale di Sassari; ;il rimborso alla L.I.D.A. ONLUS di Sassari delle spese sostenute per il mantenimento, ricovero e cura dei cani randagi - 5^ bimestre Anno 2019.;13/11/2019;4520;0;406;1;Spese correnti;4;Trasferimenti correnti;4;Trasferimenti correnti a Istituzioni Sociali Private;1;Trasferimenti correnti a Istituzioni Sociali Private;1;Trasferimenti correnti a Istituzioni Sociali Private;13/11/2019
2029;1;0;311,41;311,41;AGRICOLA SASSARESE;ZCC2A35331;SALDO Fatt.n. 200/6300002001  del 21/10/2019 PA2 6300/002 n. 200 del 21/10/2019;13/11/2019;452;0;338;1;Spese correnti;3;Acquisto di beni e servizi;1;Acquisto di beni;2;Altri beni di consumo;999;Altri beni e materiali di consumo n.a.c.;13/11/2019
